{"text_format":"1","workbook":"xlsx","n_sheets":42,"sheets":["Info+Engagés","Cav1","Cav2","Cav3","Cav4","Cav5","Cav6","Cav7","Cav8","Cav9","Cav10","Cav11","Cav12","Cav13","Cav14","Cav15","Cav16","Cav17","Cav18","Cav19","Cav20","Cav21","Cav22","Cav23","Cav24","Cav25","Cav26","Cav27","Cav28","Cav29","Cav30","Cav31","Cav32","Cav33","Cav34","Cav35","Cav36","Cav37","Cav38","Cav39","Cav40","Résultats"],"not_rendered":{"charts":0,"images":1,"macros":1,"external_links":0,"defined_names":2,"comments":3,"pivot_tables":0},"unopened":[],"bounds":{"document_bytes":16777216,"sheet_cells":100000,"rows_first":2000,"rows_last":500,"rows_between":2000,"halvings":0,"cell_chars":16384,"cell_head_chars":4096},"cells_cut":0,"cells_raw":0,"read":"whole","date_system":"1900"}

{"sheet":"Info+Engagés","index":0,"n_rows":12,"n_cols":11,"rows_kept":12,"cut":false,"hidden":false,"merged":[[1,1,1,4],[1,7,1,10],[2,1,2,4],[2,7,2,10],[3,1,3,4],[3,7,3,10],[4,1,4,2],[4,7,4,10],[5,1,5,2],[5,7,5,10],[7,1,8,7]]}
[]
["Date du concours","Quelle Date ?",null,null,null,null,"Juge E"]
["Lieu du concours","Quel Lieu (Dép)",null,null,null,null,"Juge H"]
["N° de concours","Quel N°",null,null,null,null,"Juge C","Nom du juge en C"]
["N° d’épreuve","Quel N°",null,null,null,null,"Juge M"]
["N° de piste","Piste ?",null,null,null,null,"Juge B"]
[null,null,null,null,null,null," "]
[null,"Para Club 3 Niveau 3",null,null,null,null,null,null,null,"Dotation",0]
[]
[]
["N° Départ","Cheval","Age","Sexe","Robe","Race","Cavalier","Licence","CRE","Club","Etat"]
[1,"Nom du Cheval 1",null,null,null,null,"Nom du Cavalier 1"]

{"sheet":"Cav1","index":1,"n_rows":38,"n_cols":9,"rows_kept":38,"cut":false,"hidden":false,"merged":[[8,8,10,8],[0,0,1,2],[0,3,1,6],[0,7,1,8],[2,0,2,2],[2,3,3,4],[2,5,3,6],[3,0,3,2],[4,0,4,1],[4,7,5,7],[4,8,5,8],[5,0,5,1],[6,0,7,1],[6,2,7,2],[6,7,7,7],[6,8,7,8],[4,3,7,4],[4,5,7,6],[9,5,10,5],[9,6,10,6],[9,7,10,7],[10,0,10,1],[8,0,8,1],[9,0,9,1],[9,3,10,3],[9,4,10,4],[8,2,10,2],[11,0,28,0],[29,0,32,0],[37,0,41,8],[33,0,33,2],[34,0,34,2],[35,0,35,2],[36,0,36,2]]}
[{"$f":"'Info+Engagés'!B3","v":"Quel Lieu (Dép)"},null,null,{"$f":"'Info+Engagés'!B8","v":"Para Club 3 Niveau 3"},null,null,null,{"$f":"'Info+Engagés'!B2","v":"Quelle Date ?"}]
[]
["N° de concours",null,null,"Cheval",null,"Cavalier",null,"Nt d’ensemble",{"$f":"SUM(D30:H33)*2","v":0}]
[{"$f":"'Info+Engagés'!B4","v":"Quel N°"},null,null,null,null,null,null,"Points",{"$f":"SUM(D37:H37)","v":0}]
["Épreuve N°",null,{"$f":"'Info+Engagés'!B5","v":"Quel N°"},{"$f":"'Info+Engagés'!B12","v":"Nom du Cheval 1"},null,{"$f":"'Info+Engagés'!G12","v":"Nom du Cavalier 1"},null,"% Final",{"$f":"AVERAGE(D36:H36)","v":0}]
["Piste  ",null,{"$f":"'Info+Engagés'!B6","v":"Piste ?"}]
["N° Départ BO",null,{"$f":"'Info+Engagés'!A12","v":1},null,null,null,null,"Classement"]
[]
["Imprimé le :",null,"Coéff .","Juge E","Juge H","Juge C","Juge M","Juge B","écart Max"]
[{"$f":"TODAY()","v":"2019-06-06"},null,null,{"$f":"IF(ISBLANK('Info+Engagés'!H2),\"\",('Info+Engagés'!H2))","v":""},{"$f":"IF(ISBLANK('Info+Engagés'!H3),\"\",('Info+Engagés'!H3))","v":""},{"$f":"IF(ISBLANK('Info+Engagés'!H4),\"\",('Info+Engagés'!H4))","v":"Nom du juge en C"},{"$f":"IF(ISBLANK('Info+Engagés'!H5),\"\",('Info+Engagés'!H5))","v":""},{"$f":"IF(ISBLANK('Info+Engagés'!H6),\"\",('Info+Engagés'!H6))","v":""}]
[{"$f":"NOW()","v":43622.846019328703}]
["Notation figures","Figure 1",1,null,null,null,null,null,{"$f":"MAX(D12:H12)-MIN(D12:H12)","v":0}]
[null,"Figure 2",1,null,null,null,null,null,0]
[null,"Figure 3",1,null,null,null,null,null,0]
[null,"Figure 4",1,null,null,null,null,null,0]
[null,"Figure 5",1,null,null,null,null,null,0]
[null,"Figure 6",1,null,null,null,null,null,0]
[null,"Figure 7",1,null,null,null,null,null,0]
[null,"Figure 8",1,null,null,null,null,null,0]
[null,"Figure 9",1,null,null,null,null,null,0]
[null,"Figure 10",1,null,null,null,null,null,0]
[null,"Figure 11",1,null,null,null,null,null,0]
[null,"Figure 12",1,null,null,null,null,null,0]
[null,"Figure 13",1,null,null,null,null,null,0]
[null,"Figure 14",1,null,null,null,null,null,0]
[null,"Figure 15",1,null,null,null,null,null,0]
[null,"Figure 16",1,null,null,null,null,null,0]
[null,"Figure 17",1,null,null,null,null,null,0]
[null,"Figure 18",1,null,null,null,null,null,0]
[" Ensemble","Ensemble 1",2,null,null,null,null,null,0]
[null,"Ensemble 2",2,null,null,null,null,null,0]
[null,"Ensemble 3",2,null,null,null,null,null,0]
[null,"Ensemble 4",2,null,null,null,null,null,0]
["Pénalité en points",null,null,null,null,null,null,null,0]
["Erreure(s) de tracé "]
["% Total du juge",null,null,{"$f":"IF(ISBLANK('Info+Engagés'!H2),\"\",D37/2.6-D35)","v":""},{"$f":"IF(ISBLANK('Info+Engagés'!H3),\"\",E37/2.6-E35)","v":""},{"$f":"IF(ISBLANK('Info+Engagés'!H4),\"\",F37/2.6-F35)","v":0},{"$f":"IF(ISBLANK('Info+Engagés'!H5),\"\",G37/2.6-G35)","v":""},{"$f":"IF(ISBLANK('Info+Engagés'!H6),\"\",H37/2.6-H35)","v":""},{"$f":"MAX(D36:H36)-MIN(D36:H36)","v":0}]
["Soit en points",null,null,{"$f":"IF(ISBLANK('Info+Engagés'!H2),\"\",(SUM(D12:D29,D30*2,D31*2,D32*2,D33*2)-D34))","v":""},{"$f":"IF(ISBLANK('Info+Engagés'!H3),\"\",(SUM(E12:E29,E30*2,E31*2,E32*2,E33*2)-E34))","v":""},{"$f":"IF(ISBLANK('Info+Engagés'!H4),\"\",(SUM(F12:F29,F30*2,F31*2,F32*2,F33*2)-F34))","v":0},{"$f":"IF(ISBLANK('Info+Engagés'!H5),\"\",(SUM(G12:G29,G30*2,G31*2,G32*2,G33*2)-G34))","v":""},{"$f":"IF(ISBLANK('Info+Engagés'!H6),\"\",(SUM(H12:H29,H30*2,H31*2,H32*2,H33*2)-H34))","v":""}]
["                          Total maxi par juge = 260          1 point correspond à 0,385%              1% correspond en points à : 2,6                                                                  Les notes sont sur 10 et correspondent à la saisie informatique par l'opérateur des protocoles joints, Le total résulte de l'addition des points attribués après application du coefficient et soustraction des points de pénalité encourus après conversion en pourcentage sont déduit les pourcentages de pénalités encourus par suite d'erreurs de tracé pour obtenir le pourcentage par juge."]

{"sheet":"Cav2","index":2,"n_rows":38,"n_cols":9,"rows_kept":38,"cut":false,"hidden":false,"merged":[[8,8,10,8],[0,0,1,2],[0,3,1,6],[0,7,1,8],[2,0,2,2],[2,3,3,4],[2,5,3,6],[3,0,3,2],[4,0,4,1],[4,7,5,7],[4,8,5,8],[5,0,5,1],[6,0,7,1],[6,2,7,2],[6,7,7,7],[6,8,7,8],[4,3,7,4],[4,5,7,6],[9,5,10,5],[9,6,10,6],[9,7,10,7],[10,0,10,1],[8,0,8,1],[9,0,9,1],[9,3,10,3],[9,4,10,4],[8,2,10,2],[11,0,28,0],[29,0,32,0],[37,0,41,8],[33,0,33,2],[34,0,34,2],[35,0,35,2],[36,0,36,2]]}
[{"$f":"'Info+Engagés'!B3","v":"Quel Lieu (Dép)"},null,null,{"$f":"'Info+Engagés'!B8","v":"Para Club 3 Niveau 3"},null,null,null,{"$f":"'Info+Engagés'!B2","v":"Quelle Date ?"}]
[]
["N° de concours",null,null,"Cheval",null,"Cavalier",null,"Note d’ensemble",{"$f":"SUM(D30:H33)*2","v":0}]
[{"$f":"'Info+Engagés'!B4","v":"Quel N°"},null,null,null,null,null,null,"Points",{"$f":"SUM(D37:H37)","v":0}]
["Épreuve N°",null,{"$f":"'Info+Engagés'!B5","v":"Quel N°"},{"$f":"'Info+Engagés'!B13","v":0},null,{"$f":"'Info+Engagés'!G13","v":0},null,"% Final",{"$f":"AVERAGE(D36:H36)","v":0}]
["Piste  ",null,{"$f":"'Info+Engagés'!B6","v":"Piste ?"}]
["N° Départ BO",null,{"$f":"'Info+Engagés'!A13","v":0},null,null,null,null,"Classement"]
[]
["Imprimé le :",null,"Coéff .","Juge E","Juge H","Juge C","Juge M","Juge B","écart Max"]
[{"$f":"TODAY()","v":"2019-06-06"},null,null,{"$f":"IF(ISBLANK('Info+Engagés'!H2),\"\",('Info+Engagés'!H2))","v":""},{"$f":"IF(ISBLANK('Info+Engagés'!H3),\"\",('Info+Engagés'!H3))","v":""},{"$f":"IF(ISBLANK('Info+Engagés'!H4),\"\",('Info+Engagés'!H4))","v":"Nom du juge en C"},{"$f":"IF(ISBLANK('Info+Engagés'!H5),\"\",('Info+Engagés'!H5))","v":""},{"$f":"IF(ISBLANK('Info+Engagés'!H6),\"\",('Info+Engagés'!H6))","v":""}]
[{"$f":"NOW()","v":43622.846019328703}]
["Notation figures","Figure 1",1,null,null,null,null,null,{"$f":"MAX(D12:H12)-MIN(D12:H12)","v":0}]
[null,"Figure 2",1,null,null,null,null,null,0]
[null,"Figure 3",1,null,null,null,null,null,0]
[null,"Figure 4",1,null,null,null,null,null,0]
[null,"Figure 5",1,null,null,null,null,null,0]
[null,"Figure 6",1,null,null,null,null,null,0]
[null,"Figure 7",1,null,null,null,null,null,0]
[null,"Figure 8",1,null,null,null,null,null,0]
[null,"Figure 9",1,null,null,null,null,null,0]
[null,"Figure 10",1,null,null,null,null,null,0]
[null,"Figure 11",1,null,null,null,null,null,0]
[null,"Figure 12",1,null,null,null,null,null,0]
[null,"Figure 13",1,null,null,null,null,null,0]
[null,"Figure 14",1,null,null,null,null,null,0]
[null,"Figure 15",1,null,null,null,null,null,0]
[null,"Figure 16",1,null,null,null,null,null,0]
[null,"Figure 17",1,null,null,null,null,null,0]
[null,"Figure 18",1,null,null,null,null,null,0]
[" Ensemble","Ensemble 1",2,null,null,null,null,null,0]
[null,"Ensemble 2",2,null,null,null,null,null,0]
[null,"Ensemble 3",2,null,null,null,null,null,0]
[null,"Ensemble 4",2,null,null,null,null,null,0]
["Pénalité en points"]
["Erreure(s) de tracé "]
["% Total du juge",null,null,{"$f":"IF(ISBLANK('Info+Engagés'!H2),\"\",D37/2.6-D35)","v":""},{"$f":"IF(ISBLANK('Info+Engagés'!H3),\"\",E37/2.6-E35)","v":""},{"$f":"IF(ISBLANK('Info+Engagés'!H4),\"\",F37/2.6-F35)","v":0},{"$f":"IF(ISBLANK('Info+Engagés'!H5),\"\",G37/2.6-G35)","v":""},{"$f":"IF(ISBLANK('Info+Engagés'!H6),\"\",H37/2.6-H35)","v":""},{"$f":"MAX(D36:H36)-MIN(D36:H36)","v":0}]
["Soit en points",null,null,{"$f":"IF(ISBLANK('Info+Engagés'!H2),\"\",(SUM(D12:D29,D30*2,D31*2,D32*2,D33*2)-D34))","v":""},{"$f":"IF(ISBLANK('Info+Engagés'!H3),\"\",(SUM(E12:E29,E30*2,E31*2,E32*2,E33*2)-E34))","v":""},{"$f":"IF(ISBLANK('Info+Engagés'!H4),\"\",(SUM(F12:F29,F30*2,F31*2,F32*2,F33*2)-F34))","v":0},{"$f":"IF(ISBLANK('Info+Engagés'!H5),\"\",(SUM(G12:G29,G30*2,G31*2,G32*2,G33*2)-G34))","v":""},{"$f":"IF(ISBLANK('Info+Engagés'!H6),\"\",(SUM(H12:H29,H30*2,H31*2,H32*2,H33*2)-H34))","v":""}]
["                          Total maxi par juge = 260          1 point correspond à 0,385%              1% correspond en points à : 2,6                                                                  Les notes sont sur 10 et correspondent à la saisie informatique par l'opérateur des protocoles joints, Le total résulte de l'addition des points attribués après application du coefficient et soustraction des points de pénalité encourus après conversion en pourcentage sont déduit les pourcentages de pénalités encourus par suite d'erreurs de tracé pour obtenir le pourcentage par juge."]

{"sheet":"Cav3","index":3,"n_rows":38,"n_cols":9,"rows_kept":38,"cut":false,"hidden":false,"merged":[[0,0,1,2],[0,3,1,6],[0,7,1,8],[2,0,2,2],[2,3,3,4],[2,5,3,6],[3,0,3,2],[8,2,10,2],[4,0,4,1],[4,7,5,7],[4,8,5,8],[5,0,5,1],[6,0,7,1],[6,2,7,2],[6,7,7,7],[6,8,7,8],[4,3,7,4],[4,5,7,6],[34,0,34,2],[35,0,35,2],[36,0,36,2],[37,0,41,8],[9,6,10,6],[9,7,10,7],[10,0,10,1],[33,0,33,2],[9,5,10,5],[11,0,28,0],[29,0,32,0],[8,8,10,8],[8,0,8,1],[9,0,9,1],[9,3,10,3],[9,4,10,4]]}
[{"$f":"'Info+Engagés'!B3","v":"Quel Lieu (Dép)"},null,null,{"$f":"'Info+Engagés'!B8","v":"Para Club 3 Niveau 3"},null,null,null,{"$f":"'Info+Engagés'!B2","v":"Quelle Date ?"}]
[]
["N° de concours",null,null,"Cheval",null,"Cavalier",null,"Note d’ensemble",{"$f":"SUM(D30:H33)*2","v":0}]
[{"$f":"'Info+Engagés'!B4","v":"Quel N°"},null,null,null,null,null,null,"Points",{"$f":"SUM(D37:H37)","v":0}]
["Épreuve N°",null,{"$f":"'Info+Engagés'!B5","v":"Quel N°"},{"$f":"'Info+Engagés'!B14","v":0},null,{"$f":"'Info+Engagés'!G14","v":0},null,"% Final",{"$f":"AVERAGE(D36:H36)","v":0}]
["Piste  ",null,{"$f":"'Info+Engagés'!B6","v":"Piste ?"}]
["N° Départ BO",null,{"$f":"'Info+Engagés'!A14","v":0},null,null,null,null,"Classement"]
[]
["Imprimé le :",null,"Coéff .","Juge E","Juge H","Juge C","Juge M","Juge B","écart Max"]
[{"$f":"TODAY()","v":"2019-06-06"},null,null,{"$f":"IF(ISBLANK('Info+Engagés'!H2),\"\",('Info+Engagés'!H2))","v":""},{"$f":"IF(ISBLANK('Info+Engagés'!H3),\"\",('Info+Engagés'!H3))","v":""},{"$f":"IF(ISBLANK('Info+Engagés'!H4),\"\",('Info+Engagés'!H4))","v":"Nom du juge en C"},{"$f":"IF(ISBLANK('Info+Engagés'!H5),\"\",('Info+Engagés'!H5))","v":""},{"$f":"IF(ISBLANK('Info+Engagés'!H6),\"\",('Info+Engagés'!H6))","v":""}]
[{"$f":"NOW()","v":43622.846019328703}]
["Notation figures","Figure 1",1,null,null,null,null,null,{"$f":"MAX(D12:H12)-MIN(D12:H12)","v":0}]
[null,"Figure 2",1,null,null,null,null,null,0]
[null,"Figure 3",1,null,null,null,null,null,0]
[null,"Figure 4",1,null,null,null,null,null,0]
[null,"Figure 5",1,null,null,null,null,null,0]
[null,"Figure 6",1,null,null,null,null,null,0]
[null,"Figure 7",1,null,null,null,null,null,0]
[null,"Figure 8",1,null,null,null,null,null,0]
[null,"Figure 9",1,null,null,null,null,null,0]
[null,"Figure 10",1,null,null,null,null,null,0]
[null,"Figure 11",1,null,null,null,null,null,0]
[null,"Figure 12",1,null,null,null,null,null,0]
[null,"Figure 13",1,null,null,null,null,null,0]
[null,"Figure 14",1,null,null,null,null,null,0]
[null,"Figure 15",1,null,null,null,null,null,0]
[null,"Figure 16",1,null,null,null,null,null,0]
[null,"Figure 17",1,null,null,null,null,null,0]
[null,"Figure 18",1,null,null,null,null,null,0]
[" Ensemble","Ensemble 1",2,null,null,null,null,null,0]
[null,"Ensemble 2",2,null,null,null,null,null,0]
[null,"Ensemble 3",2,null,null,null,null,null,0]
[null,"Ensemble 4",2,null,null,null,null,null,0]
["Pénalité en points"]
["Erreure(s) de tracé "]
["% Total du juge",null,null,{"$f":"IF(ISBLANK('Info+Engagés'!H2),\"\",D37/2.6-D35)","v":""},{"$f":"IF(ISBLANK('Info+Engagés'!H3),\"\",E37/2.6-E35)","v":""},{"$f":"IF(ISBLANK('Info+Engagés'!H4),\"\",F37/2.6-F35)","v":0},{"$f":"IF(ISBLANK('Info+Engagés'!H5),\"\",G37/2.6-G35)","v":""},{"$f":"IF(ISBLANK('Info+Engagés'!H6),\"\",H37/2.6-H35)","v":""},{"$f":"MAX(D36:H36)-MIN(D36:H36)","v":0}]
["Soit en points",null,null,{"$f":"IF(ISBLANK('Info+Engagés'!H2),\"\",(SUM(D12:D29,D30*2,D31*2,D32*2,D33*2)-D34))","v":""},{"$f":"IF(ISBLANK('Info+Engagés'!H3),\"\",(SUM(E12:E29,E30*2,E31*2,E32*2,E33*2)-E34))","v":""},{"$f":"IF(ISBLANK('Info+Engagés'!H4),\"\",(SUM(F12:F29,F30*2,F31*2,F32*2,F33*2)-F34))","v":0},{"$f":"IF(ISBLANK('Info+Engagés'!H5),\"\",(SUM(G12:G29,G30*2,G31*2,G32*2,G33*2)-G34))","v":""},{"$f":"IF(ISBLANK('Info+Engagés'!H6),\"\",(SUM(H12:H29,H30*2,H31*2,H32*2,H33*2)-H34))","v":""}]
["                          Total maxi par juge = 260          1 point correspond à 0,385%              1% correspond en points à : 2,6                                                                  Les notes sont sur 10 et correspondent à la saisie informatique par l'opérateur des protocoles joints, Le total résulte de l'addition des points attribués après application du coefficient et soustraction des points de pénalité encourus après conversion en pourcentage sont déduit les pourcentages de pénalités encourus par suite d'erreurs de tracé pour obtenir le pourcentage par juge."]

{"sheet":"Cav4","index":4,"n_rows":38,"n_cols":9,"rows_kept":38,"cut":false,"hidden":false,"merged":[[34,0,34,2],[35,0,35,2],[36,0,36,2],[37,0,41,8],[9,6,10,6],[9,7,10,7],[10,0,10,1],[33,0,33,2],[9,5,10,5],[11,0,28,0],[29,0,32,0],[8,2,10,2],[8,8,10,8],[8,0,8,1],[9,0,9,1],[9,3,10,3],[9,4,10,4],[4,0,4,1],[4,7,5,7],[4,8,5,8],[5,0,5,1],[6,0,7,1],[6,2,7,2],[6,7,7,7],[6,8,7,8],[4,3,7,4],[4,5,7,6],[0,0,1,2],[0,3,1,6],[0,7,1,8],[2,0,2,2],[2,3,3,4],[2,5,3,6],[3,0,3,2]]}
[{"$f":"'Info+Engagés'!B3","v":"Quel Lieu (Dép)"},null,null,{"$f":"'Info+Engagés'!B8","v":"Para Club 3 Niveau 3"},null,null,null,{"$f":"'Info+Engagés'!B2","v":"Quelle Date ?"}]
[]
["N° de concours",null,null,"Cheval",null,"Cavalier",null,"Note d’ensemble",{"$f":"SUM(D30:H33)*2","v":0}]
[{"$f":"'Info+Engagés'!B4","v":"Quel N°"},null,null,null,null,null,null,"Points",{"$f":"SUM(D37:H37)","v":0}]
["Épreuve N°",null,{"$f":"'Info+Engagés'!B5","v":"Quel N°"},{"$f":"'Info+Engagés'!B15","v":0},null,{"$f":"'Info+Engagés'!G15","v":0},null,"% Final",{"$f":"AVERAGE(D36:H36)","v":0}]
["Piste  ",null,{"$f":"'Info+Engagés'!B6","v":"Piste ?"}]
["N° Départ BO",null,{"$f":"'Info+Engagés'!A15","v":0},null,null,null,null,"Classement"]
[]
["Imprimé le :",null,"Coéff .","Juge E","Juge H","Juge C","Juge M","Juge B","écart Max"]
[{"$f":"TODAY()","v":"2019-06-06"},null,null,{"$f":"IF(ISBLANK('Info+Engagés'!H2),\"\",('Info+Engagés'!H2))","v":""},{"$f":"IF(ISBLANK('Info+Engagés'!H3),\"\",('Info+Engagés'!H3))","v":""},{"$f":"IF(ISBLANK('Info+Engagés'!H4),\"\",('Info+Engagés'!H4))","v":"Nom du juge en C"},{"$f":"IF(ISBLANK('Info+Engagés'!H5),\"\",('Info+Engagés'!H5))","v":""},{"$f":"IF(ISBLANK('Info+Engagés'!H6),\"\",('Info+Engagés'!H6))","v":""}]
[{"$f":"NOW()","v":43622.846019328703}]
["Notation figures","Figure 1",1,null,null,null,null,null,{"$f":"MAX(D12:H12)-MIN(D12:H12)","v":0}]
[null,"Figure 2",1,null,null,null,null,null,0]
[null,"Figure 3",1,null,null,null,null,null,0]
[null,"Figure 4",1,null,null,null,null,null,0]
[null,"Figure 5",1,null,null,null,null,null,0]
[null,"Figure 6",1,null,null,null,null,null,0]
[null,"Figure 7",1,null,null,null,null,null,0]
[null,"Figure 8",1,null,null,null,null,null,0]
[null,"Figure 9",1,null,null,null,null,null,0]
[null,"Figure 10",1,null,null,null,null,null,0]
[null,"Figure 11",1,null,null,null,null,null,0]
[null,"Figure 12",1,null,null,null,null,null,0]
[null,"Figure 13",1,null,null,null,null,null,0]
[null,"Figure 14",1,null,null,null,null,null,0]
[null,"Figure 15",1,null,null,null,null,null,0]
[null,"Figure 16",1,null,null,null,null,null,0]
[null,"Figure 17",1,null,null,null,null,null,0]
[null,"Figure 18",1,null,null,null,null,null,0]
[" Ensemble","Ensemble 1",2,null,null,null,null,null,0]
[null,"Ensemble 2",2,null,null,null,null,null,0]
[null,"Ensemble 3",2,null,null,null,null,null,0]
[null,"Ensemble 4",2,null,null,null,null,null,0]
["Pénalité en points"]
["Erreure(s) de tracé "]
["% Total du juge",null,null,{"$f":"IF(ISBLANK('Info+Engagés'!H2),\"\",D37/2.6-D35)","v":""},{"$f":"IF(ISBLANK('Info+Engagés'!H3),\"\",E37/2.6-E35)","v":""},{"$f":"IF(ISBLANK('Info+Engagés'!H4),\"\",F37/2.6-F35)","v":0},{"$f":"IF(ISBLANK('Info+Engagés'!H5),\"\",G37/2.6-G35)","v":""},{"$f":"IF(ISBLANK('Info+Engagés'!H6),\"\",H37/2.6-H35)","v":""},{"$f":"MAX(D36:H36)-MIN(D36:H36)","v":0}]
["Soit en points",null,null,{"$f":"IF(ISBLANK('Info+Engagés'!H2),\"\",(SUM(D12:D29,D30*2,D31*2,D32*2,D33*2)-D34))","v":""},{"$f":"IF(ISBLANK('Info+Engagés'!H3),\"\",(SUM(E12:E29,E30*2,E31*2,E32*2,E33*2)-E34))","v":""},{"$f":"IF(ISBLANK('Info+Engagés'!H4),\"\",(SUM(F12:F29,F30*2,F31*2,F32*2,F33*2)-F34))","v":0},{"$f":"IF(ISBLANK('Info+Engagés'!H5),\"\",(SUM(G12:G29,G30*2,G31*2,G32*2,G33*2)-G34))","v":""},{"$f":"IF(ISBLANK('Info+Engagés'!H6),\"\",(SUM(H12:H29,H30*2,H31*2,H32*2,H33*2)-H34))","v":""}]
["                          Total maxi par juge = 260          1 point correspond à 0,385%              1% correspond en points à : 2,6                                                                  Les notes sont sur 10 et correspondent à la saisie informatique par l'opérateur des protocoles joints, Le total résulte de l'addition des points attribués après application du coefficient et soustraction des points de pénalité encourus après conversion en pourcentage sont déduit les pourcentages de pénalités encourus par suite d'erreurs de tracé pour obtenir le pourcentage par juge."]

{"sheet":"Cav5","index":5,"n_rows":38,"n_cols":9,"rows_kept":38,"cut":false,"hidden":false,"merged":[[34,0,34,2],[35,0,35,2],[36,0,36,2],[37,0,41,8],[9,6,10,6],[9,7,10,7],[10,0,10,1],[33,0,33,2],[9,5,10,5],[11,0,28,0],[29,0,32,0],[8,2,10,2],[8,8,10,8],[8,0,8,1],[9,0,9,1],[9,3,10,3],[9,4,10,4],[4,0,4,1],[4,7,5,7],[4,8,5,8],[5,0,5,1],[6,0,7,1],[6,2,7,2],[6,7,7,7],[6,8,7,8],[4,3,7,4],[4,5,7,6],[0,0,1,2],[0,3,1,6],[0,7,1,8],[2,0,2,2],[2,3,3,4],[2,5,3,6],[3,0,3,2]]}
[{"$f":"'Info+Engagés'!B3","v":"Quel Lieu (Dép)"},null,null,{"$f":"'Info+Engagés'!B8","v":"Para Club 3 Niveau 3"},null,null,null,{"$f":"'Info+Engagés'!B2","v":"Quelle Date ?"}]
[]
["N° de concours",null,null,"Cheval",null,"Cavalier",null,"Note d’ensemble",{"$f":"SUM(D30:H33)*2","v":0}]
[{"$f":"'Info+Engagés'!B4","v":"Quel N°"},null,null,null,null,null,null,"Points",{"$f":"SUM(D37:H37)","v":0}]
["Épreuve N°",null,{"$f":"'Info+Engagés'!B5","v":"Quel N°"},{"$f":"'Info+Engagés'!B16","v":0},null,{"$f":"'Info+Engagés'!G16","v":0},null,"% Final",{"$f":"AVERAGE(D36:H36)","v":0}]
["Piste  ",null,{"$f":"'Info+Engagés'!B6","v":"Piste ?"}]
["N° Départ BO",null,{"$f":"'Info+Engagés'!A16","v":0},null,null,null,null,"Classement"]
[]
["Imprimé le :",null,"Coéff .","Juge E","Juge H","Juge C","Juge M","Juge B","écart Max"]
[{"$f":"TODAY()","v":"2019-06-06"},null,null,{"$f":"IF(ISBLANK('Info+Engagés'!H2),\"\",('Info+Engagés'!H2))","v":""},{"$f":"IF(ISBLANK('Info+Engagés'!H3),\"\",('Info+Engagés'!H3))","v":""},{"$f":"IF(ISBLANK('Info+Engagés'!H4),\"\",('Info+Engagés'!H4))","v":"Nom du juge en C"},{"$f":"IF(ISBLANK('Info+Engagés'!H5),\"\",('Info+Engagés'!H5))","v":""},{"$f":"IF(ISBLANK('Info+Engagés'!H6),\"\",('Info+Engagés'!H6))","v":""}]
[{"$f":"NOW()","v":43622.846019328703}]
["Notation figures","Figure 1",1,null,null,null,null,null,{"$f":"MAX(D12:H12)-MIN(D12:H12)","v":0}]
[null,"Figure 2",1,null,null,null,null,null,0]
[null,"Figure 3",1,null,null,null,null,null,0]
[null,"Figure 4",1,null,null,null,null,null,0]
[null,"Figure 5",1,null,null,null,null,null,0]
[null,"Figure 6",1,null,null,null,null,null,0]
[null,"Figure 7",1,null,null,null,null,null,0]
[null,"Figure 8",1,null,null,null,null,null,0]
[null,"Figure 9",1,null,null,null,null,null,0]
[null,"Figure 10",1,null,null,null,null,null,0]
[null,"Figure 11",1,null,null,null,null,null,0]
[null,"Figure 12",1,null,null,null,null,null,0]
[null,"Figure 13",1,null,null,null,null,null,0]
[null,"Figure 14",1,null,null,null,null,null,0]
[null,"Figure 15",1,null,null,null,null,null,0]
[null,"Figure 16",1,null,null,null,null,null,0]
[null,"Figure 17",1,null,null,null,null,null,0]
[null,"Figure 18",1,null,null,null,null,null,0]
[" Ensemble","Ensemble 1",2,null,null,null,null,null,0]
[null,"Ensemble 2",2,null,null,null,null,null,0]
[null,"Ensemble 3",2,null,null,null,null,null,0]
[null,"Ensemble 4",2,null,null,null,null,null,0]
["Pénalité en points"]
["Erreure(s) de tracé "]
["% Total du juge",null,null,{"$f":"IF(ISBLANK('Info+Engagés'!H2),\"\",D37/2.6-D35)","v":""},{"$f":"IF(ISBLANK('Info+Engagés'!H3),\"\",E37/2.6-E35)","v":""},{"$f":"IF(ISBLANK('Info+Engagés'!H4),\"\",F37/2.6-F35)","v":0},{"$f":"IF(ISBLANK('Info+Engagés'!H5),\"\",G37/2.6-G35)","v":""},{"$f":"IF(ISBLANK('Info+Engagés'!H6),\"\",H37/2.6-H35)","v":""},{"$f":"MAX(D36:H36)-MIN(D36:H36)","v":0}]
["Soit en points",null,null,{"$f":"IF(ISBLANK('Info+Engagés'!H2),\"\",(SUM(D12:D29,D30*2,D31*2,D32*2,D33*2)-D34))","v":""},{"$f":"IF(ISBLANK('Info+Engagés'!H3),\"\",(SUM(E12:E29,E30*2,E31*2,E32*2,E33*2)-E34))","v":""},{"$f":"IF(ISBLANK('Info+Engagés'!H4),\"\",(SUM(F12:F29,F30*2,F31*2,F32*2,F33*2)-F34))","v":0},{"$f":"IF(ISBLANK('Info+Engagés'!H5),\"\",(SUM(G12:G29,G30*2,G31*2,G32*2,G33*2)-G34))","v":""},{"$f":"IF(ISBLANK('Info+Engagés'!H6),\"\",(SUM(H12:H29,H30*2,H31*2,H32*2,H33*2)-H34))","v":""}]
["                          Total maxi par juge = 260          1 point correspond à 0,385%              1% correspond en points à : 2,6                                                                  Les notes sont sur 10 et correspondent à la saisie informatique par l'opérateur des protocoles joints, Le total résulte de l'addition des points attribués après application du coefficient et soustraction des points de pénalité encourus après conversion en pourcentage sont déduit les pourcentages de pénalités encourus par suite d'erreurs de tracé pour obtenir le pourcentage par juge."]

{"sheet":"Cav6","index":6,"n_rows":38,"n_cols":9,"rows_kept":38,"cut":false,"hidden":false,"merged":[[34,0,34,2],[35,0,35,2],[36,0,36,2],[37,0,41,8],[9,6,10,6],[9,7,10,7],[10,0,10,1],[33,0,33,2],[9,5,10,5],[11,0,28,0],[29,0,32,0],[8,2,10,2],[8,8,10,8],[8,0,8,1],[9,0,9,1],[9,3,10,3],[9,4,10,4],[4,0,4,1],[4,7,5,7],[4,8,5,8],[5,0,5,1],[6,0,7,1],[6,2,7,2],[6,7,7,7],[6,8,7,8],[4,3,7,4],[4,5,7,6],[0,0,1,2],[0,3,1,6],[0,7,1,8],[2,0,2,2],[2,3,3,4],[2,5,3,6],[3,0,3,2]]}
[{"$f":"'Info+Engagés'!B3","v":"Quel Lieu (Dép)"},null,null,{"$f":"'Info+Engagés'!B8","v":"Para Club 3 Niveau 3"},null,null,null,{"$f":"'Info+Engagés'!B2","v":"Quelle Date ?"}]
[]
["N° de concours",null,null,"Cheval",null,"Cavalier",null,"Note d’ensemble",{"$f":"SUM(D30:H33)*2","v":0}]
[{"$f":"'Info+Engagés'!B4","v":"Quel N°"},null,null,null,null,null,null,"Points",{"$f":"SUM(D37:H37)","v":0}]
["Épreuve N°",null,{"$f":"'Info+Engagés'!B5","v":"Quel N°"},{"$f":"'Info+Engagés'!B17","v":0},null,{"$f":"'Info+Engagés'!G17","v":0},null,"% Final",{"$f":"AVERAGE(D36:H36)","v":0}]
["Piste  ",null,{"$f":"'Info+Engagés'!B6","v":"Piste ?"}]
["N° Départ BO",null,{"$f":"'Info+Engagés'!A17","v":0},null,null,null,null,"Classement"]
[]
["Imprimé le :",null,"Coéff .","Juge E","Juge H","Juge C","Juge M","Juge B","écart Max"]
[{"$f":"TODAY()","v":"2019-06-06"},null,null,{"$f":"IF(ISBLANK('Info+Engagés'!H2),\"\",('Info+Engagés'!H2))","v":""},{"$f":"IF(ISBLANK('Info+Engagés'!H3),\"\",('Info+Engagés'!H3))","v":""},{"$f":"IF(ISBLANK('Info+Engagés'!H4),\"\",('Info+Engagés'!H4))","v":"Nom du juge en C"},{"$f":"IF(ISBLANK('Info+Engagés'!H5),\"\",('Info+Engagés'!H5))","v":""},{"$f":"IF(ISBLANK('Info+Engagés'!H6),\"\",('Info+Engagés'!H6))","v":""}]
[{"$f":"NOW()","v":43622.846019328703}]
["Notation figures","Figure 1",1,null,null,null,null,null,{"$f":"MAX(D12:H12)-MIN(D12:H12)","v":0}]
[null,"Figure 2",1,null,null,null,null,null,0]
[null,"Figure 3",1,null,null,null,null,null,0]
[null,"Figure 4",1,null,null,null,null,null,0]
[null,"Figure 5",1,null,null,null,null,null,0]
[null,"Figure 6",1,null,null,null,null,null,0]
[null,"Figure 7",1,null,null,null,null,null,0]
[null,"Figure 8",1,null,null,null,null,null,0]
[null,"Figure 9",1,null,null,null,null,null,0]
[null,"Figure 10",1,null,null,null,null,null,0]
[null,"Figure 11",1,null,null,null,null,null,0]
[null,"Figure 12",1,null,null,null,null,null,0]
[null,"Figure 13",1,null,null,null,null,null,0]
[null,"Figure 14",1,null,null,null,null,null,0]
[null,"Figure 15",1,null,null,null,null,null,0]
[null,"Figure 16",1,null,null,null,null,null,0]
[null,"Figure 17",1,null,null,null,null,null,0]
[null,"Figure 18",1,null,null,null,null,null,0]
[" Ensemble","Ensemble 1",2,null,null,null,null,null,0]
[null,"Ensemble 2",2,null,null,null,null,null,0]
[null,"Ensemble 3",2,null,null,null,null,null,0]
[null,"Ensemble 4",2,null,null,null,null,null,0]
["Pénalité en points"]
["Erreure(s) de tracé "]
["% Total du juge",null,null,{"$f":"IF(ISBLANK('Info+Engagés'!H2),\"\",D37/2.6-D35)","v":""},{"$f":"IF(ISBLANK('Info+Engagés'!H3),\"\",E37/2.6-E35)","v":""},{"$f":"IF(ISBLANK('Info+Engagés'!H4),\"\",F37/2.6-F35)","v":0},{"$f":"IF(ISBLANK('Info+Engagés'!H5),\"\",G37/2.6-G35)","v":""},{"$f":"IF(ISBLANK('Info+Engagés'!H6),\"\",H37/2.6-H35)","v":""},{"$f":"MAX(D36:H36)-MIN(D36:H36)","v":0}]
["Soit en points",null,null,{"$f":"IF(ISBLANK('Info+Engagés'!H2),\"\",(SUM(D12:D29,D30*2,D31*2,D32*2,D33*2)-D34))","v":""},{"$f":"IF(ISBLANK('Info+Engagés'!H3),\"\",(SUM(E12:E29,E30*2,E31*2,E32*2,E33*2)-E34))","v":""},{"$f":"IF(ISBLANK('Info+Engagés'!H4),\"\",(SUM(F12:F29,F30*2,F31*2,F32*2,F33*2)-F34))","v":0},{"$f":"IF(ISBLANK('Info+Engagés'!H5),\"\",(SUM(G12:G29,G30*2,G31*2,G32*2,G33*2)-G34))","v":""},{"$f":"IF(ISBLANK('Info+Engagés'!H6),\"\",(SUM(H12:H29,H30*2,H31*2,H32*2,H33*2)-H34))","v":""}]
["                          Total maxi par juge = 260          1 point correspond à 0,385%              1% correspond en points à : 2,6                                                                  Les notes sont sur 10 et correspondent à la saisie informatique par l'opérateur des protocoles joints, Le total résulte de l'addition des points attribués après application du coefficient et soustraction des points de pénalité encourus après conversion en pourcentage sont déduit les pourcentages de pénalités encourus par suite d'erreurs de tracé pour obtenir le pourcentage par juge."]

{"sheet":"Cav7","index":7,"n_rows":38,"n_cols":9,"rows_kept":38,"cut":false,"hidden":false,"merged":[[34,0,34,2],[35,0,35,2],[36,0,36,2],[37,0,41,8],[9,6,10,6],[9,7,10,7],[10,0,10,1],[33,0,33,2],[9,5,10,5],[11,0,28,0],[29,0,32,0],[8,2,10,2],[8,8,10,8],[8,0,8,1],[9,0,9,1],[9,3,10,3],[9,4,10,4],[4,0,4,1],[4,7,5,7],[4,8,5,8],[5,0,5,1],[6,0,7,1],[6,2,7,2],[6,7,7,7],[6,8,7,8],[4,3,7,4],[4,5,7,6],[0,0,1,2],[0,3,1,6],[0,7,1,8],[2,0,2,2],[2,3,3,4],[2,5,3,6],[3,0,3,2]]}
[{"$f":"'Info+Engagés'!B3","v":"Quel Lieu (Dép)"},null,null,{"$f":"'Info+Engagés'!B8","v":"Para Club 3 Niveau 3"},null,null,null,{"$f":"'Info+Engagés'!B2","v":"Quelle Date ?"}]
[]
["N° de concours",null,null,"Cheval",null,"Cavalier",null,"Note d’ensemble",{"$f":"SUM(D30:H33)*2","v":0}]
[{"$f":"'Info+Engagés'!B4","v":"Quel N°"},null,null,null,null,null,null,"Points",{"$f":"SUM(D37:H37)","v":0}]
["Épreuve N°",null,{"$f":"'Info+Engagés'!B5","v":"Quel N°"},{"$f":"'Info+Engagés'!B18","v":0},null,{"$f":"'Info+Engagés'!G18","v":0},null,"% Final",{"$f":"AVERAGE(D36:H36)","v":0}]
["Piste  ",null,{"$f":"'Info+Engagés'!B6","v":"Piste ?"}]
["N° Départ BO",null,{"$f":"'Info+Engagés'!A18","v":0},null,null,null,null,"Classement"]
[]
["Imprimé le :",null,"Coéff .","Juge E","Juge H","Juge C","Juge M","Juge B","écart Max"]
[{"$f":"TODAY()","v":"2019-06-06"},null,null,{"$f":"IF(ISBLANK('Info+Engagés'!H2),\"\",('Info+Engagés'!H2))","v":""},{"$f":"IF(ISBLANK('Info+Engagés'!H3),\"\",('Info+Engagés'!H3))","v":""},{"$f":"IF(ISBLANK('Info+Engagés'!H4),\"\",('Info+Engagés'!H4))","v":"Nom du juge en C"},{"$f":"IF(ISBLANK('Info+Engagés'!H5),\"\",('Info+Engagés'!H5))","v":""},{"$f":"IF(ISBLANK('Info+Engagés'!H6),\"\",('Info+Engagés'!H6))","v":""}]
[{"$f":"NOW()","v":43622.846019328703}]
["Notation figures","Figure 1",1,null,null,null,null,null,{"$f":"MAX(D12:H12)-MIN(D12:H12)","v":0}]
[null,"Figure 2",1,null,null,null,null,null,0]
[null,"Figure 3",1,null,null,null,null,null,0]
[null,"Figure 4",1,null,null,null,null,null,0]
[null,"Figure 5",1,null,null,null,null,null,0]
[null,"Figure 6",1,null,null,null,null,null,0]
[null,"Figure 7",1,null,null,null,null,null,0]
[null,"Figure 8",1,null,null,null,null,null,0]
[null,"Figure 9",1,null,null,null,null,null,0]
[null,"Figure 10",1,null,null,null,null,null,0]
[null,"Figure 11",1,null,null,null,null,null,0]
[null,"Figure 12",1,null,null,null,null,null,0]
[null,"Figure 13",1,null,null,null,null,null,0]
[null,"Figure 14",1,null,null,null,null,null,0]
[null,"Figure 15",1,null,null,null,null,null,0]
[null,"Figure 16",1,null,null,null,null,null,0]
[null,"Figure 17",1,null,null,null,null,null,0]
[null,"Figure 18",1,null,null,null,null,null,0]
[" Ensemble","Ensemble 1",2,null,null,null,null,null,0]
[null,"Ensemble 2",2,null,null,null,null,null,0]
[null,"Ensemble 3",2,null,null,null,null,null,0]
[null,"Ensemble 4",2,null,null,null,null,null,0]
["Pénalité en points"]
["Erreure(s) de tracé "]
["% Total du juge",null,null,{"$f":"IF(ISBLANK('Info+Engagés'!H2),\"\",D37/2.6-D35)","v":""},{"$f":"IF(ISBLANK('Info+Engagés'!H3),\"\",E37/2.6-E35)","v":""},{"$f":"IF(ISBLANK('Info+Engagés'!H4),\"\",F37/2.6-F35)","v":0},{"$f":"IF(ISBLANK('Info+Engagés'!H5),\"\",G37/2.6-G35)","v":""},{"$f":"IF(ISBLANK('Info+Engagés'!H6),\"\",H37/2.6-H35)","v":""},{"$f":"MAX(D36:H36)-MIN(D36:H36)","v":0}]
["Soit en points",null,null,{"$f":"IF(ISBLANK('Info+Engagés'!H2),\"\",(SUM(D12:D29,D30*2,D31*2,D32*2,D33*2)-D34))","v":""},{"$f":"IF(ISBLANK('Info+Engagés'!H3),\"\",(SUM(E12:E29,E30*2,E31*2,E32*2,E33*2)-E34))","v":""},{"$f":"IF(ISBLANK('Info+Engagés'!H4),\"\",(SUM(F12:F29,F30*2,F31*2,F32*2,F33*2)-F34))","v":0},{"$f":"IF(ISBLANK('Info+Engagés'!H5),\"\",(SUM(G12:G29,G30*2,G31*2,G32*2,G33*2)-G34))","v":""},{"$f":"IF(ISBLANK('Info+Engagés'!H6),\"\",(SUM(H12:H29,H30*2,H31*2,H32*2,H33*2)-H34))","v":""}]
["                          Total maxi par juge = 260          1 point correspond à 0,385%              1% correspond en points à : 2,6                                                                  Les notes sont sur 10 et correspondent à la saisie informatique par l'opérateur des protocoles joints, Le total résulte de l'addition des points attribués après application du coefficient et soustraction des points de pénalité encourus après conversion en pourcentage sont déduit les pourcentages de pénalités encourus par suite d'erreurs de tracé pour obtenir le pourcentage par juge."]

{"sheet":"Cav8","index":8,"n_rows":38,"n_cols":9,"rows_kept":38,"cut":false,"hidden":false,"merged":[[34,0,34,2],[35,0,35,2],[36,0,36,2],[37,0,41,8],[9,6,10,6],[9,7,10,7],[10,0,10,1],[33,0,33,2],[9,5,10,5],[11,0,28,0],[29,0,32,0],[8,2,10,2],[8,8,10,8],[8,0,8,1],[9,0,9,1],[9,3,10,3],[9,4,10,4],[4,0,4,1],[4,7,5,7],[4,8,5,8],[5,0,5,1],[6,0,7,1],[6,2,7,2],[6,7,7,7],[6,8,7,8],[4,3,7,4],[4,5,7,6],[0,0,1,2],[0,3,1,6],[0,7,1,8],[2,0,2,2],[2,3,3,4],[2,5,3,6],[3,0,3,2]]}
[{"$f":"'Info+Engagés'!B3","v":"Quel Lieu (Dép)"},null,null,{"$f":"'Info+Engagés'!B8","v":"Para Club 3 Niveau 3"},null,null,null,{"$f":"'Info+Engagés'!B2","v":"Quelle Date ?"}]
[]
["N° de concours",null,null,"Cheval",null,"Cavalier",null,"Note d’ensemble",{"$f":"SUM(D30:H33)*2","v":0}]
[{"$f":"'Info+Engagés'!B4","v":"Quel N°"},null,null,null,null,null,null,"Points",{"$f":"SUM(D37:H37)","v":0}]
["Épreuve N°",null,{"$f":"'Info+Engagés'!B5","v":"Quel N°"},{"$f":"'Info+Engagés'!B19","v":0},null,{"$f":"'Info+Engagés'!G19","v":0},null,"% Final",{"$f":"AVERAGE(D36:H36)","v":0}]
["Piste  ",null,{"$f":"'Info+Engagés'!B6","v":"Piste ?"}]
["N° Départ BO",null,{"$f":"'Info+Engagés'!A19","v":0},null,null,null,null,"Classement"]
[]
["Imprimé le :",null,"Coéff .","Juge E","Juge H","Juge C","Juge M","Juge B","écart Max"]
[{"$f":"TODAY()","v":"2019-06-06"},null,null,{"$f":"IF(ISBLANK('Info+Engagés'!H2),\"\",('Info+Engagés'!H2))","v":""},{"$f":"IF(ISBLANK('Info+Engagés'!H3),\"\",('Info+Engagés'!H3))","v":""},{"$f":"IF(ISBLANK('Info+Engagés'!H4),\"\",('Info+Engagés'!H4))","v":"Nom du juge en C"},{"$f":"IF(ISBLANK('Info+Engagés'!H5),\"\",('Info+Engagés'!H5))","v":""},{"$f":"IF(ISBLANK('Info+Engagés'!H6),\"\",('Info+Engagés'!H6))","v":""}]
[{"$f":"NOW()","v":43622.846019328703}]
["Notation figures","Figure 1",1,null,null,null,null,null,{"$f":"MAX(D12:H12)-MIN(D12:H12)","v":0}]
[null,"Figure 2",1,null,null,null,null,null,0]
[null,"Figure 3",1,null,null,null,null,null,0]
[null,"Figure 4",1,null,null,null,null,null,0]
[null,"Figure 5",1,null,null,null,null,null,0]
[null,"Figure 6",1,null,null,null,null,null,0]
[null,"Figure 7",1,null,null,null,null,null,0]
[null,"Figure 8",1,null,null,null,null,null,0]
[null,"Figure 9",1,null,null,null,null,null,0]
[null,"Figure 10",1,null,null,null,null,null,0]
[null,"Figure 11",1,null,null,null,null,null,0]
[null,"Figure 12",1,null,null,null,null,null,0]
[null,"Figure 13",1,null,null,null,null,null,0]
[null,"Figure 14",1,null,null,null,null,null,0]
[null,"Figure 15",1,null,null,null,null,null,0]
[null,"Figure 16",1,null,null,null,null,null,0]
[null,"Figure 17",1,null,null,null,null,null,0]
[null,"Figure 18",1,null,null,null,null,null,0]
[" Ensemble","Ensemble 1",2,null,null,null,null,null,0]
[null,"Ensemble 2",2,null,null,null,null,null,0]
[null,"Ensemble 3",2,null,null,null,null,null,0]
[null,"Ensemble 4",2,null,null,null,null,null,0]
["Pénalité en points"]
["Erreure(s) de tracé "]
["% Total du juge",null,null,{"$f":"IF(ISBLANK('Info+Engagés'!H2),\"\",D37/2.6-D35)","v":""},{"$f":"IF(ISBLANK('Info+Engagés'!H3),\"\",E37/2.6-E35)","v":""},{"$f":"IF(ISBLANK('Info+Engagés'!H4),\"\",F37/2.6-F35)","v":0},{"$f":"IF(ISBLANK('Info+Engagés'!H5),\"\",G37/2.6-G35)","v":""},{"$f":"IF(ISBLANK('Info+Engagés'!H6),\"\",H37/2.6-H35)","v":""},{"$f":"MAX(D36:H36)-MIN(D36:H36)","v":0}]
["Soit en points",null,null,{"$f":"IF(ISBLANK('Info+Engagés'!H2),\"\",(SUM(D12:D29,D30*2,D31*2,D32*2,D33*2)-D34))","v":""},{"$f":"IF(ISBLANK('Info+Engagés'!H3),\"\",(SUM(E12:E29,E30*2,E31*2,E32*2,E33*2)-E34))","v":""},{"$f":"IF(ISBLANK('Info+Engagés'!H4),\"\",(SUM(F12:F29,F30*2,F31*2,F32*2,F33*2)-F34))","v":0},{"$f":"IF(ISBLANK('Info+Engagés'!H5),\"\",(SUM(G12:G29,G30*2,G31*2,G32*2,G33*2)-G34))","v":""},{"$f":"IF(ISBLANK('Info+Engagés'!H6),\"\",(SUM(H12:H29,H30*2,H31*2,H32*2,H33*2)-H34))","v":""}]
["                          Total maxi par juge = 260          1 point correspond à 0,385%              1% correspond en points à : 2,6                                                                  Les notes sont sur 10 et correspondent à la saisie informatique par l'opérateur des protocoles joints, Le total résulte de l'addition des points attribués après application du coefficient et soustraction des points de pénalité encourus après conversion en pourcentage sont déduit les pourcentages de pénalités encourus par suite d'erreurs de tracé pour obtenir le pourcentage par juge."]

{"sheet":"Cav9","index":9,"n_rows":38,"n_cols":9,"rows_kept":38,"cut":false,"hidden":false,"merged":[[34,0,34,2],[35,0,35,2],[36,0,36,2],[37,0,41,8],[9,6,10,6],[9,7,10,7],[10,0,10,1],[33,0,33,2],[9,5,10,5],[11,0,28,0],[29,0,32,0],[8,2,10,2],[8,8,10,8],[8,0,8,1],[9,0,9,1],[9,3,10,3],[9,4,10,4],[4,0,4,1],[4,7,5,7],[4,8,5,8],[5,0,5,1],[6,0,7,1],[6,2,7,2],[6,7,7,7],[6,8,7,8],[4,3,7,4],[4,5,7,6],[0,0,1,2],[0,3,1,6],[0,7,1,8],[2,0,2,2],[2,3,3,4],[2,5,3,6],[3,0,3,2]]}
[{"$f":"'Info+Engagés'!B3","v":"Quel Lieu (Dép)"},null,null,{"$f":"'Info+Engagés'!B8","v":"Para Club 3 Niveau 3"},null,null,null,{"$f":"'Info+Engagés'!B2","v":"Quelle Date ?"}]
[]
["N° de concours",null,null,"Cheval",null,"Cavalier",null,"Note d’ensemble",{"$f":"SUM(D30:H33)*2","v":0}]
[{"$f":"'Info+Engagés'!B4","v":"Quel N°"},null,null,null,null,null,null,"Points",{"$f":"SUM(D37:H37)","v":0}]
["Épreuve N°",null,{"$f":"'Info+Engagés'!B5","v":"Quel N°"},{"$f":"'Info+Engagés'!B20","v":0},null,{"$f":"'Info+Engagés'!G20","v":0},null,"% Final",{"$f":"AVERAGE(D36:H36)","v":0}]
["Piste  ",null,{"$f":"'Info+Engagés'!B6","v":"Piste ?"}]
["N° Départ BO",null,{"$f":"'Info+Engagés'!A20","v":0},null,null,null,null,"Classement"]
[]
["Imprimé le :",null,"Coéff .","Juge E","Juge H","Juge C","Juge M","Juge B","écart Max"]
[{"$f":"TODAY()","v":"2019-06-06"},null,null,{"$f":"IF(ISBLANK('Info+Engagés'!H2),\"\",('Info+Engagés'!H2))","v":""},{"$f":"IF(ISBLANK('Info+Engagés'!H3),\"\",('Info+Engagés'!H3))","v":""},{"$f":"IF(ISBLANK('Info+Engagés'!H4),\"\",('Info+Engagés'!H4))","v":"Nom du juge en C"},{"$f":"IF(ISBLANK('Info+Engagés'!H5),\"\",('Info+Engagés'!H5))","v":""},{"$f":"IF(ISBLANK('Info+Engagés'!H6),\"\",('Info+Engagés'!H6))","v":""}]
[{"$f":"NOW()","v":43622.846019328703}]
["Notation figures","Figure 1",1,null,null,null,null,null,{"$f":"MAX(D12:H12)-MIN(D12:H12)","v":0}]
[null,"Figure 2",1,null,null,null,null,null,0]
[null,"Figure 3",1,null,null,null,null,null,0]
[null,"Figure 4",1,null,null,null,null,null,0]
[null,"Figure 5",1,null,null,null,null,null,0]
[null,"Figure 6",1,null,null,null,null,null,0]
[null,"Figure 7",1,null,null,null,null,null,0]
[null,"Figure 8",1,null,null,null,null,null,0]
[null,"Figure 9",1,null,null,null,null,null,0]
[null,"Figure 10",1,null,null,null,null,null,0]
[null,"Figure 11",1,null,null,null,null,null,0]
[null,"Figure 12",1,null,null,null,null,null,0]
[null,"Figure 13",1,null,null,null,null,null,0]
[null,"Figure 14",1,null,null,null,null,null,0]
[null,"Figure 15",1,null,null,null,null,null,0]
[null,"Figure 16",1,null,null,null,null,null,0]
[null,"Figure 17",1,null,null,null,null,null,0]
[null,"Figure 18",1,null,null,null,null,null,0]
[" Ensemble","Ensemble 1",2,null,null,null,null,null,0]
[null,"Ensemble 2",2,null,null,null,null,null,0]
[null,"Ensemble 3",2,null,null,null,null,null,0]
[null,"Ensemble 4",2,null,null,null,null,null,0]
["Pénalité en points"]
["Erreure(s) de tracé "]
["% Total du juge",null,null,{"$f":"IF(ISBLANK('Info+Engagés'!H2),\"\",D37/2.6-D35)","v":""},{"$f":"IF(ISBLANK('Info+Engagés'!H3),\"\",E37/2.6-E35)","v":""},{"$f":"IF(ISBLANK('Info+Engagés'!H4),\"\",F37/2.6-F35)","v":0},{"$f":"IF(ISBLANK('Info+Engagés'!H5),\"\",G37/2.6-G35)","v":""},{"$f":"IF(ISBLANK('Info+Engagés'!H6),\"\",H37/2.6-H35)","v":""},{"$f":"MAX(D36:H36)-MIN(D36:H36)","v":0}]
["Soit en points",null,null,{"$f":"IF(ISBLANK('Info+Engagés'!H2),\"\",(SUM(D12:D29,D30*2,D31*2,D32*2,D33*2)-D34))","v":""},{"$f":"IF(ISBLANK('Info+Engagés'!H3),\"\",(SUM(E12:E29,E30*2,E31*2,E32*2,E33*2)-E34))","v":""},{"$f":"IF(ISBLANK('Info+Engagés'!H4),\"\",(SUM(F12:F29,F30*2,F31*2,F32*2,F33*2)-F34))","v":0},{"$f":"IF(ISBLANK('Info+Engagés'!H5),\"\",(SUM(G12:G29,G30*2,G31*2,G32*2,G33*2)-G34))","v":""},{"$f":"IF(ISBLANK('Info+Engagés'!H6),\"\",(SUM(H12:H29,H30*2,H31*2,H32*2,H33*2)-H34))","v":""}]
["                          Total maxi par juge = 260          1 point correspond à 0,385%              1% correspond en points à : 2,6                                                                  Les notes sont sur 10 et correspondent à la saisie informatique par l'opérateur des protocoles joints, Le total résulte de l'addition des points attribués après application du coefficient et soustraction des points de pénalité encourus après conversion en pourcentage sont déduit les pourcentages de pénalités encourus par suite d'erreurs de tracé pour obtenir le pourcentage par juge."]

{"sheet":"Cav10","index":10,"n_rows":38,"n_cols":9,"rows_kept":38,"cut":false,"hidden":false,"merged":[[34,0,34,2],[35,0,35,2],[36,0,36,2],[37,0,41,8],[9,6,10,6],[9,7,10,7],[10,0,10,1],[33,0,33,2],[9,5,10,5],[11,0,28,0],[29,0,32,0],[8,2,10,2],[8,8,10,8],[8,0,8,1],[9,0,9,1],[9,3,10,3],[9,4,10,4],[4,0,4,1],[4,7,5,7],[4,8,5,8],[5,0,5,1],[6,0,7,1],[6,2,7,2],[6,7,7,7],[6,8,7,8],[4,3,7,4],[4,5,7,6],[0,0,1,2],[0,3,1,6],[0,7,1,8],[2,0,2,2],[2,3,3,4],[2,5,3,6],[3,0,3,2]]}
[{"$f":"'Info+Engagés'!B3","v":"Quel Lieu (Dép)"},null,null,{"$f":"'Info+Engagés'!B8","v":"Para Club 3 Niveau 3"},null,null,null,{"$f":"'Info+Engagés'!B2","v":"Quelle Date ?"}]
[]
["N° de concours",null,null,"Cheval",null,"Cavalier",null,"Note d’ensemble",{"$f":"SUM(D30:H33)*2","v":0}]
[{"$f":"'Info+Engagés'!B4","v":"Quel N°"},null,null,null,null,null,null,"Points",{"$f":"SUM(D37:H37)","v":0}]
["Épreuve N°",null,{"$f":"'Info+Engagés'!B5","v":"Quel N°"},{"$f":"'Info+Engagés'!B21","v":0},null,{"$f":"'Info+Engagés'!G21","v":0},null,"% Final",{"$f":"AVERAGE(D36:H36)","v":0}]
["Piste  ",null,{"$f":"'Info+Engagés'!B6","v":"Piste ?"}]
["N° Départ BO",null,{"$f":"'Info+Engagés'!A21","v":0},null,null,null,null,"Classement"]
[]
["Imprimé le :",null,"Coéff .","Juge E","Juge H","Juge C","Juge M","Juge B","écart Max"]
[{"$f":"TODAY()","v":"2019-06-06"},null,null,{"$f":"IF(ISBLANK('Info+Engagés'!H2),\"\",('Info+Engagés'!H2))","v":""},{"$f":"IF(ISBLANK('Info+Engagés'!H3),\"\",('Info+Engagés'!H3))","v":""},{"$f":"IF(ISBLANK('Info+Engagés'!H4),\"\",('Info+Engagés'!H4))","v":"Nom du juge en C"},{"$f":"IF(ISBLANK('Info+Engagés'!H5),\"\",('Info+Engagés'!H5))","v":""},{"$f":"IF(ISBLANK('Info+Engagés'!H6),\"\",('Info+Engagés'!H6))","v":""}]
[{"$f":"NOW()","v":43622.846019328703}]
["Notation figures","Figure 1",1,null,null,null,null,null,{"$f":"MAX(D12:H12)-MIN(D12:H12)","v":0}]
[null,"Figure 2",1,null,null,null,null,null,0]
[null,"Figure 3",1,null,null,null,null,null,0]
[null,"Figure 4",1,null,null,null,null,null,0]
[null,"Figure 5",1,null,null,null,null,null,0]
[null,"Figure 6",1,null,null,null,null,null,0]
[null,"Figure 7",1,null,null,null,null,null,0]
[null,"Figure 8",1,null,null,null,null,null,0]
[null,"Figure 9",1,null,null,null,null,null,0]
[null,"Figure 10",1,null,null,null,null,null,0]
[null,"Figure 11",1,null,null,null,null,null,0]
[null,"Figure 12",1,null,null,null,null,null,0]
[null,"Figure 13",1,null,null,null,null,null,0]
[null,"Figure 14",1,null,null,null,null,null,0]
[null,"Figure 15",1,null,null,null,null,null,0]
[null,"Figure 16",1,null,null,null,null,null,0]
[null,"Figure 17",1,null,null,null,null,null,0]
[null,"Figure 18",1,null,null,null,null,null,0]
[" Ensemble","Ensemble 1",2,null,null,null,null,null,0]
[null,"Ensemble 2",2,null,null,null,null,null,0]
[null,"Ensemble 3",2,null,null,null,null,null,0]
[null,"Ensemble 4",2,null,null,null,null,null,0]
["Pénalité en points"]
["Erreure(s) de tracé "]
["% Total du juge",null,null,{"$f":"IF(ISBLANK('Info+Engagés'!H2),\"\",D37/2.6-D35)","v":""},{"$f":"IF(ISBLANK('Info+Engagés'!H3),\"\",E37/2.6-E35)","v":""},{"$f":"IF(ISBLANK('Info+Engagés'!H4),\"\",F37/2.6-F35)","v":0},{"$f":"IF(ISBLANK('Info+Engagés'!H5),\"\",G37/2.6-G35)","v":""},{"$f":"IF(ISBLANK('Info+Engagés'!H6),\"\",H37/2.6-H35)","v":""},{"$f":"MAX(D36:H36)-MIN(D36:H36)","v":0}]
["Soit en points",null,null,{"$f":"IF(ISBLANK('Info+Engagés'!H2),\"\",(SUM(D12:D29,D30*2,D31*2,D32*2,D33*2)-D34))","v":""},{"$f":"IF(ISBLANK('Info+Engagés'!H3),\"\",(SUM(E12:E29,E30*2,E31*2,E32*2,E33*2)-E34))","v":""},{"$f":"IF(ISBLANK('Info+Engagés'!H4),\"\",(SUM(F12:F29,F30*2,F31*2,F32*2,F33*2)-F34))","v":0},{"$f":"IF(ISBLANK('Info+Engagés'!H5),\"\",(SUM(G12:G29,G30*2,G31*2,G32*2,G33*2)-G34))","v":""},{"$f":"IF(ISBLANK('Info+Engagés'!H6),\"\",(SUM(H12:H29,H30*2,H31*2,H32*2,H33*2)-H34))","v":""}]
["                          Total maxi par juge = 260          1 point correspond à 0,385%              1% correspond en points à : 2,6                                                                  Les notes sont sur 10 et correspondent à la saisie informatique par l'opérateur des protocoles joints, Le total résulte de l'addition des points attribués après application du coefficient et soustraction des points de pénalité encourus après conversion en pourcentage sont déduit les pourcentages de pénalités encourus par suite d'erreurs de tracé pour obtenir le pourcentage par juge."]

{"sheet":"Cav11","index":11,"n_rows":38,"n_cols":9,"rows_kept":38,"cut":false,"hidden":false,"merged":[[34,0,34,2],[35,0,35,2],[36,0,36,2],[37,0,41,8],[9,6,10,6],[9,7,10,7],[10,0,10,1],[33,0,33,2],[9,5,10,5],[11,0,28,0],[29,0,32,0],[8,2,10,2],[8,8,10,8],[8,0,8,1],[9,0,9,1],[9,3,10,3],[9,4,10,4],[4,0,4,1],[4,7,5,7],[4,8,5,8],[5,0,5,1],[6,0,7,1],[6,2,7,2],[6,7,7,7],[6,8,7,8],[4,3,7,4],[4,5,7,6],[0,0,1,2],[0,3,1,6],[0,7,1,8],[2,0,2,2],[2,3,3,4],[2,5,3,6],[3,0,3,2]]}
[{"$f":"'Info+Engagés'!B3","v":"Quel Lieu (Dép)"},null,null,{"$f":"'Info+Engagés'!B8","v":"Para Club 3 Niveau 3"},null,null,null,{"$f":"'Info+Engagés'!B2","v":"Quelle Date ?"}]
[]
["N° de concours",null,null,"Cheval",null,"Cavalier",null,"Note d’ensemble",{"$f":"SUM(D30:H33)*2","v":0}]
[{"$f":"'Info+Engagés'!B4","v":"Quel N°"},null,null,null,null,null,null,"Points",{"$f":"SUM(D37:H37)","v":0}]
["Épreuve N°",null,{"$f":"'Info+Engagés'!B5","v":"Quel N°"},{"$f":"'Info+Engagés'!B22","v":0},null,{"$f":"'Info+Engagés'!G22","v":0},null,"% Final",{"$f":"AVERAGE(D36:H36)","v":0}]
["Piste  ",null,{"$f":"'Info+Engagés'!B6","v":"Piste ?"}]
["N° Départ BO",null,{"$f":"'Info+Engagés'!A22","v":0},null,null,null,null,"Classement"]
[]
["Imprimé le :",null,"Coéff .","Juge E","Juge H","Juge C","Juge M","Juge B","écart Max"]
[{"$f":"TODAY()","v":"2019-06-06"},null,null,{"$f":"IF(ISBLANK('Info+Engagés'!H2),\"\",('Info+Engagés'!H2))","v":""},{"$f":"IF(ISBLANK('Info+Engagés'!H3),\"\",('Info+Engagés'!H3))","v":""},{"$f":"IF(ISBLANK('Info+Engagés'!H4),\"\",('Info+Engagés'!H4))","v":"Nom du juge en C"},{"$f":"IF(ISBLANK('Info+Engagés'!H5),\"\",('Info+Engagés'!H5))","v":""},{"$f":"IF(ISBLANK('Info+Engagés'!H6),\"\",('Info+Engagés'!H6))","v":""}]
[{"$f":"NOW()","v":43622.846019328703}]
["Notation figures","Figure 1",1,null,null,null,null,null,{"$f":"MAX(D12:H12)-MIN(D12:H12)","v":0}]
[null,"Figure 2",1,null,null,null,null,null,0]
[null,"Figure 3",1,null,null,null,null,null,0]
[null,"Figure 4",1,null,null,null,null,null,0]
[null,"Figure 5",1,null,null,null,null,null,0]
[null,"Figure 6",1,null,null,null,null,null,0]
[null,"Figure 7",1,null,null,null,null,null,0]
[null,"Figure 8",1,null,null,null,null,null,0]
[null,"Figure 9",1,null,null,null,null,null,0]
[null,"Figure 10",1,null,null,null,null,null,0]
[null,"Figure 11",1,null,null,null,null,null,0]
[null,"Figure 12",1,null,null,null,null,null,0]
[null,"Figure 13",1,null,null,null,null,null,0]
[null,"Figure 14",1,null,null,null,null,null,0]
[null,"Figure 15",1,null,null,null,null,null,0]
[null,"Figure 16",1,null,null,null,null,null,0]
[null,"Figure 17",1,null,null,null,null,null,0]
[null,"Figure 18",1,null,null,null,null,null,0]
[" Ensemble","Ensemble 1",2,null,null,null,null,null,0]
[null,"Ensemble 2",2,null,null,null,null,null,0]
[null,"Ensemble 3",2,null,null,null,null,null,0]
[null,"Ensemble 4",2,null,null,null,null,null,0]
["Pénalité en points"]
["Erreure(s) de tracé "]
["% Total du juge",null,null,{"$f":"IF(ISBLANK('Info+Engagés'!H2),\"\",D37/2.6-D35)","v":""},{"$f":"IF(ISBLANK('Info+Engagés'!H3),\"\",E37/2.6-E35)","v":""},{"$f":"IF(ISBLANK('Info+Engagés'!H4),\"\",F37/2.6-F35)","v":0},{"$f":"IF(ISBLANK('Info+Engagés'!H5),\"\",G37/2.6-G35)","v":""},{"$f":"IF(ISBLANK('Info+Engagés'!H6),\"\",H37/2.6-H35)","v":""},{"$f":"MAX(D36:H36)-MIN(D36:H36)","v":0}]
["Soit en points",null,null,{"$f":"IF(ISBLANK('Info+Engagés'!H2),\"\",(SUM(D12:D29,D30*2,D31*2,D32*2,D33*2)-D34))","v":""},{"$f":"IF(ISBLANK('Info+Engagés'!H3),\"\",(SUM(E12:E29,E30*2,E31*2,E32*2,E33*2)-E34))","v":""},{"$f":"IF(ISBLANK('Info+Engagés'!H4),\"\",(SUM(F12:F29,F30*2,F31*2,F32*2,F33*2)-F34))","v":0},{"$f":"IF(ISBLANK('Info+Engagés'!H5),\"\",(SUM(G12:G29,G30*2,G31*2,G32*2,G33*2)-G34))","v":""},{"$f":"IF(ISBLANK('Info+Engagés'!H6),\"\",(SUM(H12:H29,H30*2,H31*2,H32*2,H33*2)-H34))","v":""}]
["                          Total maxi par juge = 260          1 point correspond à 0,385%              1% correspond en points à : 2,6                                                                  Les notes sont sur 10 et correspondent à la saisie informatique par l'opérateur des protocoles joints, Le total résulte de l'addition des points attribués après application du coefficient et soustraction des points de pénalité encourus après conversion en pourcentage sont déduit les pourcentages de pénalités encourus par suite d'erreurs de tracé pour obtenir le pourcentage par juge."]

{"sheet":"Cav12","index":12,"n_rows":38,"n_cols":9,"rows_kept":38,"cut":false,"hidden":false,"merged":[[34,0,34,2],[35,0,35,2],[36,0,36,2],[37,0,41,8],[9,6,10,6],[9,7,10,7],[10,0,10,1],[33,0,33,2],[9,5,10,5],[11,0,28,0],[29,0,32,0],[8,2,10,2],[8,8,10,8],[8,0,8,1],[9,0,9,1],[9,3,10,3],[9,4,10,4],[4,0,4,1],[4,7,5,7],[4,8,5,8],[5,0,5,1],[6,0,7,1],[6,2,7,2],[6,7,7,7],[6,8,7,8],[4,3,7,4],[4,5,7,6],[0,0,1,2],[0,3,1,6],[0,7,1,8],[2,0,2,2],[2,3,3,4],[2,5,3,6],[3,0,3,2]]}
[{"$f":"'Info+Engagés'!B3","v":"Quel Lieu (Dép)"},null,null,{"$f":"'Info+Engagés'!B8","v":"Para Club 3 Niveau 3"},null,null,null,{"$f":"'Info+Engagés'!B2","v":"Quelle Date ?"}]
[]
["N° de concours",null,null,"Cheval",null,"Cavalier",null,"Note d’ensemble",{"$f":"SUM(D30:H33)*2","v":0}]
[{"$f":"'Info+Engagés'!B4","v":"Quel N°"},null,null,null,null,null,null,"Points",{"$f":"SUM(D37:H37)","v":0}]
["Épreuve N°",null,{"$f":"'Info+Engagés'!B5","v":"Quel N°"},{"$f":"'Info+Engagés'!B23","v":0},null,{"$f":"'Info+Engagés'!G23","v":0},null,"% Final",{"$f":"AVERAGE(D36:H36)","v":0}]
["Piste  ",null,{"$f":"'Info+Engagés'!B6","v":"Piste ?"}]
["N° Départ BO",null,{"$f":"'Info+Engagés'!A23","v":0},null,null,null,null,"Classement"]
[]
["Imprimé le :",null,"Coéff .","Juge E","Juge H","Juge C","Juge M","Juge B","écart Max"]
[{"$f":"TODAY()","v":"2019-06-06"},null,null,{"$f":"IF(ISBLANK('Info+Engagés'!H2),\"\",('Info+Engagés'!H2))","v":""},{"$f":"IF(ISBLANK('Info+Engagés'!H3),\"\",('Info+Engagés'!H3))","v":""},{"$f":"IF(ISBLANK('Info+Engagés'!H4),\"\",('Info+Engagés'!H4))","v":"Nom du juge en C"},{"$f":"IF(ISBLANK('Info+Engagés'!H5),\"\",('Info+Engagés'!H5))","v":""},{"$f":"IF(ISBLANK('Info+Engagés'!H6),\"\",('Info+Engagés'!H6))","v":""}]
[{"$f":"NOW()","v":43622.846019328703}]
["Notation figures","Figure 1",1,null,null,null,null,null,{"$f":"MAX(D12:H12)-MIN(D12:H12)","v":0}]
[null,"Figure 2",1,null,null,null,null,null,0]
[null,"Figure 3",1,null,null,null,null,null,0]
[null,"Figure 4",1,null,null,null,null,null,0]
[null,"Figure 5",1,null,null,null,null,null,0]
[null,"Figure 6",1,null,null,null,null,null,0]
[null,"Figure 7",1,null,null,null,null,null,0]
[null,"Figure 8",1,null,null,null,null,null,0]
[null,"Figure 9",1,null,null,null,null,null,0]
[null,"Figure 10",1,null,null,null,null,null,0]
[null,"Figure 11",1,null,null,null,null,null,0]
[null,"Figure 12",1,null,null,null,null,null,0]
[null,"Figure 13",1,null,null,null,null,null,0]
[null,"Figure 14",1,null,null,null,null,null,0]
[null,"Figure 15",1,null,null,null,null,null,0]
[null,"Figure 16",1,null,null,null,null,null,0]
[null,"Figure 17",1,null,null,null,null,null,0]
[null,"Figure 18",1,null,null,null,null,null,0]
[" Ensemble","Ensemble 1",2,null,null,null,null,null,0]
[null,"Ensemble 2",2,null,null,null,null,null,0]
[null,"Ensemble 3",2,null,null,null,null,null,0]
[null,"Ensemble 4",2,null,null,null,null,null,0]
["Pénalité en points"]
["Erreure(s) de tracé "]
["% Total du juge",null,null,{"$f":"IF(ISBLANK('Info+Engagés'!H2),\"\",D37/2.6-D35)","v":""},{"$f":"IF(ISBLANK('Info+Engagés'!H3),\"\",E37/2.6-E35)","v":""},{"$f":"IF(ISBLANK('Info+Engagés'!H4),\"\",F37/2.6-F35)","v":0},{"$f":"IF(ISBLANK('Info+Engagés'!H5),\"\",G37/2.6-G35)","v":""},{"$f":"IF(ISBLANK('Info+Engagés'!H6),\"\",H37/2.6-H35)","v":""},{"$f":"MAX(D36:H36)-MIN(D36:H36)","v":0}]
["Soit en points",null,null,{"$f":"IF(ISBLANK('Info+Engagés'!H2),\"\",(SUM(D12:D29,D30*2,D31*2,D32*2,D33*2)-D34))","v":""},{"$f":"IF(ISBLANK('Info+Engagés'!H3),\"\",(SUM(E12:E29,E30*2,E31*2,E32*2,E33*2)-E34))","v":""},{"$f":"IF(ISBLANK('Info+Engagés'!H4),\"\",(SUM(F12:F29,F30*2,F31*2,F32*2,F33*2)-F34))","v":0},{"$f":"IF(ISBLANK('Info+Engagés'!H5),\"\",(SUM(G12:G29,G30*2,G31*2,G32*2,G33*2)-G34))","v":""},{"$f":"IF(ISBLANK('Info+Engagés'!H6),\"\",(SUM(H12:H29,H30*2,H31*2,H32*2,H33*2)-H34))","v":""}]
["                          Total maxi par juge = 260          1 point correspond à 0,385%              1% correspond en points à : 2,6                                                                  Les notes sont sur 10 et correspondent à la saisie informatique par l'opérateur des protocoles joints, Le total résulte de l'addition des points attribués après application du coefficient et soustraction des points de pénalité encourus après conversion en pourcentage sont déduit les pourcentages de pénalités encourus par suite d'erreurs de tracé pour obtenir le pourcentage par juge."]

{"sheet":"Cav13","index":13,"n_rows":38,"n_cols":9,"rows_kept":38,"cut":false,"hidden":false,"merged":[[34,0,34,2],[35,0,35,2],[36,0,36,2],[37,0,41,8],[9,6,10,6],[9,7,10,7],[10,0,10,1],[33,0,33,2],[9,5,10,5],[11,0,28,0],[29,0,32,0],[8,2,10,2],[8,8,10,8],[8,0,8,1],[9,0,9,1],[9,3,10,3],[9,4,10,4],[4,0,4,1],[4,7,5,7],[4,8,5,8],[5,0,5,1],[6,0,7,1],[6,2,7,2],[6,7,7,7],[6,8,7,8],[4,3,7,4],[4,5,7,6],[0,0,1,2],[0,3,1,6],[0,7,1,8],[2,0,2,2],[2,3,3,4],[2,5,3,6],[3,0,3,2]]}
[{"$f":"'Info+Engagés'!B3","v":"Quel Lieu (Dép)"},null,null,{"$f":"'Info+Engagés'!B8","v":"Para Club 3 Niveau 3"},null,null,null,{"$f":"'Info+Engagés'!B2","v":"Quelle Date ?"}]
[]
["N° de concours",null,null,"Cheval",null,"Cavalier",null,"Note d’ensemble",{"$f":"SUM(D30:H33)*2","v":0}]
[{"$f":"'Info+Engagés'!B4","v":"Quel N°"},null,null,null,null,null,null,"Points",{"$f":"SUM(D37:H37)","v":0}]
["Épreuve N°",null,{"$f":"'Info+Engagés'!B5","v":"Quel N°"},{"$f":"'Info+Engagés'!B24","v":0},null,{"$f":"'Info+Engagés'!G24","v":0},null,"% Final",{"$f":"AVERAGE(D36:H36)","v":0}]
["Piste  ",null,{"$f":"'Info+Engagés'!B6","v":"Piste ?"}]
["N° Départ BO",null,{"$f":"'Info+Engagés'!A24","v":0},null,null,null,null,"Classement"]
[]
["Imprimé le :",null,"Coéff .","Juge E","Juge H","Juge C","Juge M","Juge B","écart Max"]
[{"$f":"TODAY()","v":"2019-06-06"},null,null,{"$f":"IF(ISBLANK('Info+Engagés'!H2),\"\",('Info+Engagés'!H2))","v":""},{"$f":"IF(ISBLANK('Info+Engagés'!H3),\"\",('Info+Engagés'!H3))","v":""},{"$f":"IF(ISBLANK('Info+Engagés'!H4),\"\",('Info+Engagés'!H4))","v":"Nom du juge en C"},{"$f":"IF(ISBLANK('Info+Engagés'!H5),\"\",('Info+Engagés'!H5))","v":""},{"$f":"IF(ISBLANK('Info+Engagés'!H6),\"\",('Info+Engagés'!H6))","v":""}]
[{"$f":"NOW()","v":43622.846019328703}]
["Notation figures","Figure 1",1,null,null,null,null,null,{"$f":"MAX(D12:H12)-MIN(D12:H12)","v":0}]
[null,"Figure 2",1,null,null,null,null,null,0]
[null,"Figure 3",1,null,null,null,null,null,0]
[null,"Figure 4",1,null,null,null,null,null,0]
[null,"Figure 5",1,null,null,null,null,null,0]
[null,"Figure 6",1,null,null,null,null,null,0]
[null,"Figure 7",1,null,null,null,null,null,0]
[null,"Figure 8",1,null,null,null,null,null,0]
[null,"Figure 9",1,null,null,null,null,null,0]
[null,"Figure 10",1,null,null,null,null,null,0]
[null,"Figure 11",1,null,null,null,null,null,0]
[null,"Figure 12",1,null,null,null,null,null,0]
[null,"Figure 13",1,null,null,null,null,null,0]
[null,"Figure 14",1,null,null,null,null,null,0]
[null,"Figure 15",1,null,null,null,null,null,0]
[null,"Figure 16",1,null,null,null,null,null,0]
[null,"Figure 17",1,null,null,null,null,null,0]
[null,"Figure 18",1,null,null,null,null,null,0]
[" Ensemble","Ensemble 1",2,null,null,null,null,null,0]
[null,"Ensemble 2",2,null,null,null,null,null,0]
[null,"Ensemble 3",2,null,null,null,null,null,0]
[null,"Ensemble 4",2,null,null,null,null,null,0]
["Pénalité en points"]
["Erreure(s) de tracé "]
["% Total du juge",null,null,{"$f":"IF(ISBLANK('Info+Engagés'!H2),\"\",D37/2.6-D35)","v":""},{"$f":"IF(ISBLANK('Info+Engagés'!H3),\"\",E37/2.6-E35)","v":""},{"$f":"IF(ISBLANK('Info+Engagés'!H4),\"\",F37/2.6-F35)","v":0},{"$f":"IF(ISBLANK('Info+Engagés'!H5),\"\",G37/2.6-G35)","v":""},{"$f":"IF(ISBLANK('Info+Engagés'!H6),\"\",H37/2.6-H35)","v":""},{"$f":"MAX(D36:H36)-MIN(D36:H36)","v":0}]
["Soit en points",null,null,{"$f":"IF(ISBLANK('Info+Engagés'!H2),\"\",(SUM(D12:D29,D30*2,D31*2,D32*2,D33*2)-D34))","v":""},{"$f":"IF(ISBLANK('Info+Engagés'!H3),\"\",(SUM(E12:E29,E30*2,E31*2,E32*2,E33*2)-E34))","v":""},{"$f":"IF(ISBLANK('Info+Engagés'!H4),\"\",(SUM(F12:F29,F30*2,F31*2,F32*2,F33*2)-F34))","v":0},{"$f":"IF(ISBLANK('Info+Engagés'!H5),\"\",(SUM(G12:G29,G30*2,G31*2,G32*2,G33*2)-G34))","v":""},{"$f":"IF(ISBLANK('Info+Engagés'!H6),\"\",(SUM(H12:H29,H30*2,H31*2,H32*2,H33*2)-H34))","v":""}]
["                          Total maxi par juge = 260          1 point correspond à 0,385%              1% correspond en points à : 2,6                                                                  Les notes sont sur 10 et correspondent à la saisie informatique par l'opérateur des protocoles joints, Le total résulte de l'addition des points attribués après application du coefficient et soustraction des points de pénalité encourus après conversion en pourcentage sont déduit les pourcentages de pénalités encourus par suite d'erreurs de tracé pour obtenir le pourcentage par juge."]

{"sheet":"Cav14","index":14,"n_rows":38,"n_cols":9,"rows_kept":38,"cut":false,"hidden":false,"merged":[[34,0,34,2],[35,0,35,2],[36,0,36,2],[37,0,41,8],[9,6,10,6],[9,7,10,7],[10,0,10,1],[33,0,33,2],[9,5,10,5],[11,0,28,0],[29,0,32,0],[8,2,10,2],[8,8,10,8],[8,0,8,1],[9,0,9,1],[9,3,10,3],[9,4,10,4],[4,0,4,1],[4,7,5,7],[4,8,5,8],[5,0,5,1],[6,0,7,1],[6,2,7,2],[6,7,7,7],[6,8,7,8],[4,3,7,4],[4,5,7,6],[0,0,1,2],[0,3,1,6],[0,7,1,8],[2,0,2,2],[2,3,3,4],[2,5,3,6],[3,0,3,2]]}
[{"$f":"'Info+Engagés'!B3","v":"Quel Lieu (Dép)"},null,null,{"$f":"'Info+Engagés'!B8","v":"Para Club 3 Niveau 3"},null,null,null,{"$f":"'Info+Engagés'!B2","v":"Quelle Date ?"}]
[]
["N° de concours",null,null,"Cheval",null,"Cavalier",null,"Note d’ensemble",{"$f":"SUM(D30:H33)*2","v":0}]
[{"$f":"'Info+Engagés'!B4","v":"Quel N°"},null,null,null,null,null,null,"Points",{"$f":"SUM(D37:H37)","v":0}]
["Épreuve N°",null,{"$f":"'Info+Engagés'!B5","v":"Quel N°"},{"$f":"'Info+Engagés'!B25","v":0},null,{"$f":"'Info+Engagés'!G25","v":0},null,"% Final",{"$f":"AVERAGE(D36:H36)","v":0}]
["Piste  ",null,{"$f":"'Info+Engagés'!B6","v":"Piste ?"}]
["N° Départ BO",null,{"$f":"'Info+Engagés'!A25","v":0},null,null,null,null,"Classement"]
[]
["Imprimé le :",null,"Coéff .","Juge E","Juge H","Juge C","Juge M","Juge B","écart Max"]
[{"$f":"TODAY()","v":"2019-06-06"},null,null,{"$f":"IF(ISBLANK('Info+Engagés'!H2),\"\",('Info+Engagés'!H2))","v":""},{"$f":"IF(ISBLANK('Info+Engagés'!H3),\"\",('Info+Engagés'!H3))","v":""},{"$f":"IF(ISBLANK('Info+Engagés'!H4),\"\",('Info+Engagés'!H4))","v":"Nom du juge en C"},{"$f":"IF(ISBLANK('Info+Engagés'!H5),\"\",('Info+Engagés'!H5))","v":""},{"$f":"IF(ISBLANK('Info+Engagés'!H6),\"\",('Info+Engagés'!H6))","v":""}]
[{"$f":"NOW()","v":43622.846019328703}]
["Notation figures","Figure 1",1,null,null,null,null,null,{"$f":"MAX(D12:H12)-MIN(D12:H12)","v":0}]
[null,"Figure 2",1,null,null,null,null,null,0]
[null,"Figure 3",1,null,null,null,null,null,0]
[null,"Figure 4",1,null,null,null,null,null,0]
[null,"Figure 5",1,null,null,null,null,null,0]
[null,"Figure 6",1,null,null,null,null,null,0]
[null,"Figure 7",1,null,null,null,null,null,0]
[null,"Figure 8",1,null,null,null,null,null,0]
[null,"Figure 9",1,null,null,null,null,null,0]
[null,"Figure 10",1,null,null,null,null,null,0]
[null,"Figure 11",1,null,null,null,null,null,0]
[null,"Figure 12",1,null,null,null,null,null,0]
[null,"Figure 13",1,null,null,null,null,null,0]
[null,"Figure 14",1,null,null,null,null,null,0]
[null,"Figure 15",1,null,null,null,null,null,0]
[null,"Figure 16",1,null,null,null,null,null,0]
[null,"Figure 17",1,null,null,null,null,null,0]
[null,"Figure 18",1,null,null,null,null,null,0]
[" Ensemble","Ensemble 1",2,null,null,null,null,null,0]
[null,"Ensemble 2",2,null,null,null,null,null,0]
[null,"Ensemble 3",2,null,null,null,null,null,0]
[null,"Ensemble 4",2,null,null,null,null,null,0]
["Pénalité en points"]
["Erreure(s) de tracé "]
["% Total du juge",null,null,{"$f":"IF(ISBLANK('Info+Engagés'!H2),\"\",D37/2.6-D35)","v":""},{"$f":"IF(ISBLANK('Info+Engagés'!H3),\"\",E37/2.6-E35)","v":""},{"$f":"IF(ISBLANK('Info+Engagés'!H4),\"\",F37/2.6-F35)","v":0},{"$f":"IF(ISBLANK('Info+Engagés'!H5),\"\",G37/2.6-G35)","v":""},{"$f":"IF(ISBLANK('Info+Engagés'!H6),\"\",H37/2.6-H35)","v":""},{"$f":"MAX(D36:H36)-MIN(D36:H36)","v":0}]
["Soit en points",null,null,{"$f":"IF(ISBLANK('Info+Engagés'!H2),\"\",(SUM(D12:D29,D30*2,D31*2,D32*2,D33*2)-D34))","v":""},{"$f":"IF(ISBLANK('Info+Engagés'!H3),\"\",(SUM(E12:E29,E30*2,E31*2,E32*2,E33*2)-E34))","v":""},{"$f":"IF(ISBLANK('Info+Engagés'!H4),\"\",(SUM(F12:F29,F30*2,F31*2,F32*2,F33*2)-F34))","v":0},{"$f":"IF(ISBLANK('Info+Engagés'!H5),\"\",(SUM(G12:G29,G30*2,G31*2,G32*2,G33*2)-G34))","v":""},{"$f":"IF(ISBLANK('Info+Engagés'!H6),\"\",(SUM(H12:H29,H30*2,H31*2,H32*2,H33*2)-H34))","v":""}]
["                          Total maxi par juge = 260          1 point correspond à 0,385%              1% correspond en points à : 2,6                                                                  Les notes sont sur 10 et correspondent à la saisie informatique par l'opérateur des protocoles joints, Le total résulte de l'addition des points attribués après application du coefficient et soustraction des points de pénalité encourus après conversion en pourcentage sont déduit les pourcentages de pénalités encourus par suite d'erreurs de tracé pour obtenir le pourcentage par juge."]

{"sheet":"Cav15","index":15,"n_rows":38,"n_cols":9,"rows_kept":38,"cut":false,"hidden":false,"merged":[[34,0,34,2],[35,0,35,2],[36,0,36,2],[37,0,41,8],[9,6,10,6],[9,7,10,7],[10,0,10,1],[33,0,33,2],[9,5,10,5],[11,0,28,0],[29,0,32,0],[8,2,10,2],[8,8,10,8],[8,0,8,1],[9,0,9,1],[9,3,10,3],[9,4,10,4],[4,0,4,1],[4,7,5,7],[4,8,5,8],[5,0,5,1],[6,0,7,1],[6,2,7,2],[6,7,7,7],[6,8,7,8],[4,3,7,4],[4,5,7,6],[0,0,1,2],[0,3,1,6],[0,7,1,8],[2,0,2,2],[2,3,3,4],[2,5,3,6],[3,0,3,2]]}
[{"$f":"'Info+Engagés'!B3","v":"Quel Lieu (Dép)"},null,null,{"$f":"'Info+Engagés'!B8","v":"Para Club 3 Niveau 3"},null,null,null,{"$f":"'Info+Engagés'!B2","v":"Quelle Date ?"}]
[]
["N° de concours",null,null,"Cheval",null,"Cavalier",null,"Note d’ensemble",{"$f":"SUM(D30:H33)*2","v":0}]
[{"$f":"'Info+Engagés'!B4","v":"Quel N°"},null,null,null,null,null,null,"Points",{"$f":"SUM(D37:H37)","v":0}]
["Épreuve N°",null,{"$f":"'Info+Engagés'!B5","v":"Quel N°"},{"$f":"'Info+Engagés'!B26","v":0},null,{"$f":"'Info+Engagés'!G26","v":0},null,"% Final",{"$f":"AVERAGE(D36:H36)","v":0}]
["Piste  ",null,{"$f":"'Info+Engagés'!B6","v":"Piste ?"}]
["N° Départ BO",null,{"$f":"'Info+Engagés'!A26","v":0},null,null,null,null,"Classement"]
[]
["Imprimé le :",null,"Coéff .","Juge E","Juge H","Juge C","Juge M","Juge B","écart Max"]
[{"$f":"TODAY()","v":"2019-06-06"},null,null,{"$f":"IF(ISBLANK('Info+Engagés'!H2),\"\",('Info+Engagés'!H2))","v":""},{"$f":"IF(ISBLANK('Info+Engagés'!H3),\"\",('Info+Engagés'!H3))","v":""},{"$f":"IF(ISBLANK('Info+Engagés'!H4),\"\",('Info+Engagés'!H4))","v":"Nom du juge en C"},{"$f":"IF(ISBLANK('Info+Engagés'!H5),\"\",('Info+Engagés'!H5))","v":""},{"$f":"IF(ISBLANK('Info+Engagés'!H6),\"\",('Info+Engagés'!H6))","v":""}]
[{"$f":"NOW()","v":43622.846019328703}]
["Notation figures","Figure 1",1,null,null,null,null,null,{"$f":"MAX(D12:H12)-MIN(D12:H12)","v":0}]
[null,"Figure 2",1,null,null,null,null,null,0]
[null,"Figure 3",1,null,null,null,null,null,0]
[null,"Figure 4",1,null,null,null,null,null,0]
[null,"Figure 5",1,null,null,null,null,null,0]
[null,"Figure 6",1,null,null,null,null,null,0]
[null,"Figure 7",1,null,null,null,null,null,0]
[null,"Figure 8",1,null,null,null,null,null,0]
[null,"Figure 9",1,null,null,null,null,null,0]
[null,"Figure 10",1,null,null,null,null,null,0]
[null,"Figure 11",1,null,null,null,null,null,0]
[null,"Figure 12",1,null,null,null,null,null,0]
[null,"Figure 13",1,null,null,null,null,null,0]
[null,"Figure 14",1,null,null,null,null,null,0]
[null,"Figure 15",1,null,null,null,null,null,0]
[null,"Figure 16",1,null,null,null,null,null,0]
[null,"Figure 17",1,null,null,null,null,null,0]
[null,"Figure 18",1,null,null,null,null,null,0]
[" Ensemble","Ensemble 1",2,null,null,null,null,null,0]
[null,"Ensemble 2",2,null,null,null,null,null,0]
[null,"Ensemble 3",2,null,null,null,null,null,0]
[null,"Ensemble 4",2,null,null,null,null,null,0]
["Pénalité en points"]
["Erreure(s) de tracé "]
["% Total du juge",null,null,{"$f":"IF(ISBLANK('Info+Engagés'!H2),\"\",D37/2.6-D35)","v":""},{"$f":"IF(ISBLANK('Info+Engagés'!H3),\"\",E37/2.6-E35)","v":""},{"$f":"IF(ISBLANK('Info+Engagés'!H4),\"\",F37/2.6-F35)","v":0},{"$f":"IF(ISBLANK('Info+Engagés'!H5),\"\",G37/2.6-G35)","v":""},{"$f":"IF(ISBLANK('Info+Engagés'!H6),\"\",H37/2.6-H35)","v":""},{"$f":"MAX(D36:H36)-MIN(D36:H36)","v":0}]
["Soit en points",null,null,{"$f":"IF(ISBLANK('Info+Engagés'!H2),\"\",(SUM(D12:D29,D30*2,D31*2,D32*2,D33*2)-D34))","v":""},{"$f":"IF(ISBLANK('Info+Engagés'!H3),\"\",(SUM(E12:E29,E30*2,E31*2,E32*2,E33*2)-E34))","v":""},{"$f":"IF(ISBLANK('Info+Engagés'!H4),\"\",(SUM(F12:F29,F30*2,F31*2,F32*2,F33*2)-F34))","v":0},{"$f":"IF(ISBLANK('Info+Engagés'!H5),\"\",(SUM(G12:G29,G30*2,G31*2,G32*2,G33*2)-G34))","v":""},{"$f":"IF(ISBLANK('Info+Engagés'!H6),\"\",(SUM(H12:H29,H30*2,H31*2,H32*2,H33*2)-H34))","v":""}]
["                          Total maxi par juge = 260          1 point correspond à 0,385%              1% correspond en points à : 2,6                                                                  Les notes sont sur 10 et correspondent à la saisie informatique par l'opérateur des protocoles joints, Le total résulte de l'addition des points attribués après application du coefficient et soustraction des points de pénalité encourus après conversion en pourcentage sont déduit les pourcentages de pénalités encourus par suite d'erreurs de tracé pour obtenir le pourcentage par juge."]

{"sheet":"Cav16","index":16,"n_rows":38,"n_cols":9,"rows_kept":38,"cut":false,"hidden":false,"merged":[[34,0,34,2],[35,0,35,2],[36,0,36,2],[37,0,41,8],[9,6,10,6],[9,7,10,7],[10,0,10,1],[33,0,33,2],[9,5,10,5],[11,0,28,0],[29,0,32,0],[8,2,10,2],[8,8,10,8],[8,0,8,1],[9,0,9,1],[9,3,10,3],[9,4,10,4],[4,0,4,1],[4,7,5,7],[4,8,5,8],[5,0,5,1],[6,0,7,1],[6,2,7,2],[6,7,7,7],[6,8,7,8],[4,3,7,4],[4,5,7,6],[0,0,1,2],[0,3,1,6],[0,7,1,8],[2,0,2,2],[2,3,3,4],[2,5,3,6],[3,0,3,2]]}
[{"$f":"'Info+Engagés'!B3","v":"Quel Lieu (Dép)"},null,null,{"$f":"'Info+Engagés'!B8","v":"Para Club 3 Niveau 3"},null,null,null,{"$f":"'Info+Engagés'!B2","v":"Quelle Date ?"}]
[]
["N° de concours",null,null,"Cheval",null,"Cavalier",null,"Note d’ensemble",{"$f":"SUM(D30:H33)*2","v":0}]
[{"$f":"'Info+Engagés'!B4","v":"Quel N°"},null,null,null,null,null,null,"Points",{"$f":"SUM(D37:H37)","v":0}]
["Épreuve N°",null,{"$f":"'Info+Engagés'!B5","v":"Quel N°"},{"$f":"'Info+Engagés'!B27","v":0},null,{"$f":"'Info+Engagés'!G27","v":0},null,"% Final",{"$f":"AVERAGE(D36:H36)","v":0}]
["Piste  ",null,{"$f":"'Info+Engagés'!B6","v":"Piste ?"}]
["N° Départ BO",null,{"$f":"'Info+Engagés'!A27","v":0},null,null,null,null,"Classement"]
[]
["Imprimé le :",null,"Coéff .","Juge E","Juge H","Juge C","Juge M","Juge B","écart Max"]
[{"$f":"TODAY()","v":"2019-06-06"},null,null,{"$f":"IF(ISBLANK('Info+Engagés'!H2),\"\",('Info+Engagés'!H2))","v":""},{"$f":"IF(ISBLANK('Info+Engagés'!H3),\"\",('Info+Engagés'!H3))","v":""},{"$f":"IF(ISBLANK('Info+Engagés'!H4),\"\",('Info+Engagés'!H4))","v":"Nom du juge en C"},{"$f":"IF(ISBLANK('Info+Engagés'!H5),\"\",('Info+Engagés'!H5))","v":""},{"$f":"IF(ISBLANK('Info+Engagés'!H6),\"\",('Info+Engagés'!H6))","v":""}]
[{"$f":"NOW()","v":43622.846019328703}]
["Notation figures","Figure 1",1,null,null,null,null,null,{"$f":"MAX(D12:H12)-MIN(D12:H12)","v":0}]
[null,"Figure 2",1,null,null,null,null,null,0]
[null,"Figure 3",1,null,null,null,null,null,0]
[null,"Figure 4",1,null,null,null,null,null,0]
[null,"Figure 5",1,null,null,null,null,null,0]
[null,"Figure 6",1,null,null,null,null,null,0]
[null,"Figure 7",1,null,null,null,null,null,0]
[null,"Figure 8",1,null,null,null,null,null,0]
[null,"Figure 9",1,null,null,null,null,null,0]
[null,"Figure 10",1,null,null,null,null,null,0]
[null,"Figure 11",1,null,null,null,null,null,0]
[null,"Figure 12",1,null,null,null,null,null,0]
[null,"Figure 13",1,null,null,null,null,null,0]
[null,"Figure 14",1,null,null,null,null,null,0]
[null,"Figure 15",1,null,null,null,null,null,0]
[null,"Figure 16",1,null,null,null,null,null,0]
[null,"Figure 17",1,null,null,null,null,null,0]
[null,"Figure 18",1,null,null,null,null,null,0]
[" Ensemble","Ensemble 1",2,null,null,null,null,null,0]
[null,"Ensemble 2",2,null,null,null,null,null,0]
[null,"Ensemble 3",2,null,null,null,null,null,0]
[null,"Ensemble 4",2,null,null,null,null,null,0]
["Pénalité en points"]
["Erreure(s) de tracé "]
["% Total du juge",null,null,{"$f":"IF(ISBLANK('Info+Engagés'!H2),\"\",D37/2.6-D35)","v":""},{"$f":"IF(ISBLANK('Info+Engagés'!H3),\"\",E37/2.6-E35)","v":""},{"$f":"IF(ISBLANK('Info+Engagés'!H4),\"\",F37/2.6-F35)","v":0},{"$f":"IF(ISBLANK('Info+Engagés'!H5),\"\",G37/2.6-G35)","v":""},{"$f":"IF(ISBLANK('Info+Engagés'!H6),\"\",H37/2.6-H35)","v":""},{"$f":"MAX(D36:H36)-MIN(D36:H36)","v":0}]
["Soit en points",null,null,{"$f":"IF(ISBLANK('Info+Engagés'!H2),\"\",(SUM(D12:D29,D30*2,D31*2,D32*2,D33*2)-D34))","v":""},{"$f":"IF(ISBLANK('Info+Engagés'!H3),\"\",(SUM(E12:E29,E30*2,E31*2,E32*2,E33*2)-E34))","v":""},{"$f":"IF(ISBLANK('Info+Engagés'!H4),\"\",(SUM(F12:F29,F30*2,F31*2,F32*2,F33*2)-F34))","v":0},{"$f":"IF(ISBLANK('Info+Engagés'!H5),\"\",(SUM(G12:G29,G30*2,G31*2,G32*2,G33*2)-G34))","v":""},{"$f":"IF(ISBLANK('Info+Engagés'!H6),\"\",(SUM(H12:H29,H30*2,H31*2,H32*2,H33*2)-H34))","v":""}]
["                          Total maxi par juge = 260          1 point correspond à 0,385%              1% correspond en points à : 2,6                                                                  Les notes sont sur 10 et correspondent à la saisie informatique par l'opérateur des protocoles joints, Le total résulte de l'addition des points attribués après application du coefficient et soustraction des points de pénalité encourus après conversion en pourcentage sont déduit les pourcentages de pénalités encourus par suite d'erreurs de tracé pour obtenir le pourcentage par juge."]

{"sheet":"Cav17","index":17,"n_rows":38,"n_cols":9,"rows_kept":38,"cut":false,"hidden":false,"merged":[[34,0,34,2],[35,0,35,2],[36,0,36,2],[37,0,41,8],[9,6,10,6],[9,7,10,7],[10,0,10,1],[33,0,33,2],[9,5,10,5],[11,0,28,0],[29,0,32,0],[8,2,10,2],[8,8,10,8],[8,0,8,1],[9,0,9,1],[9,3,10,3],[9,4,10,4],[4,0,4,1],[4,7,5,7],[4,8,5,8],[5,0,5,1],[6,0,7,1],[6,2,7,2],[6,7,7,7],[6,8,7,8],[4,3,7,4],[4,5,7,6],[0,0,1,2],[0,3,1,6],[0,7,1,8],[2,0,2,2],[2,3,3,4],[2,5,3,6],[3,0,3,2]]}
[{"$f":"'Info+Engagés'!B3","v":"Quel Lieu (Dép)"},null,null,{"$f":"'Info+Engagés'!B8","v":"Para Club 3 Niveau 3"},null,null,null,{"$f":"'Info+Engagés'!B2","v":"Quelle Date ?"}]
[]
["N° de concours",null,null,"Cheval",null,"Cavalier",null,"Note d’ensemble",{"$f":"SUM(D30:H33)*2","v":0}]
[{"$f":"'Info+Engagés'!B4","v":"Quel N°"},null,null,null,null,null,null,"Points",{"$f":"SUM(D37:H37)","v":0}]
["Épreuve N°",null,{"$f":"'Info+Engagés'!B5","v":"Quel N°"},{"$f":"'Info+Engagés'!B28","v":0},null,{"$f":"'Info+Engagés'!G28","v":0},null,"% Final",{"$f":"AVERAGE(D36:H36)","v":0}]
["Piste  ",null,{"$f":"'Info+Engagés'!B6","v":"Piste ?"}]
["N° Départ BO",null,{"$f":"'Info+Engagés'!A28","v":0},null,null,null,null,"Classement"]
[]
["Imprimé le :",null,"Coéff .","Juge E","Juge H","Juge C","Juge M","Juge B","écart Max"]
[{"$f":"TODAY()","v":"2019-06-06"},null,null,{"$f":"IF(ISBLANK('Info+Engagés'!H2),\"\",('Info+Engagés'!H2))","v":""},{"$f":"IF(ISBLANK('Info+Engagés'!H3),\"\",('Info+Engagés'!H3))","v":""},{"$f":"IF(ISBLANK('Info+Engagés'!H4),\"\",('Info+Engagés'!H4))","v":"Nom du juge en C"},{"$f":"IF(ISBLANK('Info+Engagés'!H5),\"\",('Info+Engagés'!H5))","v":""},{"$f":"IF(ISBLANK('Info+Engagés'!H6),\"\",('Info+Engagés'!H6))","v":""}]
[{"$f":"NOW()","v":43622.846019328703}]
["Notation figures","Figure 1",1,null,null,null,null,null,{"$f":"MAX(D12:H12)-MIN(D12:H12)","v":0}]
[null,"Figure 2",1,null,null,null,null,null,0]
[null,"Figure 3",1,null,null,null,null,null,0]
[null,"Figure 4",1,null,null,null,null,null,0]
[null,"Figure 5",1,null,null,null,null,null,0]
[null,"Figure 6",1,null,null,null,null,null,0]
[null,"Figure 7",1,null,null,null,null,null,0]
[null,"Figure 8",1,null,null,null,null,null,0]
[null,"Figure 9",1,null,null,null,null,null,0]
[null,"Figure 10",1,null,null,null,null,null,0]
[null,"Figure 11",1,null,null,null,null,null,0]
[null,"Figure 12",1,null,null,null,null,null,0]
[null,"Figure 13",1,null,null,null,null,null,0]
[null,"Figure 14",1,null,null,null,null,null,0]
[null,"Figure 15",1,null,null,null,null,null,0]
[null,"Figure 16",1,null,null,null,null,null,0]
[null,"Figure 17",1,null,null,null,null,null,0]
[null,"Figure 18",1,null,null,null,null,null,0]
[" Ensemble","Ensemble 1",2,null,null,null,null,null,0]
[null,"Ensemble 2",2,null,null,null,null,null,0]
[null,"Ensemble 3",2,null,null,null,null,null,0]
[null,"Ensemble 4",2,null,null,null,null,null,0]
["Pénalité en points"]
["Erreure(s) de tracé "]
["% Total du juge",null,null,{"$f":"IF(ISBLANK('Info+Engagés'!H2),\"\",D37/2.6-D35)","v":""},{"$f":"IF(ISBLANK('Info+Engagés'!H3),\"\",E37/2.6-E35)","v":""},{"$f":"IF(ISBLANK('Info+Engagés'!H4),\"\",F37/2.6-F35)","v":0},{"$f":"IF(ISBLANK('Info+Engagés'!H5),\"\",G37/2.6-G35)","v":""},{"$f":"IF(ISBLANK('Info+Engagés'!H6),\"\",H37/2.6-H35)","v":""},{"$f":"MAX(D36:H36)-MIN(D36:H36)","v":0}]
["Soit en points",null,null,{"$f":"IF(ISBLANK('Info+Engagés'!H2),\"\",(SUM(D12:D29,D30*2,D31*2,D32*2,D33*2)-D34))","v":""},{"$f":"IF(ISBLANK('Info+Engagés'!H3),\"\",(SUM(E12:E29,E30*2,E31*2,E32*2,E33*2)-E34))","v":""},{"$f":"IF(ISBLANK('Info+Engagés'!H4),\"\",(SUM(F12:F29,F30*2,F31*2,F32*2,F33*2)-F34))","v":0},{"$f":"IF(ISBLANK('Info+Engagés'!H5),\"\",(SUM(G12:G29,G30*2,G31*2,G32*2,G33*2)-G34))","v":""},{"$f":"IF(ISBLANK('Info+Engagés'!H6),\"\",(SUM(H12:H29,H30*2,H31*2,H32*2,H33*2)-H34))","v":""}]
["                          Total maxi par juge = 260          1 point correspond à 0,385%              1% correspond en points à : 2,6                                                                  Les notes sont sur 10 et correspondent à la saisie informatique par l'opérateur des protocoles joints, Le total résulte de l'addition des points attribués après application du coefficient et soustraction des points de pénalité encourus après conversion en pourcentage sont déduit les pourcentages de pénalités encourus par suite d'erreurs de tracé pour obtenir le pourcentage par juge."]

{"sheet":"Cav18","index":18,"n_rows":38,"n_cols":9,"rows_kept":38,"cut":false,"hidden":false,"merged":[[34,0,34,2],[35,0,35,2],[36,0,36,2],[37,0,41,8],[9,6,10,6],[9,7,10,7],[10,0,10,1],[33,0,33,2],[9,5,10,5],[11,0,28,0],[29,0,32,0],[8,2,10,2],[8,8,10,8],[8,0,8,1],[9,0,9,1],[9,3,10,3],[9,4,10,4],[4,0,4,1],[4,7,5,7],[4,8,5,8],[5,0,5,1],[6,0,7,1],[6,2,7,2],[6,7,7,7],[6,8,7,8],[4,3,7,4],[4,5,7,6],[0,0,1,2],[0,3,1,6],[0,7,1,8],[2,0,2,2],[2,3,3,4],[2,5,3,6],[3,0,3,2]]}
[{"$f":"'Info+Engagés'!B3","v":"Quel Lieu (Dép)"},null,null,{"$f":"'Info+Engagés'!B8","v":"Para Club 3 Niveau 3"},null,null,null,{"$f":"'Info+Engagés'!B2","v":"Quelle Date ?"}]
[]
["N° de concours",null,null,"Cheval",null,"Cavalier",null,"Note d’ensemble",{"$f":"SUM(D30:H33)*2","v":0}]
[{"$f":"'Info+Engagés'!B4","v":"Quel N°"},null,null,null,null,null,null,"Points",{"$f":"SUM(D37:H37)","v":0}]
["Épreuve N°",null,{"$f":"'Info+Engagés'!B5","v":"Quel N°"},{"$f":"'Info+Engagés'!B29","v":0},null,{"$f":"'Info+Engagés'!G29","v":0},null,"% Final",{"$f":"AVERAGE(D36:H36)","v":0}]
["Piste  ",null,{"$f":"'Info+Engagés'!B6","v":"Piste ?"}]
["N° Départ BO",null,{"$f":"'Info+Engagés'!A29","v":0},null,null,null,null,"Classement"]
[]
["Imprimé le :",null,"Coéff .","Juge E","Juge H","Juge C","Juge M","Juge B","écart Max"]
[{"$f":"TODAY()","v":"2019-06-06"},null,null,{"$f":"IF(ISBLANK('Info+Engagés'!H2),\"\",('Info+Engagés'!H2))","v":""},{"$f":"IF(ISBLANK('Info+Engagés'!H3),\"\",('Info+Engagés'!H3))","v":""},{"$f":"IF(ISBLANK('Info+Engagés'!H4),\"\",('Info+Engagés'!H4))","v":"Nom du juge en C"},{"$f":"IF(ISBLANK('Info+Engagés'!H5),\"\",('Info+Engagés'!H5))","v":""},{"$f":"IF(ISBLANK('Info+Engagés'!H6),\"\",('Info+Engagés'!H6))","v":""}]
[{"$f":"NOW()","v":43622.846019328703}]
["Notation figures","Figure 1",1,null,null,null,null,null,{"$f":"MAX(D12:H12)-MIN(D12:H12)","v":0}]
[null,"Figure 2",1,null,null,null,null,null,0]
[null,"Figure 3",1,null,null,null,null,null,0]
[null,"Figure 4",1,null,null,null,null,null,0]
[null,"Figure 5",1,null,null,null,null,null,0]
[null,"Figure 6",1,null,null,null,null,null,0]
[null,"Figure 7",1,null,null,null,null,null,0]
[null,"Figure 8",1,null,null,null,null,null,0]
[null,"Figure 9",1,null,null,null,null,null,0]
[null,"Figure 10",1,null,null,null,null,null,0]
[null,"Figure 11",1,null,null,null,null,null,0]
[null,"Figure 12",1,null,null,null,null,null,0]
[null,"Figure 13",1,null,null,null,null,null,0]
[null,"Figure 14",1,null,null,null,null,null,0]
[null,"Figure 15",1,null,null,null,null,null,0]
[null,"Figure 16",1,null,null,null,null,null,0]
[null,"Figure 17",1,null,null,null,null,null,0]
[null,"Figure 18",1,null,null,null,null,null,0]
[" Ensemble","Ensemble 1",2,null,null,null,null,null,0]
[null,"Ensemble 2",2,null,null,null,null,null,0]
[null,"Ensemble 3",2,null,null,null,null,null,0]
[null,"Ensemble 4",2,null,null,null,null,null,0]
["Pénalité en points"]
["Erreure(s) de tracé "]
["% Total du juge",null,null,{"$f":"IF(ISBLANK('Info+Engagés'!H2),\"\",D37/2.6-D35)","v":""},{"$f":"IF(ISBLANK('Info+Engagés'!H3),\"\",E37/2.6-E35)","v":""},{"$f":"IF(ISBLANK('Info+Engagés'!H4),\"\",F37/2.6-F35)","v":0},{"$f":"IF(ISBLANK('Info+Engagés'!H5),\"\",G37/2.6-G35)","v":""},{"$f":"IF(ISBLANK('Info+Engagés'!H6),\"\",H37/2.6-H35)","v":""},{"$f":"MAX(D36:H36)-MIN(D36:H36)","v":0}]
["Soit en points",null,null,{"$f":"IF(ISBLANK('Info+Engagés'!H2),\"\",(SUM(D12:D29,D30*2,D31*2,D32*2,D33*2)-D34))","v":""},{"$f":"IF(ISBLANK('Info+Engagés'!H3),\"\",(SUM(E12:E29,E30*2,E31*2,E32*2,E33*2)-E34))","v":""},{"$f":"IF(ISBLANK('Info+Engagés'!H4),\"\",(SUM(F12:F29,F30*2,F31*2,F32*2,F33*2)-F34))","v":0},{"$f":"IF(ISBLANK('Info+Engagés'!H5),\"\",(SUM(G12:G29,G30*2,G31*2,G32*2,G33*2)-G34))","v":""},{"$f":"IF(ISBLANK('Info+Engagés'!H6),\"\",(SUM(H12:H29,H30*2,H31*2,H32*2,H33*2)-H34))","v":""}]
["                          Total maxi par juge = 260          1 point correspond à 0,385%              1% correspond en points à : 2,6                                                                  Les notes sont sur 10 et correspondent à la saisie informatique par l'opérateur des protocoles joints, Le total résulte de l'addition des points attribués après application du coefficient et soustraction des points de pénalité encourus après conversion en pourcentage sont déduit les pourcentages de pénalités encourus par suite d'erreurs de tracé pour obtenir le pourcentage par juge."]

{"sheet":"Cav19","index":19,"n_rows":38,"n_cols":9,"rows_kept":38,"cut":false,"hidden":false,"merged":[[34,0,34,2],[35,0,35,2],[36,0,36,2],[37,0,41,8],[9,6,10,6],[9,7,10,7],[10,0,10,1],[33,0,33,2],[9,5,10,5],[11,0,28,0],[29,0,32,0],[8,2,10,2],[8,8,10,8],[8,0,8,1],[9,0,9,1],[9,3,10,3],[9,4,10,4],[4,0,4,1],[4,7,5,7],[4,8,5,8],[5,0,5,1],[6,0,7,1],[6,2,7,2],[6,7,7,7],[6,8,7,8],[4,3,7,4],[4,5,7,6],[0,0,1,2],[0,3,1,6],[0,7,1,8],[2,0,2,2],[2,3,3,4],[2,5,3,6],[3,0,3,2]]}
[{"$f":"'Info+Engagés'!B3","v":"Quel Lieu (Dép)"},null,null,{"$f":"'Info+Engagés'!B8","v":"Para Club 3 Niveau 3"},null,null,null,{"$f":"'Info+Engagés'!B2","v":"Quelle Date ?"}]
[]
["N° de concours",null,null,"Cheval",null,"Cavalier",null,"Note d’ensemble",{"$f":"SUM(D30:H33)*2","v":0}]
[{"$f":"'Info+Engagés'!B4","v":"Quel N°"},null,null,null,null,null,null,"Points",{"$f":"SUM(D37:H37)","v":0}]
["Épreuve N°",null,{"$f":"'Info+Engagés'!B5","v":"Quel N°"},{"$f":"'Info+Engagés'!B30","v":0},null,{"$f":"'Info+Engagés'!G30","v":0},null,"% Final",{"$f":"AVERAGE(D36:H36)","v":0}]
["Piste  ",null,{"$f":"'Info+Engagés'!B6","v":"Piste ?"}]
["N° Départ BO",null,{"$f":"'Info+Engagés'!A30","v":0},null,null,null,null,"Classement"]
[]
["Imprimé le :",null,"Coéff .","Juge E","Juge H","Juge C","Juge M","Juge B","écart Max"]
[{"$f":"TODAY()","v":"2019-06-06"},null,null,{"$f":"IF(ISBLANK('Info+Engagés'!H2),\"\",('Info+Engagés'!H2))","v":""},{"$f":"IF(ISBLANK('Info+Engagés'!H3),\"\",('Info+Engagés'!H3))","v":""},{"$f":"IF(ISBLANK('Info+Engagés'!H4),\"\",('Info+Engagés'!H4))","v":"Nom du juge en C"},{"$f":"IF(ISBLANK('Info+Engagés'!H5),\"\",('Info+Engagés'!H5))","v":""},{"$f":"IF(ISBLANK('Info+Engagés'!H6),\"\",('Info+Engagés'!H6))","v":""}]
[{"$f":"NOW()","v":43622.846019328703}]
["Notation figures","Figure 1",1,null,null,null,null,null,{"$f":"MAX(D12:H12)-MIN(D12:H12)","v":0}]
[null,"Figure 2",1,null,null,null,null,null,0]
[null,"Figure 3",1,null,null,null,null,null,0]
[null,"Figure 4",1,null,null,null,null,null,0]
[null,"Figure 5",1,null,null,null,null,null,0]
[null,"Figure 6",1,null,null,null,null,null,0]
[null,"Figure 7",1,null,null,null,null,null,0]
[null,"Figure 8",1,null,null,null,null,null,0]
[null,"Figure 9",1,null,null,null,null,null,0]
[null,"Figure 10",1,null,null,null,null,null,0]
[null,"Figure 11",1,null,null,null,null,null,0]
[null,"Figure 12",1,null,null,null,null,null,0]
[null,"Figure 13",1,null,null,null,null,null,0]
[null,"Figure 14",1,null,null,null,null,null,0]
[null,"Figure 15",1,null,null,null,null,null,0]
[null,"Figure 16",1,null,null,null,null,null,0]
[null,"Figure 17",1,null,null,null,null,null,0]
[null,"Figure 18",1,null,null,null,null,null,0]
[" Ensemble","Ensemble 1",2,null,null,null,null,null,0]
[null,"Ensemble 2",2,null,null,null,null,null,0]
[null,"Ensemble 3",2,null,null,null,null,null,0]
[null,"Ensemble 4",2,null,null,null,null,null,0]
["Pénalité en points"]
["Erreure(s) de tracé "]
["% Total du juge",null,null,{"$f":"IF(ISBLANK('Info+Engagés'!H2),\"\",D37/2.6-D35)","v":""},{"$f":"IF(ISBLANK('Info+Engagés'!H3),\"\",E37/2.6-E35)","v":""},{"$f":"IF(ISBLANK('Info+Engagés'!H4),\"\",F37/2.6-F35)","v":0},{"$f":"IF(ISBLANK('Info+Engagés'!H5),\"\",G37/2.6-G35)","v":""},{"$f":"IF(ISBLANK('Info+Engagés'!H6),\"\",H37/2.6-H35)","v":""},{"$f":"MAX(D36:H36)-MIN(D36:H36)","v":0}]
["Soit en points",null,null,{"$f":"IF(ISBLANK('Info+Engagés'!H2),\"\",(SUM(D12:D29,D30*2,D31*2,D32*2,D33*2)-D34))","v":""},{"$f":"IF(ISBLANK('Info+Engagés'!H3),\"\",(SUM(E12:E29,E30*2,E31*2,E32*2,E33*2)-E34))","v":""},{"$f":"IF(ISBLANK('Info+Engagés'!H4),\"\",(SUM(F12:F29,F30*2,F31*2,F32*2,F33*2)-F34))","v":0},{"$f":"IF(ISBLANK('Info+Engagés'!H5),\"\",(SUM(G12:G29,G30*2,G31*2,G32*2,G33*2)-G34))","v":""},{"$f":"IF(ISBLANK('Info+Engagés'!H6),\"\",(SUM(H12:H29,H30*2,H31*2,H32*2,H33*2)-H34))","v":""}]
["                          Total maxi par juge = 260          1 point correspond à 0,385%              1% correspond en points à : 2,6                                                                  Les notes sont sur 10 et correspondent à la saisie informatique par l'opérateur des protocoles joints, Le total résulte de l'addition des points attribués après application du coefficient et soustraction des points de pénalité encourus après conversion en pourcentage sont déduit les pourcentages de pénalités encourus par suite d'erreurs de tracé pour obtenir le pourcentage par juge."]

{"sheet":"Cav20","index":20,"n_rows":38,"n_cols":9,"rows_kept":38,"cut":false,"hidden":false,"merged":[[34,0,34,2],[35,0,35,2],[36,0,36,2],[37,0,41,8],[9,6,10,6],[9,7,10,7],[10,0,10,1],[33,0,33,2],[9,5,10,5],[11,0,28,0],[29,0,32,0],[8,2,10,2],[8,8,10,8],[8,0,8,1],[9,0,9,1],[9,3,10,3],[9,4,10,4],[4,0,4,1],[4,7,5,7],[4,8,5,8],[5,0,5,1],[6,0,7,1],[6,2,7,2],[6,7,7,7],[6,8,7,8],[4,3,7,4],[4,5,7,6],[0,0,1,2],[0,3,1,6],[0,7,1,8],[2,0,2,2],[2,3,3,4],[2,5,3,6],[3,0,3,2]]}
[{"$f":"'Info+Engagés'!B3","v":"Quel Lieu (Dép)"},null,null,{"$f":"'Info+Engagés'!B8","v":"Para Club 3 Niveau 3"},null,null,null,{"$f":"'Info+Engagés'!B2","v":"Quelle Date ?"}]
[]
["N° de concours",null,null,"Cheval",null,"Cavalier",null,"Note d’ensemble",{"$f":"SUM(D30:H33)*2","v":0}]
[{"$f":"'Info+Engagés'!B4","v":"Quel N°"},null,null,null,null,null,null,"Points",{"$f":"SUM(D37:H37)","v":0}]
["Épreuve N°",null,{"$f":"'Info+Engagés'!B5","v":"Quel N°"},{"$f":"'Info+Engagés'!B31","v":0},null,{"$f":"'Info+Engagés'!G31","v":0},null,"% Final",{"$f":"AVERAGE(D36:H36)","v":0}]
["Piste  ",null,{"$f":"'Info+Engagés'!B6","v":"Piste ?"}]
["N° Départ BO",null,{"$f":"'Info+Engagés'!A31","v":0},null,null,null,null,"Classement"]
[]
["Imprimé le :",null,"Coéff .","Juge E","Juge H","Juge C","Juge M","Juge B","écart Max"]
[{"$f":"TODAY()","v":"2019-06-06"},null,null,{"$f":"IF(ISBLANK('Info+Engagés'!H2),\"\",('Info+Engagés'!H2))","v":""},{"$f":"IF(ISBLANK('Info+Engagés'!H3),\"\",('Info+Engagés'!H3))","v":""},{"$f":"IF(ISBLANK('Info+Engagés'!H4),\"\",('Info+Engagés'!H4))","v":"Nom du juge en C"},{"$f":"IF(ISBLANK('Info+Engagés'!H5),\"\",('Info+Engagés'!H5))","v":""},{"$f":"IF(ISBLANK('Info+Engagés'!H6),\"\",('Info+Engagés'!H6))","v":""}]
[{"$f":"NOW()","v":43622.846019328703}]
["Notation figures","Figure 1",1,null,null,null,null,null,{"$f":"MAX(D12:H12)-MIN(D12:H12)","v":0}]
[null,"Figure 2",1,null,null,null,null,null,0]
[null,"Figure 3",1,null,null,null,null,null,0]
[null,"Figure 4",1,null,null,null,null,null,0]
[null,"Figure 5",1,null,null,null,null,null,0]
[null,"Figure 6",1,null,null,null,null,null,0]
[null,"Figure 7",1,null,null,null,null,null,0]
[null,"Figure 8",1,null,null,null,null,null,0]
[null,"Figure 9",1,null,null,null,null,null,0]
[null,"Figure 10",1,null,null,null,null,null,0]
[null,"Figure 11",1,null,null,null,null,null,0]
[null,"Figure 12",1,null,null,null,null,null,0]
[null,"Figure 13",1,null,null,null,null,null,0]
[null,"Figure 14",1,null,null,null,null,null,0]
[null,"Figure 15",1,null,null,null,null,null,0]
[null,"Figure 16",1,null,null,null,null,null,0]
[null,"Figure 17",1,null,null,null,null,null,0]
[null,"Figure 18",1,null,null,null,null,null,0]
[" Ensemble","Ensemble 1",2,null,null,null,null,null,0]
[null,"Ensemble 2",2,null,null,null,null,null,0]
[null,"Ensemble 3",2,null,null,null,null,null,0]
[null,"Ensemble 4",2,null,null,null,null,null,0]
["Pénalité en points"]
["Erreure(s) de tracé "]
["% Total du juge",null,null,{"$f":"IF(ISBLANK('Info+Engagés'!H2),\"\",D37/2.6-D35)","v":""},{"$f":"IF(ISBLANK('Info+Engagés'!H3),\"\",E37/2.6-E35)","v":""},{"$f":"IF(ISBLANK('Info+Engagés'!H4),\"\",F37/2.6-F35)","v":0},{"$f":"IF(ISBLANK('Info+Engagés'!H5),\"\",G37/2.6-G35)","v":""},{"$f":"IF(ISBLANK('Info+Engagés'!H6),\"\",H37/2.6-H35)","v":""},{"$f":"MAX(D36:H36)-MIN(D36:H36)","v":0}]
["Soit en points",null,null,{"$f":"IF(ISBLANK('Info+Engagés'!H2),\"\",(SUM(D12:D29,D30*2,D31*2,D32*2,D33*2)-D34))","v":""},{"$f":"IF(ISBLANK('Info+Engagés'!H3),\"\",(SUM(E12:E29,E30*2,E31*2,E32*2,E33*2)-E34))","v":""},{"$f":"IF(ISBLANK('Info+Engagés'!H4),\"\",(SUM(F12:F29,F30*2,F31*2,F32*2,F33*2)-F34))","v":0},{"$f":"IF(ISBLANK('Info+Engagés'!H5),\"\",(SUM(G12:G29,G30*2,G31*2,G32*2,G33*2)-G34))","v":""},{"$f":"IF(ISBLANK('Info+Engagés'!H6),\"\",(SUM(H12:H29,H30*2,H31*2,H32*2,H33*2)-H34))","v":""}]
["                          Total maxi par juge = 260          1 point correspond à 0,385%              1% correspond en points à : 2,6                                                                  Les notes sont sur 10 et correspondent à la saisie informatique par l'opérateur des protocoles joints, Le total résulte de l'addition des points attribués après application du coefficient et soustraction des points de pénalité encourus après conversion en pourcentage sont déduit les pourcentages de pénalités encourus par suite d'erreurs de tracé pour obtenir le pourcentage par juge."]

{"sheet":"Cav21","index":21,"n_rows":38,"n_cols":9,"rows_kept":38,"cut":false,"hidden":false,"merged":[[34,0,34,2],[35,0,35,2],[36,0,36,2],[37,0,41,8],[9,6,10,6],[9,7,10,7],[10,0,10,1],[33,0,33,2],[9,5,10,5],[11,0,28,0],[29,0,32,0],[8,2,10,2],[8,8,10,8],[8,0,8,1],[9,0,9,1],[9,3,10,3],[9,4,10,4],[4,0,4,1],[4,7,5,7],[4,8,5,8],[5,0,5,1],[6,0,7,1],[6,2,7,2],[6,7,7,7],[6,8,7,8],[4,3,7,4],[4,5,7,6],[0,0,1,2],[0,3,1,6],[0,7,1,8],[2,0,2,2],[2,3,3,4],[2,5,3,6],[3,0,3,2]]}
[{"$f":"'Info+Engagés'!B3","v":"Quel Lieu (Dép)"},null,null,{"$f":"'Info+Engagés'!B8","v":"Para Club 3 Niveau 3"},null,null,null,{"$f":"'Info+Engagés'!B2","v":"Quelle Date ?"}]
[]
["N° de concours",null,null,"Cheval",null,"Cavalier",null,"Note d’ensemble",{"$f":"SUM(D30:H33)*2","v":0}]
[{"$f":"'Info+Engagés'!B4","v":"Quel N°"},null,null,null,null,null,null,"Points",{"$f":"SUM(D37:H37)","v":0}]
["Épreuve N°",null,{"$f":"'Info+Engagés'!B5","v":"Quel N°"},{"$f":"'Info+Engagés'!B32","v":0},null,{"$f":"'Info+Engagés'!G32","v":0},null,"% Final",{"$f":"AVERAGE(D36:H36)","v":0}]
["Piste  ",null,{"$f":"'Info+Engagés'!B6","v":"Piste ?"}]
["N° Départ BO",null,{"$f":"'Info+Engagés'!A32","v":0},null,null,null,null,"Classement"]
[]
["Imprimé le :",null,"Coéff .","Juge E","Juge H","Juge C","Juge M","Juge B","écart Max"]
[{"$f":"TODAY()","v":"2019-06-06"},null,null,{"$f":"IF(ISBLANK('Info+Engagés'!H2),\"\",('Info+Engagés'!H2))","v":""},{"$f":"IF(ISBLANK('Info+Engagés'!H3),\"\",('Info+Engagés'!H3))","v":""},{"$f":"IF(ISBLANK('Info+Engagés'!H4),\"\",('Info+Engagés'!H4))","v":"Nom du juge en C"},{"$f":"IF(ISBLANK('Info+Engagés'!H5),\"\",('Info+Engagés'!H5))","v":""},{"$f":"IF(ISBLANK('Info+Engagés'!H6),\"\",('Info+Engagés'!H6))","v":""}]
[{"$f":"NOW()","v":43622.846019328703}]
["Notation figures","Figure 1",1,null,null,null,null,null,{"$f":"MAX(D12:H12)-MIN(D12:H12)","v":0}]
[null,"Figure 2",1,null,null,null,null,null,0]
[null,"Figure 3",1,null,null,null,null,null,0]
[null,"Figure 4",1,null,null,null,null,null,0]
[null,"Figure 5",1,null,null,null,null,null,0]
[null,"Figure 6",1,null,null,null,null,null,0]
[null,"Figure 7",1,null,null,null,null,null,0]
[null,"Figure 8",1,null,null,null,null,null,0]
[null,"Figure 9",1,null,null,null,null,null,0]
[null,"Figure 10",1,null,null,null,null,null,0]
[null,"Figure 11",1,null,null,null,null,null,0]
[null,"Figure 12",1,null,null,null,null,null,0]
[null,"Figure 13",1,null,null,null,null,null,0]
[null,"Figure 14",1,null,null,null,null,null,0]
[null,"Figure 15",1,null,null,null,null,null,0]
[null,"Figure 16",1,null,null,null,null,null,0]
[null,"Figure 17",1,null,null,null,null,null,0]
[null,"Figure 18",1,null,null,null,null,null,0]
[" Ensemble","Ensemble 1",2,null,null,null,null,null,0]
[null,"Ensemble 2",2,null,null,null,null,null,0]
[null,"Ensemble 3",2,null,null,null,null,null,0]
[null,"Ensemble 4",2,null,null,null,null,null,0]
["Pénalité en points"]
["Erreure(s) de tracé "]
["% Total du juge",null,null,{"$f":"IF(ISBLANK('Info+Engagés'!H2),\"\",D37/2.6-D35)","v":""},{"$f":"IF(ISBLANK('Info+Engagés'!H3),\"\",E37/2.6-E35)","v":""},{"$f":"IF(ISBLANK('Info+Engagés'!H4),\"\",F37/2.6-F35)","v":0},{"$f":"IF(ISBLANK('Info+Engagés'!H5),\"\",G37/2.6-G35)","v":""},{"$f":"IF(ISBLANK('Info+Engagés'!H6),\"\",H37/2.6-H35)","v":""},{"$f":"MAX(D36:H36)-MIN(D36:H36)","v":0}]
["Soit en points",null,null,{"$f":"IF(ISBLANK('Info+Engagés'!H2),\"\",(SUM(D12:D29,D30*2,D31*2,D32*2,D33*2)-D34))","v":""},{"$f":"IF(ISBLANK('Info+Engagés'!H3),\"\",(SUM(E12:E29,E30*2,E31*2,E32*2,E33*2)-E34))","v":""},{"$f":"IF(ISBLANK('Info+Engagés'!H4),\"\",(SUM(F12:F29,F30*2,F31*2,F32*2,F33*2)-F34))","v":0},{"$f":"IF(ISBLANK('Info+Engagés'!H5),\"\",(SUM(G12:G29,G30*2,G31*2,G32*2,G33*2)-G34))","v":""},{"$f":"IF(ISBLANK('Info+Engagés'!H6),\"\",(SUM(H12:H29,H30*2,H31*2,H32*2,H33*2)-H34))","v":""}]
["                          Total maxi par juge = 260          1 point correspond à 0,385%              1% correspond en points à : 2,6                                                                  Les notes sont sur 10 et correspondent à la saisie informatique par l'opérateur des protocoles joints, Le total résulte de l'addition des points attribués après application du coefficient et soustraction des points de pénalité encourus après conversion en pourcentage sont déduit les pourcentages de pénalités encourus par suite d'erreurs de tracé pour obtenir le pourcentage par juge."]

{"sheet":"Cav22","index":22,"n_rows":38,"n_cols":9,"rows_kept":38,"cut":false,"hidden":false,"merged":[[34,0,34,2],[35,0,35,2],[36,0,36,2],[37,0,41,8],[9,6,10,6],[9,7,10,7],[10,0,10,1],[33,0,33,2],[9,5,10,5],[11,0,28,0],[29,0,32,0],[8,2,10,2],[8,8,10,8],[8,0,8,1],[9,0,9,1],[9,3,10,3],[9,4,10,4],[4,0,4,1],[4,7,5,7],[4,8,5,8],[5,0,5,1],[6,0,7,1],[6,2,7,2],[6,7,7,7],[6,8,7,8],[4,3,7,4],[4,5,7,6],[0,0,1,2],[0,3,1,6],[0,7,1,8],[2,0,2,2],[2,3,3,4],[2,5,3,6],[3,0,3,2]]}
[{"$f":"'Info+Engagés'!B3","v":"Quel Lieu (Dép)"},null,null,{"$f":"'Info+Engagés'!B8","v":"Para Club 3 Niveau 3"},null,null,null,{"$f":"'Info+Engagés'!B2","v":"Quelle Date ?"}]
[]
["N° de concours",null,null,"Cheval",null,"Cavalier",null,"Note d’ensemble",{"$f":"SUM(D30:H33)*2","v":0}]
[{"$f":"'Info+Engagés'!B4","v":"Quel N°"},null,null,null,null,null,null,"Points",{"$f":"SUM(D37:H37)","v":0}]
["Épreuve N°",null,{"$f":"'Info+Engagés'!B5","v":"Quel N°"},{"$f":"'Info+Engagés'!B33","v":0},null,{"$f":"'Info+Engagés'!G33","v":0},null,"% Final",{"$f":"AVERAGE(D36:H36)","v":0}]
["Piste  ",null,{"$f":"'Info+Engagés'!B6","v":"Piste ?"}]
["N° Départ BO",null,{"$f":"'Info+Engagés'!A33","v":0},null,null,null,null,"Classement"]
[]
["Imprimé le :",null,"Coéff .","Juge E","Juge H","Juge C","Juge M","Juge B","écart Max"]
[{"$f":"TODAY()","v":"2019-06-06"},null,null,{"$f":"IF(ISBLANK('Info+Engagés'!H2),\"\",('Info+Engagés'!H2))","v":""},{"$f":"IF(ISBLANK('Info+Engagés'!H3),\"\",('Info+Engagés'!H3))","v":""},{"$f":"IF(ISBLANK('Info+Engagés'!H4),\"\",('Info+Engagés'!H4))","v":"Nom du juge en C"},{"$f":"IF(ISBLANK('Info+Engagés'!H5),\"\",('Info+Engagés'!H5))","v":""},{"$f":"IF(ISBLANK('Info+Engagés'!H6),\"\",('Info+Engagés'!H6))","v":""}]
[{"$f":"NOW()","v":43622.846019328703}]
["Notation figures","Figure 1",1,null,null,null,null,null,{"$f":"MAX(D12:H12)-MIN(D12:H12)","v":0}]
[null,"Figure 2",1,null,null,null,null,null,0]
[null,"Figure 3",1,null,null,null,null,null,0]
[null,"Figure 4",1,null,null,null,null,null,0]
[null,"Figure 5",1,null,null,null,null,null,0]
[null,"Figure 6",1,null,null,null,null,null,0]
[null,"Figure 7",1,null,null,null,null,null,0]
[null,"Figure 8",1,null,null,null,null,null,0]
[null,"Figure 9",1,null,null,null,null,null,0]
[null,"Figure 10",1,null,null,null,null,null,0]
[null,"Figure 11",1,null,null,null,null,null,0]
[null,"Figure 12",1,null,null,null,null,null,0]
[null,"Figure 13",1,null,null,null,null,null,0]
[null,"Figure 14",1,null,null,null,null,null,0]
[null,"Figure 15",1,null,null,null,null,null,0]
[null,"Figure 16",1,null,null,null,null,null,0]
[null,"Figure 17",1,null,null,null,null,null,0]
[null,"Figure 18",1,null,null,null,null,null,0]
[" Ensemble","Ensemble 1",2,null,null,null,null,null,0]
[null,"Ensemble 2",2,null,null,null,null,null,0]
[null,"Ensemble 3",2,null,null,null,null,null,0]
[null,"Ensemble 4",2,null,null,null,null,null,0]
["Pénalité en points"]
["Erreure(s) de tracé "]
["% Total du juge",null,null,{"$f":"IF(ISBLANK('Info+Engagés'!H2),\"\",D37/2.6-D35)","v":""},{"$f":"IF(ISBLANK('Info+Engagés'!H3),\"\",E37/2.6-E35)","v":""},{"$f":"IF(ISBLANK('Info+Engagés'!H4),\"\",F37/2.6-F35)","v":0},{"$f":"IF(ISBLANK('Info+Engagés'!H5),\"\",G37/2.6-G35)","v":""},{"$f":"IF(ISBLANK('Info+Engagés'!H6),\"\",H37/2.6-H35)","v":""},{"$f":"MAX(D36:H36)-MIN(D36:H36)","v":0}]
["Soit en points",null,null,{"$f":"IF(ISBLANK('Info+Engagés'!H2),\"\",(SUM(D12:D29,D30*2,D31*2,D32*2,D33*2)-D34))","v":""},{"$f":"IF(ISBLANK('Info+Engagés'!H3),\"\",(SUM(E12:E29,E30*2,E31*2,E32*2,E33*2)-E34))","v":""},{"$f":"IF(ISBLANK('Info+Engagés'!H4),\"\",(SUM(F12:F29,F30*2,F31*2,F32*2,F33*2)-F34))","v":0},{"$f":"IF(ISBLANK('Info+Engagés'!H5),\"\",(SUM(G12:G29,G30*2,G31*2,G32*2,G33*2)-G34))","v":""},{"$f":"IF(ISBLANK('Info+Engagés'!H6),\"\",(SUM(H12:H29,H30*2,H31*2,H32*2,H33*2)-H34))","v":""}]
["                          Total maxi par juge = 260          1 point correspond à 0,385%              1% correspond en points à : 2,6                                                                  Les notes sont sur 10 et correspondent à la saisie informatique par l'opérateur des protocoles joints, Le total résulte de l'addition des points attribués après application du coefficient et soustraction des points de pénalité encourus après conversion en pourcentage sont déduit les pourcentages de pénalités encourus par suite d'erreurs de tracé pour obtenir le pourcentage par juge."]

{"sheet":"Cav23","index":23,"n_rows":38,"n_cols":9,"rows_kept":38,"cut":false,"hidden":false,"merged":[[34,0,34,2],[35,0,35,2],[36,0,36,2],[37,0,41,8],[9,6,10,6],[9,7,10,7],[10,0,10,1],[33,0,33,2],[9,5,10,5],[11,0,28,0],[29,0,32,0],[8,2,10,2],[8,8,10,8],[8,0,8,1],[9,0,9,1],[9,3,10,3],[9,4,10,4],[4,0,4,1],[4,7,5,7],[4,8,5,8],[5,0,5,1],[6,0,7,1],[6,2,7,2],[6,7,7,7],[6,8,7,8],[4,3,7,4],[4,5,7,6],[0,0,1,2],[0,3,1,6],[0,7,1,8],[2,0,2,2],[2,3,3,4],[2,5,3,6],[3,0,3,2]]}
[{"$f":"'Info+Engagés'!B3","v":"Quel Lieu (Dép)"},null,null,{"$f":"'Info+Engagés'!B8","v":"Para Club 3 Niveau 3"},null,null,null,{"$f":"'Info+Engagés'!B2","v":"Quelle Date ?"}]
[]
["N° de concours",null,null,"Cheval",null,"Cavalier",null,"Note d’ensemble",{"$f":"SUM(D30:H33)*2","v":0}]
[{"$f":"'Info+Engagés'!B4","v":"Quel N°"},null,null,null,null,null,null,"Points",{"$f":"SUM(D37:H37)","v":0}]
["Épreuve N°",null,{"$f":"'Info+Engagés'!B5","v":"Quel N°"},{"$f":"'Info+Engagés'!B34","v":0},null,{"$f":"'Info+Engagés'!G34","v":0},null,"% Final",{"$f":"AVERAGE(D36:H36)","v":0}]
["Piste  ",null,{"$f":"'Info+Engagés'!B6","v":"Piste ?"}]
["N° Départ BO",null,{"$f":"'Info+Engagés'!A34","v":0},null,null,null,null,"Classement"]
[]
["Imprimé le :",null,"Coéff .","Juge E","Juge H","Juge C","Juge M","Juge B","écart Max"]
[{"$f":"TODAY()","v":"2019-06-06"},null,null,{"$f":"IF(ISBLANK('Info+Engagés'!H2),\"\",('Info+Engagés'!H2))","v":""},{"$f":"IF(ISBLANK('Info+Engagés'!H3),\"\",('Info+Engagés'!H3))","v":""},{"$f":"IF(ISBLANK('Info+Engagés'!H4),\"\",('Info+Engagés'!H4))","v":"Nom du juge en C"},{"$f":"IF(ISBLANK('Info+Engagés'!H5),\"\",('Info+Engagés'!H5))","v":""},{"$f":"IF(ISBLANK('Info+Engagés'!H6),\"\",('Info+Engagés'!H6))","v":""}]
[{"$f":"NOW()","v":43622.846019328703}]
["Notation figures","Figure 1",1,null,null,null,null,null,{"$f":"MAX(D12:H12)-MIN(D12:H12)","v":0}]
[null,"Figure 2",1,null,null,null,null,null,0]
[null,"Figure 3",1,null,null,null,null,null,0]
[null,"Figure 4",1,null,null,null,null,null,0]
[null,"Figure 5",1,null,null,null,null,null,0]
[null,"Figure 6",1,null,null,null,null,null,0]
[null,"Figure 7",1,null,null,null,null,null,0]
[null,"Figure 8",1,null,null,null,null,null,0]
[null,"Figure 9",1,null,null,null,null,null,0]
[null,"Figure 10",1,null,null,null,null,null,0]
[null,"Figure 11",1,null,null,null,null,null,0]
[null,"Figure 12",1,null,null,null,null,null,0]
[null,"Figure 13",1,null,null,null,null,null,0]
[null,"Figure 14",1,null,null,null,null,null,0]
[null,"Figure 15",1,null,null,null,null,null,0]
[null,"Figure 16",1,null,null,null,null,null,0]
[null,"Figure 17",1,null,null,null,null,null,0]
[null,"Figure 18",1,null,null,null,null,null,0]
[" Ensemble","Ensemble 1",2,null,null,null,null,null,0]
[null,"Ensemble 2",2,null,null,null,null,null,0]
[null,"Ensemble 3",2,null,null,null,null,null,0]
[null,"Ensemble 4",2,null,null,null,null,null,0]
["Pénalité en points"]
["Erreure(s) de tracé "]
["% Total du juge",null,null,{"$f":"IF(ISBLANK('Info+Engagés'!H2),\"\",D37/2.6-D35)","v":""},{"$f":"IF(ISBLANK('Info+Engagés'!H3),\"\",E37/2.6-E35)","v":""},{"$f":"IF(ISBLANK('Info+Engagés'!H4),\"\",F37/2.6-F35)","v":0},{"$f":"IF(ISBLANK('Info+Engagés'!H5),\"\",G37/2.6-G35)","v":""},{"$f":"IF(ISBLANK('Info+Engagés'!H6),\"\",H37/2.6-H35)","v":""},{"$f":"MAX(D36:H36)-MIN(D36:H36)","v":0}]
["Soit en points",null,null,{"$f":"IF(ISBLANK('Info+Engagés'!H2),\"\",(SUM(D12:D29,D30*2,D31*2,D32*2,D33*2)-D34))","v":""},{"$f":"IF(ISBLANK('Info+Engagés'!H3),\"\",(SUM(E12:E29,E30*2,E31*2,E32*2,E33*2)-E34))","v":""},{"$f":"IF(ISBLANK('Info+Engagés'!H4),\"\",(SUM(F12:F29,F30*2,F31*2,F32*2,F33*2)-F34))","v":0},{"$f":"IF(ISBLANK('Info+Engagés'!H5),\"\",(SUM(G12:G29,G30*2,G31*2,G32*2,G33*2)-G34))","v":""},{"$f":"IF(ISBLANK('Info+Engagés'!H6),\"\",(SUM(H12:H29,H30*2,H31*2,H32*2,H33*2)-H34))","v":""}]
["                          Total maxi par juge = 260          1 point correspond à 0,385%              1% correspond en points à : 2,6                                                                  Les notes sont sur 10 et correspondent à la saisie informatique par l'opérateur des protocoles joints, Le total résulte de l'addition des points attribués après application du coefficient et soustraction des points de pénalité encourus après conversion en pourcentage sont déduit les pourcentages de pénalités encourus par suite d'erreurs de tracé pour obtenir le pourcentage par juge."]

{"sheet":"Cav24","index":24,"n_rows":38,"n_cols":9,"rows_kept":38,"cut":false,"hidden":false,"merged":[[34,0,34,2],[35,0,35,2],[36,0,36,2],[37,0,41,8],[9,6,10,6],[9,7,10,7],[10,0,10,1],[33,0,33,2],[9,5,10,5],[11,0,28,0],[29,0,32,0],[8,2,10,2],[8,8,10,8],[8,0,8,1],[9,0,9,1],[9,3,10,3],[9,4,10,4],[4,0,4,1],[4,7,5,7],[4,8,5,8],[5,0,5,1],[6,0,7,1],[6,2,7,2],[6,7,7,7],[6,8,7,8],[4,3,7,4],[4,5,7,6],[0,0,1,2],[0,3,1,6],[0,7,1,8],[2,0,2,2],[2,3,3,4],[2,5,3,6],[3,0,3,2]]}
[{"$f":"'Info+Engagés'!B3","v":"Quel Lieu (Dép)"},null,null,{"$f":"'Info+Engagés'!B8","v":"Para Club 3 Niveau 3"},null,null,null,{"$f":"'Info+Engagés'!B2","v":"Quelle Date ?"}]
[]
["N° de concours",null,null,"Cheval",null,"Cavalier",null,"Note d’ensemble",{"$f":"SUM(D30:H33)*2","v":0}]
[{"$f":"'Info+Engagés'!B4","v":"Quel N°"},null,null,null,null,null,null,"Points",{"$f":"SUM(D37:H37)","v":0}]
["Épreuve N°",null,{"$f":"'Info+Engagés'!B5","v":"Quel N°"},{"$f":"'Info+Engagés'!B35","v":0},null,{"$f":"'Info+Engagés'!G35","v":0},null,"% Final",{"$f":"AVERAGE(D36:H36)","v":0}]
["Piste  ",null,{"$f":"'Info+Engagés'!B6","v":"Piste ?"}]
["N° Départ BO",null,{"$f":"'Info+Engagés'!A35","v":0},null,null,null,null,"Classement"]
[]
["Imprimé le :",null,"Coéff .","Juge E","Juge H","Juge C","Juge M","Juge B","écart Max"]
[{"$f":"TODAY()","v":"2019-06-06"},null,null,{"$f":"IF(ISBLANK('Info+Engagés'!H2),\"\",('Info+Engagés'!H2))","v":""},{"$f":"IF(ISBLANK('Info+Engagés'!H3),\"\",('Info+Engagés'!H3))","v":""},{"$f":"IF(ISBLANK('Info+Engagés'!H4),\"\",('Info+Engagés'!H4))","v":"Nom du juge en C"},{"$f":"IF(ISBLANK('Info+Engagés'!H5),\"\",('Info+Engagés'!H5))","v":""},{"$f":"IF(ISBLANK('Info+Engagés'!H6),\"\",('Info+Engagés'!H6))","v":""}]
[{"$f":"NOW()","v":43622.846019328703}]
["Notation figures","Figure 1",1,null,null,null,null,null,{"$f":"MAX(D12:H12)-MIN(D12:H12)","v":0}]
[null,"Figure 2",1,null,null,null,null,null,0]
[null,"Figure 3",1,null,null,null,null,null,0]
[null,"Figure 4",1,null,null,null,null,null,0]
[null,"Figure 5",1,null,null,null,null,null,0]
[null,"Figure 6",1,null,null,null,null,null,0]
[null,"Figure 7",1,null,null,null,null,null,0]
[null,"Figure 8",1,null,null,null,null,null,0]
[null,"Figure 9",1,null,null,null,null,null,0]
[null,"Figure 10",1,null,null,null,null,null,0]
[null,"Figure 11",1,null,null,null,null,null,0]
[null,"Figure 12",1,null,null,null,null,null,0]
[null,"Figure 13",1,null,null,null,null,null,0]
[null,"Figure 14",1,null,null,null,null,null,0]
[null,"Figure 15",1,null,null,null,null,null,0]
[null,"Figure 16",1,null,null,null,null,null,0]
[null,"Figure 17",1,null,null,null,null,null,0]
[null,"Figure 18",1,null,null,null,null,null,0]
[" Ensemble","Ensemble 1",2,null,null,null,null,null,0]
[null,"Ensemble 2",2,null,null,null,null,null,0]
[null,"Ensemble 3",2,null,null,null,null,null,0]
[null,"Ensemble 4",2,null,null,null,null,null,0]
["Pénalité en points"]
["Erreure(s) de tracé "]
["% Total du juge",null,null,{"$f":"IF(ISBLANK('Info+Engagés'!H2),\"\",D37/2.6-D35)","v":""},{"$f":"IF(ISBLANK('Info+Engagés'!H3),\"\",E37/2.6-E35)","v":""},{"$f":"IF(ISBLANK('Info+Engagés'!H4),\"\",F37/2.6-F35)","v":0},{"$f":"IF(ISBLANK('Info+Engagés'!H5),\"\",G37/2.6-G35)","v":""},{"$f":"IF(ISBLANK('Info+Engagés'!H6),\"\",H37/2.6-H35)","v":""},{"$f":"MAX(D36:H36)-MIN(D36:H36)","v":0}]
["Soit en points",null,null,{"$f":"IF(ISBLANK('Info+Engagés'!H2),\"\",(SUM(D12:D29,D30*2,D31*2,D32*2,D33*2)-D34))","v":""},{"$f":"IF(ISBLANK('Info+Engagés'!H3),\"\",(SUM(E12:E29,E30*2,E31*2,E32*2,E33*2)-E34))","v":""},{"$f":"IF(ISBLANK('Info+Engagés'!H4),\"\",(SUM(F12:F29,F30*2,F31*2,F32*2,F33*2)-F34))","v":0},{"$f":"IF(ISBLANK('Info+Engagés'!H5),\"\",(SUM(G12:G29,G30*2,G31*2,G32*2,G33*2)-G34))","v":""},{"$f":"IF(ISBLANK('Info+Engagés'!H6),\"\",(SUM(H12:H29,H30*2,H31*2,H32*2,H33*2)-H34))","v":""}]
["                          Total maxi par juge = 260          1 point correspond à 0,385%              1% correspond en points à : 2,6                                                                  Les notes sont sur 10 et correspondent à la saisie informatique par l'opérateur des protocoles joints, Le total résulte de l'addition des points attribués après application du coefficient et soustraction des points de pénalité encourus après conversion en pourcentage sont déduit les pourcentages de pénalités encourus par suite d'erreurs de tracé pour obtenir le pourcentage par juge."]

{"sheet":"Cav25","index":25,"n_rows":38,"n_cols":9,"rows_kept":38,"cut":false,"hidden":false,"merged":[[34,0,34,2],[35,0,35,2],[36,0,36,2],[37,0,41,8],[9,6,10,6],[9,7,10,7],[10,0,10,1],[33,0,33,2],[9,5,10,5],[11,0,28,0],[29,0,32,0],[8,2,10,2],[8,8,10,8],[8,0,8,1],[9,0,9,1],[9,3,10,3],[9,4,10,4],[4,0,4,1],[4,7,5,7],[4,8,5,8],[5,0,5,1],[6,0,7,1],[6,2,7,2],[6,7,7,7],[6,8,7,8],[4,3,7,4],[4,5,7,6],[0,0,1,2],[0,3,1,6],[0,7,1,8],[2,0,2,2],[2,3,3,4],[2,5,3,6],[3,0,3,2]]}
[{"$f":"'Info+Engagés'!B3","v":"Quel Lieu (Dép)"},null,null,{"$f":"'Info+Engagés'!B8","v":"Para Club 3 Niveau 3"},null,null,null,{"$f":"'Info+Engagés'!B2","v":"Quelle Date ?"}]
[]
["N° de concours",null,null,"Cheval",null,"Cavalier",null,"Note d’ensemble",{"$f":"SUM(D30:H33)*2","v":0}]
[{"$f":"'Info+Engagés'!B4","v":"Quel N°"},null,null,null,null,null,null,"Points",{"$f":"SUM(D37:H37)","v":0}]
["Épreuve N°",null,{"$f":"'Info+Engagés'!B5","v":"Quel N°"},{"$f":"'Info+Engagés'!B36","v":0},null,{"$f":"'Info+Engagés'!G36","v":0},null,"% Final",{"$f":"AVERAGE(D36:H36)","v":0}]
["Piste  ",null,{"$f":"'Info+Engagés'!B6","v":"Piste ?"}]
["N° Départ BO",null,{"$f":"'Info+Engagés'!A36","v":0},null,null,null,null,"Classement"]
[]
["Imprimé le :",null,"Coéff .","Juge E","Juge H","Juge C","Juge M","Juge B","écart Max"]
[{"$f":"TODAY()","v":"2019-06-06"},null,null,{"$f":"IF(ISBLANK('Info+Engagés'!H2),\"\",('Info+Engagés'!H2))","v":""},{"$f":"IF(ISBLANK('Info+Engagés'!H3),\"\",('Info+Engagés'!H3))","v":""},{"$f":"IF(ISBLANK('Info+Engagés'!H4),\"\",('Info+Engagés'!H4))","v":"Nom du juge en C"},{"$f":"IF(ISBLANK('Info+Engagés'!H5),\"\",('Info+Engagés'!H5))","v":""},{"$f":"IF(ISBLANK('Info+Engagés'!H6),\"\",('Info+Engagés'!H6))","v":""}]
[{"$f":"NOW()","v":43622.846019328703}]
["Notation figures","Figure 1",1,null,null,null,null,null,{"$f":"MAX(D12:H12)-MIN(D12:H12)","v":0}]
[null,"Figure 2",1,null,null,null,null,null,0]
[null,"Figure 3",1,null,null,null,null,null,0]
[null,"Figure 4",1,null,null,null,null,null,0]
[null,"Figure 5",1,null,null,null,null,null,0]
[null,"Figure 6",1,null,null,null,null,null,0]
[null,"Figure 7",1,null,null,null,null,null,0]
[null,"Figure 8",1,null,null,null,null,null,0]
[null,"Figure 9",1,null,null,null,null,null,0]
[null,"Figure 10",1,null,null,null,null,null,0]
[null,"Figure 11",1,null,null,null,null,null,0]
[null,"Figure 12",1,null,null,null,null,null,0]
[null,"Figure 13",1,null,null,null,null,null,0]
[null,"Figure 14",1,null,null,null,null,null,0]
[null,"Figure 15",1,null,null,null,null,null,0]
[null,"Figure 16",1,null,null,null,null,null,0]
[null,"Figure 17",1,null,null,null,null,null,0]
[null,"Figure 18",1,null,null,null,null,null,0]
[" Ensemble","Ensemble 1",2,null,null,null,null,null,0]
[null,"Ensemble 2",2,null,null,null,null,null,0]
[null,"Ensemble 3",2,null,null,null,null,null,0]
[null,"Ensemble 4",2,null,null,null,null,null,0]
["Pénalité en points"]
["Erreure(s) de tracé "]
["% Total du juge",null,null,{"$f":"IF(ISBLANK('Info+Engagés'!H2),\"\",D37/2.6-D35)","v":""},{"$f":"IF(ISBLANK('Info+Engagés'!H3),\"\",E37/2.6-E35)","v":""},{"$f":"IF(ISBLANK('Info+Engagés'!H4),\"\",F37/2.6-F35)","v":0},{"$f":"IF(ISBLANK('Info+Engagés'!H5),\"\",G37/2.6-G35)","v":""},{"$f":"IF(ISBLANK('Info+Engagés'!H6),\"\",H37/2.6-H35)","v":""},{"$f":"MAX(D36:H36)-MIN(D36:H36)","v":0}]
["Soit en points",null,null,{"$f":"IF(ISBLANK('Info+Engagés'!H2),\"\",(SUM(D12:D29,D30*2,D31*2,D32*2,D33*2)-D34))","v":""},{"$f":"IF(ISBLANK('Info+Engagés'!H3),\"\",(SUM(E12:E29,E30*2,E31*2,E32*2,E33*2)-E34))","v":""},{"$f":"IF(ISBLANK('Info+Engagés'!H4),\"\",(SUM(F12:F29,F30*2,F31*2,F32*2,F33*2)-F34))","v":0},{"$f":"IF(ISBLANK('Info+Engagés'!H5),\"\",(SUM(G12:G29,G30*2,G31*2,G32*2,G33*2)-G34))","v":""},{"$f":"IF(ISBLANK('Info+Engagés'!H6),\"\",(SUM(H12:H29,H30*2,H31*2,H32*2,H33*2)-H34))","v":""}]
["                          Total maxi par juge = 260          1 point correspond à 0,385%              1% correspond en points à : 2,6                                                                  Les notes sont sur 10 et correspondent à la saisie informatique par l'opérateur des protocoles joints, Le total résulte de l'addition des points attribués après application du coefficient et soustraction des points de pénalité encourus après conversion en pourcentage sont déduit les pourcentages de pénalités encourus par suite d'erreurs de tracé pour obtenir le pourcentage par juge."]

{"sheet":"Cav26","index":26,"n_rows":38,"n_cols":9,"rows_kept":38,"cut":false,"hidden":false,"merged":[[34,0,34,2],[35,0,35,2],[36,0,36,2],[37,0,41,8],[9,6,10,6],[9,7,10,7],[10,0,10,1],[33,0,33,2],[9,5,10,5],[11,0,28,0],[29,0,32,0],[8,2,10,2],[8,8,10,8],[8,0,8,1],[9,0,9,1],[9,3,10,3],[9,4,10,4],[4,0,4,1],[4,7,5,7],[4,8,5,8],[5,0,5,1],[6,0,7,1],[6,2,7,2],[6,7,7,7],[6,8,7,8],[4,3,7,4],[4,5,7,6],[0,0,1,2],[0,3,1,6],[0,7,1,8],[2,0,2,2],[2,3,3,4],[2,5,3,6],[3,0,3,2]]}
[{"$f":"'Info+Engagés'!B3","v":"Quel Lieu (Dép)"},null,null,{"$f":"'Info+Engagés'!B8","v":"Para Club 3 Niveau 3"},null,null,null,{"$f":"'Info+Engagés'!B2","v":"Quelle Date ?"}]
[]
["N° de concours",null,null,"Cheval",null,"Cavalier",null,"Note d’ensemble",{"$f":"SUM(D30:H33)*2","v":0}]
[{"$f":"'Info+Engagés'!B4","v":"Quel N°"},null,null,null,null,null,null,"Points",{"$f":"SUM(D37:H37)","v":0}]
["Épreuve N°",null,{"$f":"'Info+Engagés'!B5","v":"Quel N°"},{"$f":"'Info+Engagés'!B37","v":0},null,{"$f":"'Info+Engagés'!G37","v":0},null,"% Final",{"$f":"AVERAGE(D36:H36)","v":0}]
["Piste  ",null,{"$f":"'Info+Engagés'!B6","v":"Piste ?"}]
["N° Départ BO",null,{"$f":"'Info+Engagés'!A37","v":0},null,null,null,null,"Classement"]
[]
["Imprimé le :",null,"Coéff .","Juge E","Juge H","Juge C","Juge M","Juge B","écart Max"]
[{"$f":"TODAY()","v":"2019-06-06"},null,null,{"$f":"IF(ISBLANK('Info+Engagés'!H2),\"\",('Info+Engagés'!H2))","v":""},{"$f":"IF(ISBLANK('Info+Engagés'!H3),\"\",('Info+Engagés'!H3))","v":""},{"$f":"IF(ISBLANK('Info+Engagés'!H4),\"\",('Info+Engagés'!H4))","v":"Nom du juge en C"},{"$f":"IF(ISBLANK('Info+Engagés'!H5),\"\",('Info+Engagés'!H5))","v":""},{"$f":"IF(ISBLANK('Info+Engagés'!H6),\"\",('Info+Engagés'!H6))","v":""}]
[{"$f":"NOW()","v":43622.846019328703}]
["Notation figures","Figure 1",1,null,null,null,null,null,{"$f":"MAX(D12:H12)-MIN(D12:H12)","v":0}]
[null,"Figure 2",1,null,null,null,null,null,0]
[null,"Figure 3",1,null,null,null,null,null,0]
[null,"Figure 4",1,null,null,null,null,null,0]
[null,"Figure 5",1,null,null,null,null,null,0]
[null,"Figure 6",1,null,null,null,null,null,0]
[null,"Figure 7",1,null,null,null,null,null,0]
[null,"Figure 8",1,null,null,null,null,null,0]
[null,"Figure 9",1,null,null,null,null,null,0]
[null,"Figure 10",1,null,null,null,null,null,0]
[null,"Figure 11",1,null,null,null,null,null,0]
[null,"Figure 12",1,null,null,null,null,null,0]
[null,"Figure 13",1,null,null,null,null,null,0]
[null,"Figure 14",1,null,null,null,null,null,0]
[null,"Figure 15",1,null,null,null,null,null,0]
[null,"Figure 16",1,null,null,null,null,null,0]
[null,"Figure 17",1,null,null,null,null,null,0]
[null,"Figure 18",1,null,null,null,null,null,0]
[" Ensemble","Ensemble 1",2,null,null,null,null,null,0]
[null,"Ensemble 2",2,null,null,null,null,null,0]
[null,"Ensemble 3",2,null,null,null,null,null,0]
[null,"Ensemble 4",2,null,null,null,null,null,0]
["Pénalité en points"]
["Erreure(s) de tracé "]
["% Total du juge",null,null,{"$f":"IF(ISBLANK('Info+Engagés'!H2),\"\",D37/2.6-D35)","v":""},{"$f":"IF(ISBLANK('Info+Engagés'!H3),\"\",E37/2.6-E35)","v":""},{"$f":"IF(ISBLANK('Info+Engagés'!H4),\"\",F37/2.6-F35)","v":0},{"$f":"IF(ISBLANK('Info+Engagés'!H5),\"\",G37/2.6-G35)","v":""},{"$f":"IF(ISBLANK('Info+Engagés'!H6),\"\",H37/2.6-H35)","v":""},{"$f":"MAX(D36:H36)-MIN(D36:H36)","v":0}]
["Soit en points",null,null,{"$f":"IF(ISBLANK('Info+Engagés'!H2),\"\",(SUM(D12:D29,D30*2,D31*2,D32*2,D33*2)-D34))","v":""},{"$f":"IF(ISBLANK('Info+Engagés'!H3),\"\",(SUM(E12:E29,E30*2,E31*2,E32*2,E33*2)-E34))","v":""},{"$f":"IF(ISBLANK('Info+Engagés'!H4),\"\",(SUM(F12:F29,F30*2,F31*2,F32*2,F33*2)-F34))","v":0},{"$f":"IF(ISBLANK('Info+Engagés'!H5),\"\",(SUM(G12:G29,G30*2,G31*2,G32*2,G33*2)-G34))","v":""},{"$f":"IF(ISBLANK('Info+Engagés'!H6),\"\",(SUM(H12:H29,H30*2,H31*2,H32*2,H33*2)-H34))","v":""}]
["                          Total maxi par juge = 260          1 point correspond à 0,385%              1% correspond en points à : 2,6                                                                  Les notes sont sur 10 et correspondent à la saisie informatique par l'opérateur des protocoles joints, Le total résulte de l'addition des points attribués après application du coefficient et soustraction des points de pénalité encourus après conversion en pourcentage sont déduit les pourcentages de pénalités encourus par suite d'erreurs de tracé pour obtenir le pourcentage par juge."]

{"sheet":"Cav27","index":27,"n_rows":38,"n_cols":9,"rows_kept":38,"cut":false,"hidden":false,"merged":[[34,0,34,2],[35,0,35,2],[36,0,36,2],[37,0,41,8],[9,6,10,6],[9,7,10,7],[10,0,10,1],[33,0,33,2],[9,5,10,5],[11,0,28,0],[29,0,32,0],[8,2,10,2],[8,8,10,8],[8,0,8,1],[9,0,9,1],[9,3,10,3],[9,4,10,4],[4,0,4,1],[4,7,5,7],[4,8,5,8],[5,0,5,1],[6,0,7,1],[6,2,7,2],[6,7,7,7],[6,8,7,8],[4,3,7,4],[4,5,7,6],[0,0,1,2],[0,3,1,6],[0,7,1,8],[2,0,2,2],[2,3,3,4],[2,5,3,6],[3,0,3,2]]}
[{"$f":"'Info+Engagés'!B3","v":"Quel Lieu (Dép)"},null,null,{"$f":"'Info+Engagés'!B8","v":"Para Club 3 Niveau 3"},null,null,null,{"$f":"'Info+Engagés'!B2","v":"Quelle Date ?"}]
[]
["N° de concours",null,null,"Cheval",null,"Cavalier",null,"Note d’ensemble",{"$f":"SUM(D30:H33)*2","v":0}]
[{"$f":"'Info+Engagés'!B4","v":"Quel N°"},null,null,null,null,null,null,"Points",{"$f":"SUM(D37:H37)","v":0}]
["Épreuve N°",null,{"$f":"'Info+Engagés'!B5","v":"Quel N°"},{"$f":"'Info+Engagés'!B38","v":0},null,{"$f":"'Info+Engagés'!G38","v":0},null,"% Final",{"$f":"AVERAGE(D36:H36)","v":0}]
["Piste  ",null,{"$f":"'Info+Engagés'!B6","v":"Piste ?"}]
["N° Départ BO",null,{"$f":"'Info+Engagés'!A38","v":0},null,null,null,null,"Classement"]
[]
["Imprimé le :",null,"Coéff .","Juge E","Juge H","Juge C","Juge M","Juge B","écart Max"]
[{"$f":"TODAY()","v":"2019-06-06"},null,null,{"$f":"IF(ISBLANK('Info+Engagés'!H2),\"\",('Info+Engagés'!H2))","v":""},{"$f":"IF(ISBLANK('Info+Engagés'!H3),\"\",('Info+Engagés'!H3))","v":""},{"$f":"IF(ISBLANK('Info+Engagés'!H4),\"\",('Info+Engagés'!H4))","v":"Nom du juge en C"},{"$f":"IF(ISBLANK('Info+Engagés'!H5),\"\",('Info+Engagés'!H5))","v":""},{"$f":"IF(ISBLANK('Info+Engagés'!H6),\"\",('Info+Engagés'!H6))","v":""}]
[{"$f":"NOW()","v":43622.846019328703}]
["Notation figures","Figure 1",1,null,null,null,null,null,{"$f":"MAX(D12:H12)-MIN(D12:H12)","v":0}]
[null,"Figure 2",1,null,null,null,null,null,0]
[null,"Figure 3",1,null,null,null,null,null,0]
[null,"Figure 4",1,null,null,null,null,null,0]
[null,"Figure 5",1,null,null,null,null,null,0]
[null,"Figure 6",1,null,null,null,null,null,0]
[null,"Figure 7",1,null,null,null,null,null,0]
[null,"Figure 8",1,null,null,null,null,null,0]
[null,"Figure 9",1,null,null,null,null,null,0]
[null,"Figure 10",1,null,null,null,null,null,0]
[null,"Figure 11",1,null,null,null,null,null,0]
[null,"Figure 12",1,null,null,null,null,null,0]
[null,"Figure 13",1,null,null,null,null,null,0]
[null,"Figure 14",1,null,null,null,null,null,0]
[null,"Figure 15",1,null,null,null,null,null,0]
[null,"Figure 16",1,null,null,null,null,null,0]
[null,"Figure 17",1,null,null,null,null,null,0]
[null,"Figure 18",1,null,null,null,null,null,0]
[" Ensemble","Ensemble 1",2,null,null,null,null,null,0]
[null,"Ensemble 2",2,null,null,null,null,null,0]
[null,"Ensemble 3",2,null,null,null,null,null,0]
[null,"Ensemble 4",2,null,null,null,null,null,0]
["Pénalité en points"]
["Erreure(s) de tracé "]
["% Total du juge",null,null,{"$f":"IF(ISBLANK('Info+Engagés'!H2),\"\",D37/2.6-D35)","v":""},{"$f":"IF(ISBLANK('Info+Engagés'!H3),\"\",E37/2.6-E35)","v":""},{"$f":"IF(ISBLANK('Info+Engagés'!H4),\"\",F37/2.6-F35)","v":0},{"$f":"IF(ISBLANK('Info+Engagés'!H5),\"\",G37/2.6-G35)","v":""},{"$f":"IF(ISBLANK('Info+Engagés'!H6),\"\",H37/2.6-H35)","v":""},{"$f":"MAX(D36:H36)-MIN(D36:H36)","v":0}]
["Soit en points",null,null,{"$f":"IF(ISBLANK('Info+Engagés'!H2),\"\",(SUM(D12:D29,D30*2,D31*2,D32*2,D33*2)-D34))","v":""},{"$f":"IF(ISBLANK('Info+Engagés'!H3),\"\",(SUM(E12:E29,E30*2,E31*2,E32*2,E33*2)-E34))","v":""},{"$f":"IF(ISBLANK('Info+Engagés'!H4),\"\",(SUM(F12:F29,F30*2,F31*2,F32*2,F33*2)-F34))","v":0},{"$f":"IF(ISBLANK('Info+Engagés'!H5),\"\",(SUM(G12:G29,G30*2,G31*2,G32*2,G33*2)-G34))","v":""},{"$f":"IF(ISBLANK('Info+Engagés'!H6),\"\",(SUM(H12:H29,H30*2,H31*2,H32*2,H33*2)-H34))","v":""}]
["                          Total maxi par juge = 260          1 point correspond à 0,385%              1% correspond en points à : 2,6                                                                  Les notes sont sur 10 et correspondent à la saisie informatique par l'opérateur des protocoles joints, Le total résulte de l'addition des points attribués après application du coefficient et soustraction des points de pénalité encourus après conversion en pourcentage sont déduit les pourcentages de pénalités encourus par suite d'erreurs de tracé pour obtenir le pourcentage par juge."]

{"sheet":"Cav28","index":28,"n_rows":38,"n_cols":9,"rows_kept":38,"cut":false,"hidden":false,"merged":[[34,0,34,2],[35,0,35,2],[36,0,36,2],[37,0,41,8],[9,6,10,6],[9,7,10,7],[10,0,10,1],[33,0,33,2],[9,5,10,5],[11,0,28,0],[29,0,32,0],[8,2,10,2],[8,8,10,8],[8,0,8,1],[9,0,9,1],[9,3,10,3],[9,4,10,4],[4,0,4,1],[4,7,5,7],[4,8,5,8],[5,0,5,1],[6,0,7,1],[6,2,7,2],[6,7,7,7],[6,8,7,8],[4,3,7,4],[4,5,7,6],[0,0,1,2],[0,3,1,6],[0,7,1,8],[2,0,2,2],[2,3,3,4],[2,5,3,6],[3,0,3,2]]}
[{"$f":"'Info+Engagés'!B3","v":"Quel Lieu (Dép)"},null,null,{"$f":"'Info+Engagés'!B8","v":"Para Club 3 Niveau 3"},null,null,null,{"$f":"'Info+Engagés'!B2","v":"Quelle Date ?"}]
[]
["N° de concours",null,null,"Cheval",null,"Cavalier",null,"Note d’ensemble",{"$f":"SUM(D30:H33)*2","v":0}]
[{"$f":"'Info+Engagés'!B4","v":"Quel N°"},null,null,null,null,null,null,"Points",{"$f":"SUM(D37:H37)","v":0}]
["Épreuve N°",null,{"$f":"'Info+Engagés'!B5","v":"Quel N°"},{"$f":"'Info+Engagés'!B39","v":0},null,{"$f":"'Info+Engagés'!G39","v":0},null,"% Final",{"$f":"AVERAGE(D36:H36)","v":0}]
["Piste  ",null,{"$f":"'Info+Engagés'!B6","v":"Piste ?"}]
["N° Départ BO",null,{"$f":"'Info+Engagés'!A39","v":0},null,null,null,null,"Classement"]
[]
["Imprimé le :",null,"Coéff .","Juge E","Juge H","Juge C","Juge M","Juge B","écart Max"]
[{"$f":"TODAY()","v":"2019-06-06"},null,null,{"$f":"IF(ISBLANK('Info+Engagés'!H2),\"\",('Info+Engagés'!H2))","v":""},{"$f":"IF(ISBLANK('Info+Engagés'!H3),\"\",('Info+Engagés'!H3))","v":""},{"$f":"IF(ISBLANK('Info+Engagés'!H4),\"\",('Info+Engagés'!H4))","v":"Nom du juge en C"},{"$f":"IF(ISBLANK('Info+Engagés'!H5),\"\",('Info+Engagés'!H5))","v":""},{"$f":"IF(ISBLANK('Info+Engagés'!H6),\"\",('Info+Engagés'!H6))","v":""}]
[{"$f":"NOW()","v":43622.846019328703}]
["Notation figures","Figure 1",1,null,null,null,null,null,{"$f":"MAX(D12:H12)-MIN(D12:H12)","v":0}]
[null,"Figure 2",1,null,null,null,null,null,0]
[null,"Figure 3",1,null,null,null,null,null,0]
[null,"Figure 4",1,null,null,null,null,null,0]
[null,"Figure 5",1,null,null,null,null,null,0]
[null,"Figure 6",1,null,null,null,null,null,0]
[null,"Figure 7",1,null,null,null,null,null,0]
[null,"Figure 8",1,null,null,null,null,null,0]
[null,"Figure 9",1,null,null,null,null,null,0]
[null,"Figure 10",1,null,null,null,null,null,0]
[null,"Figure 11",1,null,null,null,null,null,0]
[null,"Figure 12",1,null,null,null,null,null,0]
[null,"Figure 13",1,null,null,null,null,null,0]
[null,"Figure 14",1,null,null,null,null,null,0]
[null,"Figure 15",1,null,null,null,null,null,0]
[null,"Figure 16",1,null,null,null,null,null,0]
[null,"Figure 17",1,null,null,null,null,null,0]
[null,"Figure 18",1,null,null,null,null,null,0]
[" Ensemble","Ensemble 1",2,null,null,null,null,null,0]
[null,"Ensemble 2",2,null,null,null,null,null,0]
[null,"Ensemble 3",2,null,null,null,null,null,0]
[null,"Ensemble 4",2,null,null,null,null,null,0]
["Pénalité en points"]
["Erreure(s) de tracé "]
["% Total du juge",null,null,{"$f":"IF(ISBLANK('Info+Engagés'!H2),\"\",D37/2.6-D35)","v":""},{"$f":"IF(ISBLANK('Info+Engagés'!H3),\"\",E37/2.6-E35)","v":""},{"$f":"IF(ISBLANK('Info+Engagés'!H4),\"\",F37/2.6-F35)","v":0},{"$f":"IF(ISBLANK('Info+Engagés'!H5),\"\",G37/2.6-G35)","v":""},{"$f":"IF(ISBLANK('Info+Engagés'!H6),\"\",H37/2.6-H35)","v":""},{"$f":"MAX(D36:H36)-MIN(D36:H36)","v":0}]
["Soit en points",null,null,{"$f":"IF(ISBLANK('Info+Engagés'!H2),\"\",(SUM(D12:D29,D30*2,D31*2,D32*2,D33*2)-D34))","v":""},{"$f":"IF(ISBLANK('Info+Engagés'!H3),\"\",(SUM(E12:E29,E30*2,E31*2,E32*2,E33*2)-E34))","v":""},{"$f":"IF(ISBLANK('Info+Engagés'!H4),\"\",(SUM(F12:F29,F30*2,F31*2,F32*2,F33*2)-F34))","v":0},{"$f":"IF(ISBLANK('Info+Engagés'!H5),\"\",(SUM(G12:G29,G30*2,G31*2,G32*2,G33*2)-G34))","v":""},{"$f":"IF(ISBLANK('Info+Engagés'!H6),\"\",(SUM(H12:H29,H30*2,H31*2,H32*2,H33*2)-H34))","v":""}]
["                          Total maxi par juge = 260          1 point correspond à 0,385%              1% correspond en points à : 2,6                                                                  Les notes sont sur 10 et correspondent à la saisie informatique par l'opérateur des protocoles joints, Le total résulte de l'addition des points attribués après application du coefficient et soustraction des points de pénalité encourus après conversion en pourcentage sont déduit les pourcentages de pénalités encourus par suite d'erreurs de tracé pour obtenir le pourcentage par juge."]

{"sheet":"Cav29","index":29,"n_rows":38,"n_cols":9,"rows_kept":38,"cut":false,"hidden":false,"merged":[[34,0,34,2],[35,0,35,2],[36,0,36,2],[37,0,41,8],[9,6,10,6],[9,7,10,7],[10,0,10,1],[33,0,33,2],[9,5,10,5],[11,0,28,0],[29,0,32,0],[8,2,10,2],[8,8,10,8],[8,0,8,1],[9,0,9,1],[9,3,10,3],[9,4,10,4],[4,0,4,1],[4,7,5,7],[4,8,5,8],[5,0,5,1],[6,0,7,1],[6,2,7,2],[6,7,7,7],[6,8,7,8],[4,3,7,4],[4,5,7,6],[0,0,1,2],[0,3,1,6],[0,7,1,8],[2,0,2,2],[2,3,3,4],[2,5,3,6],[3,0,3,2]]}
[{"$f":"'Info+Engagés'!B3","v":"Quel Lieu (Dép)"},null,null,{"$f":"'Info+Engagés'!B8","v":"Para Club 3 Niveau 3"},null,null,null,{"$f":"'Info+Engagés'!B2","v":"Quelle Date ?"}]
[]
["N° de concours",null,null,"Cheval",null,"Cavalier",null,"Note d’ensemble",{"$f":"SUM(D30:H33)*2","v":0}]
[{"$f":"'Info+Engagés'!B4","v":"Quel N°"},null,null,null,null,null,null,"Points",{"$f":"SUM(D37:H37)","v":0}]
["Épreuve N°",null,{"$f":"'Info+Engagés'!B5","v":"Quel N°"},{"$f":"'Info+Engagés'!B40","v":0},null,{"$f":"'Info+Engagés'!G40","v":0},null,"% Final",{"$f":"AVERAGE(D36:H36)","v":0}]
["Piste  ",null,{"$f":"'Info+Engagés'!B6","v":"Piste ?"}]
["N° Départ BO",null,{"$f":"'Info+Engagés'!A40","v":0},null,null,null,null,"Classement"]
[]
["Imprimé le :",null,"Coéff .","Juge E","Juge H","Juge C","Juge M","Juge B","écart Max"]
[{"$f":"TODAY()","v":"2019-06-06"},null,null,{"$f":"IF(ISBLANK('Info+Engagés'!H2),\"\",('Info+Engagés'!H2))","v":""},{"$f":"IF(ISBLANK('Info+Engagés'!H3),\"\",('Info+Engagés'!H3))","v":""},{"$f":"IF(ISBLANK('Info+Engagés'!H4),\"\",('Info+Engagés'!H4))","v":"Nom du juge en C"},{"$f":"IF(ISBLANK('Info+Engagés'!H5),\"\",('Info+Engagés'!H5))","v":""},{"$f":"IF(ISBLANK('Info+Engagés'!H6),\"\",('Info+Engagés'!H6))","v":""}]
[{"$f":"NOW()","v":43622.846019328703}]
["Notation figures","Figure 1",1,null,null,null,null,null,{"$f":"MAX(D12:H12)-MIN(D12:H12)","v":0}]
[null,"Figure 2",1,null,null,null,null,null,0]
[null,"Figure 3",1,null,null,null,null,null,0]
[null,"Figure 4",1,null,null,null,null,null,0]
[null,"Figure 5",1,null,null,null,null,null,0]
[null,"Figure 6",1,null,null,null,null,null,0]
[null,"Figure 7",1,null,null,null,null,null,0]
[null,"Figure 8",1,null,null,null,null,null,0]
[null,"Figure 9",1,null,null,null,null,null,0]
[null,"Figure 10",1,null,null,null,null,null,0]
[null,"Figure 11",1,null,null,null,null,null,0]
[null,"Figure 12",1,null,null,null,null,null,0]
[null,"Figure 13",1,null,null,null,null,null,0]
[null,"Figure 14",1,null,null,null,null,null,0]
[null,"Figure 15",1,null,null,null,null,null,0]
[null,"Figure 16",1,null,null,null,null,null,0]
[null,"Figure 17",1,null,null,null,null,null,0]
[null,"Figure 18",1,null,null,null,null,null,0]
[" Ensemble","Ensemble 1",2,null,null,null,null,null,0]
[null,"Ensemble 2",2,null,null,null,null,null,0]
[null,"Ensemble 3",2,null,null,null,null,null,0]
[null,"Ensemble 4",2,null,null,null,null,null,0]
["Pénalité en points"]
["Erreure(s) de tracé "]
["% Total du juge",null,null,{"$f":"IF(ISBLANK('Info+Engagés'!H2),\"\",D37/2.6-D35)","v":""},{"$f":"IF(ISBLANK('Info+Engagés'!H3),\"\",E37/2.6-E35)","v":""},{"$f":"IF(ISBLANK('Info+Engagés'!H4),\"\",F37/2.6-F35)","v":0},{"$f":"IF(ISBLANK('Info+Engagés'!H5),\"\",G37/2.6-G35)","v":""},{"$f":"IF(ISBLANK('Info+Engagés'!H6),\"\",H37/2.6-H35)","v":""},{"$f":"MAX(D36:H36)-MIN(D36:H36)","v":0}]
["Soit en points",null,null,{"$f":"IF(ISBLANK('Info+Engagés'!H2),\"\",(SUM(D12:D29,D30*2,D31*2,D32*2,D33*2)-D34))","v":""},{"$f":"IF(ISBLANK('Info+Engagés'!H3),\"\",(SUM(E12:E29,E30*2,E31*2,E32*2,E33*2)-E34))","v":""},{"$f":"IF(ISBLANK('Info+Engagés'!H4),\"\",(SUM(F12:F29,F30*2,F31*2,F32*2,F33*2)-F34))","v":0},{"$f":"IF(ISBLANK('Info+Engagés'!H5),\"\",(SUM(G12:G29,G30*2,G31*2,G32*2,G33*2)-G34))","v":""},{"$f":"IF(ISBLANK('Info+Engagés'!H6),\"\",(SUM(H12:H29,H30*2,H31*2,H32*2,H33*2)-H34))","v":""}]
["                          Total maxi par juge = 260          1 point correspond à 0,385%              1% correspond en points à : 2,6                                                                  Les notes sont sur 10 et correspondent à la saisie informatique par l'opérateur des protocoles joints, Le total résulte de l'addition des points attribués après application du coefficient et soustraction des points de pénalité encourus après conversion en pourcentage sont déduit les pourcentages de pénalités encourus par suite d'erreurs de tracé pour obtenir le pourcentage par juge."]

{"sheet":"Cav30","index":30,"n_rows":38,"n_cols":9,"rows_kept":38,"cut":false,"hidden":false,"merged":[[34,0,34,2],[35,0,35,2],[36,0,36,2],[37,0,41,8],[9,6,10,6],[9,7,10,7],[10,0,10,1],[33,0,33,2],[9,5,10,5],[11,0,28,0],[29,0,32,0],[8,2,10,2],[8,8,10,8],[8,0,8,1],[9,0,9,1],[9,3,10,3],[9,4,10,4],[4,0,4,1],[4,7,5,7],[4,8,5,8],[5,0,5,1],[6,0,7,1],[6,2,7,2],[6,7,7,7],[6,8,7,8],[4,3,7,4],[4,5,7,6],[0,0,1,2],[0,3,1,6],[0,7,1,8],[2,0,2,2],[2,3,3,4],[2,5,3,6],[3,0,3,2]]}
[{"$f":"'Info+Engagés'!B3","v":"Quel Lieu (Dép)"},null,null,{"$f":"'Info+Engagés'!B8","v":"Para Club 3 Niveau 3"},null,null,null,{"$f":"'Info+Engagés'!B2","v":"Quelle Date ?"}]
[]
["N° de concours",null,null,"Cheval",null,"Cavalier",null,"Note d’ensemble",{"$f":"SUM(D30:H33)*2","v":0}]
[{"$f":"'Info+Engagés'!B4","v":"Quel N°"},null,null,null,null,null,null,"Points",{"$f":"SUM(D37:H37)","v":0}]
["Épreuve N°",null,{"$f":"'Info+Engagés'!B5","v":"Quel N°"},{"$f":"'Info+Engagés'!B41","v":0},null,{"$f":"'Info+Engagés'!G41","v":0},null,"% Final",{"$f":"AVERAGE(D36:H36)","v":0}]
["Piste  ",null,{"$f":"'Info+Engagés'!B6","v":"Piste ?"}]
["N° Départ BO",null,{"$f":"'Info+Engagés'!A41","v":0},null,null,null,null,"Classement"]
[]
["Imprimé le :",null,"Coéff .","Juge E","Juge H","Juge C","Juge M","Juge B","écart Max"]
[{"$f":"TODAY()","v":"2019-06-06"},null,null,{"$f":"IF(ISBLANK('Info+Engagés'!H2),\"\",('Info+Engagés'!H2))","v":""},{"$f":"IF(ISBLANK('Info+Engagés'!H3),\"\",('Info+Engagés'!H3))","v":""},{"$f":"IF(ISBLANK('Info+Engagés'!H4),\"\",('Info+Engagés'!H4))","v":"Nom du juge en C"},{"$f":"IF(ISBLANK('Info+Engagés'!H5),\"\",('Info+Engagés'!H5))","v":""},{"$f":"IF(ISBLANK('Info+Engagés'!H6),\"\",('Info+Engagés'!H6))","v":""}]
[{"$f":"NOW()","v":43622.846019328703}]
["Notation figures","Figure 1",1,null,null,null,null,null,{"$f":"MAX(D12:H12)-MIN(D12:H12)","v":0}]
[null,"Figure 2",1,null,null,null,null,null,0]
[null,"Figure 3",1,null,null,null,null,null,0]
[null,"Figure 4",1,null,null,null,null,null,0]
[null,"Figure 5",1,null,null,null,null,null,0]
[null,"Figure 6",1,null,null,null,null,null,0]
[null,"Figure 7",1,null,null,null,null,null,0]
[null,"Figure 8",1,null,null,null,null,null,0]
[null,"Figure 9",1,null,null,null,null,null,0]
[null,"Figure 10",1,null,null,null,null,null,0]
[null,"Figure 11",1,null,null,null,null,null,0]
[null,"Figure 12",1,null,null,null,null,null,0]
[null,"Figure 13",1,null,null,null,null,null,0]
[null,"Figure 14",1,null,null,null,null,null,0]
[null,"Figure 15",1,null,null,null,null,null,0]
[null,"Figure 16",1,null,null,null,null,null,0]
[null,"Figure 17",1,null,null,null,null,null,0]
[null,"Figure 18",1,null,null,null,null,null,0]
[" Ensemble","Ensemble 1",2,null,null,null,null,null,0]
[null,"Ensemble 2",2,null,null,null,null,null,0]
[null,"Ensemble 3",2,null,null,null,null,null,0]
[null,"Ensemble 4",2,null,null,null,null,null,0]
["Pénalité en points"]
["Erreure(s) de tracé "]
["% Total du juge",null,null,{"$f":"IF(ISBLANK('Info+Engagés'!H2),\"\",D37/2.6-D35)","v":""},{"$f":"IF(ISBLANK('Info+Engagés'!H3),\"\",E37/2.6-E35)","v":""},{"$f":"IF(ISBLANK('Info+Engagés'!H4),\"\",F37/2.6-F35)","v":0},{"$f":"IF(ISBLANK('Info+Engagés'!H5),\"\",G37/2.6-G35)","v":""},{"$f":"IF(ISBLANK('Info+Engagés'!H6),\"\",H37/2.6-H35)","v":""},{"$f":"MAX(D36:H36)-MIN(D36:H36)","v":0}]
["Soit en points",null,null,{"$f":"IF(ISBLANK('Info+Engagés'!H2),\"\",(SUM(D12:D29,D30*2,D31*2,D32*2,D33*2)-D34))","v":""},{"$f":"IF(ISBLANK('Info+Engagés'!H3),\"\",(SUM(E12:E29,E30*2,E31*2,E32*2,E33*2)-E34))","v":""},{"$f":"IF(ISBLANK('Info+Engagés'!H4),\"\",(SUM(F12:F29,F30*2,F31*2,F32*2,F33*2)-F34))","v":0},{"$f":"IF(ISBLANK('Info+Engagés'!H5),\"\",(SUM(G12:G29,G30*2,G31*2,G32*2,G33*2)-G34))","v":""},{"$f":"IF(ISBLANK('Info+Engagés'!H6),\"\",(SUM(H12:H29,H30*2,H31*2,H32*2,H33*2)-H34))","v":""}]
["                          Total maxi par juge = 260          1 point correspond à 0,385%              1% correspond en points à : 2,6                                                                  Les notes sont sur 10 et correspondent à la saisie informatique par l'opérateur des protocoles joints, Le total résulte de l'addition des points attribués après application du coefficient et soustraction des points de pénalité encourus après conversion en pourcentage sont déduit les pourcentages de pénalités encourus par suite d'erreurs de tracé pour obtenir le pourcentage par juge."]

{"sheet":"Cav31","index":31,"n_rows":38,"n_cols":9,"rows_kept":38,"cut":false,"hidden":false,"merged":[[0,0,1,2],[0,3,1,6],[0,7,1,8],[2,0,2,2],[2,3,3,4],[2,5,3,6],[3,0,3,2],[8,2,10,2],[4,0,4,1],[4,7,5,7],[4,8,5,8],[5,0,5,1],[6,0,7,1],[6,2,7,2],[6,7,7,7],[6,8,7,8],[4,3,7,4],[4,5,7,6],[34,0,34,2],[35,0,35,2],[36,0,36,2],[37,0,41,8],[9,6,10,6],[9,7,10,7],[10,0,10,1],[33,0,33,2],[9,5,10,5],[11,0,28,0],[29,0,32,0],[8,8,10,8],[8,0,8,1],[9,0,9,1],[9,3,10,3],[9,4,10,4]]}
[{"$f":"'Info+Engagés'!B3","v":"Quel Lieu (Dép)"},null,null,{"$f":"'Info+Engagés'!B8","v":"Para Club 3 Niveau 3"},null,null,null,{"$f":"'Info+Engagés'!B2","v":"Quelle Date ?"}]
[]
["N° de concours",null,null,"Cheval",null,"Cavalier",null,"Note d’ensemble",{"$f":"SUM(D30:H33)*2","v":0}]
[{"$f":"'Info+Engagés'!B4","v":"Quel N°"},null,null,null,null,null,null,"Points",{"$f":"SUM(D37:H37)","v":0}]
["Épreuve N°",null,{"$f":"'Info+Engagés'!B5","v":"Quel N°"},{"$f":"'Info+Engagés'!B42","v":0},null,{"$f":"'Info+Engagés'!G42","v":0},null,"% Final",{"$f":"AVERAGE(D36:H36)","v":0}]
["Piste  ",null,{"$f":"'Info+Engagés'!B6","v":"Piste ?"}]
["N° Départ BO",null,{"$f":"'Info+Engagés'!A42","v":0},null,null,null,null,"Classement"]
[]
["Imprimé le :",null,"Coéff .","Juge E","Juge H","Juge C","Juge M","Juge B","écart Max"]
[{"$f":"TODAY()","v":"2019-06-06"},null,null,{"$f":"IF(ISBLANK('Info+Engagés'!H2),\"\",('Info+Engagés'!H2))","v":""},{"$f":"IF(ISBLANK('Info+Engagés'!H3),\"\",('Info+Engagés'!H3))","v":""},{"$f":"IF(ISBLANK('Info+Engagés'!H4),\"\",('Info+Engagés'!H4))","v":"Nom du juge en C"},{"$f":"IF(ISBLANK('Info+Engagés'!H5),\"\",('Info+Engagés'!H5))","v":""},{"$f":"IF(ISBLANK('Info+Engagés'!H6),\"\",('Info+Engagés'!H6))","v":""}]
[{"$f":"NOW()","v":43622.846019328703}]
["Notation figures","Figure 1",1,null,null,null,null,null,{"$f":"MAX(D12:H12)-MIN(D12:H12)","v":0}]
[null,"Figure 2",1,null,null,null,null,null,0]
[null,"Figure 3",1,null,null,null,null,null,0]
[null,"Figure 4",1,null,null,null,null,null,0]
[null,"Figure 5",1,null,null,null,null,null,0]
[null,"Figure 6",1,null,null,null,null,null,0]
[null,"Figure 7",1,null,null,null,null,null,0]
[null,"Figure 8",1,null,null,null,null,null,0]
[null,"Figure 9",1,null,null,null,null,null,0]
[null,"Figure 10",1,null,null,null,null,null,0]
[null,"Figure 11",1,null,null,null,null,null,0]
[null,"Figure 12",1,null,null,null,null,null,0]
[null,"Figure 13",1,null,null,null,null,null,0]
[null,"Figure 14",1,null,null,null,null,null,0]
[null,"Figure 15",1,null,null,null,null,null,0]
[null,"Figure 16",1,null,null,null,null,null,0]
[null,"Figure 17",1,null,null,null,null,null,0]
[null,"Figure 18",1,null,null,null,null,null,0]
[" Ensemble","Ensemble 1",2,null,null,null,null,null,0]
[null,"Ensemble 2",2,null,null,null,null,null,0]
[null,"Ensemble 3",2,null,null,null,null,null,0]
[null,"Ensemble 4",2,null,null,null,null,null,0]
["Pénalité en points"]
["Erreure(s) de tracé "]
["% Total du juge",null,null,{"$f":"IF(ISBLANK('Info+Engagés'!H2),\"\",D37/2.6-D35)","v":""},{"$f":"IF(ISBLANK('Info+Engagés'!H3),\"\",E37/2.6-E35)","v":""},{"$f":"IF(ISBLANK('Info+Engagés'!H4),\"\",F37/2.6-F35)","v":0},{"$f":"IF(ISBLANK('Info+Engagés'!H5),\"\",G37/2.6-G35)","v":""},{"$f":"IF(ISBLANK('Info+Engagés'!H6),\"\",H37/2.6-H35)","v":""},{"$f":"MAX(D36:H36)-MIN(D36:H36)","v":0}]
["Soit en points",null,null,{"$f":"IF(ISBLANK('Info+Engagés'!H2),\"\",(SUM(D12:D29,D30*2,D31*2,D32*2,D33*2)-D34))","v":""},{"$f":"IF(ISBLANK('Info+Engagés'!H3),\"\",(SUM(E12:E29,E30*2,E31*2,E32*2,E33*2)-E34))","v":""},{"$f":"IF(ISBLANK('Info+Engagés'!H4),\"\",(SUM(F12:F29,F30*2,F31*2,F32*2,F33*2)-F34))","v":0},{"$f":"IF(ISBLANK('Info+Engagés'!H5),\"\",(SUM(G12:G29,G30*2,G31*2,G32*2,G33*2)-G34))","v":""},{"$f":"IF(ISBLANK('Info+Engagés'!H6),\"\",(SUM(H12:H29,H30*2,H31*2,H32*2,H33*2)-H34))","v":""}]
["                          Total maxi par juge = 260          1 point correspond à 0,385%              1% correspond en points à : 2,6                                                                  Les notes sont sur 10 et correspondent à la saisie informatique par l'opérateur des protocoles joints, Le total résulte de l'addition des points attribués après application du coefficient et soustraction des points de pénalité encourus après conversion en pourcentage sont déduit les pourcentages de pénalités encourus par suite d'erreurs de tracé pour obtenir le pourcentage par juge."]

{"sheet":"Cav32","index":32,"n_rows":38,"n_cols":9,"rows_kept":38,"cut":false,"hidden":false,"merged":[[0,0,1,2],[0,3,1,6],[0,7,1,8],[2,0,2,2],[2,3,3,4],[2,5,3,6],[3,0,3,2],[8,2,10,2],[4,0,4,1],[4,7,5,7],[4,8,5,8],[5,0,5,1],[6,0,7,1],[6,2,7,2],[6,7,7,7],[6,8,7,8],[4,3,7,4],[4,5,7,6],[34,0,34,2],[35,0,35,2],[36,0,36,2],[37,0,41,8],[9,6,10,6],[9,7,10,7],[10,0,10,1],[33,0,33,2],[9,5,10,5],[11,0,28,0],[29,0,32,0],[8,8,10,8],[8,0,8,1],[9,0,9,1],[9,3,10,3],[9,4,10,4]]}
[{"$f":"'Info+Engagés'!B3","v":"Quel Lieu (Dép)"},null,null,{"$f":"'Info+Engagés'!B8","v":"Para Club 3 Niveau 3"},null,null,null,{"$f":"'Info+Engagés'!B2","v":"Quelle Date ?"}]
[]
["N° de concours",null,null,"Cheval",null,"Cavalier",null,"Note d’ensemble",{"$f":"SUM(D30:H33)*2","v":0}]
[{"$f":"'Info+Engagés'!B4","v":"Quel N°"},null,null,null,null,null,null,"Points",{"$f":"SUM(D37:H37)","v":0}]
["Épreuve N°",null,{"$f":"'Info+Engagés'!B5","v":"Quel N°"},{"$f":"'Info+Engagés'!B43","v":0},null,{"$f":"'Info+Engagés'!G43","v":0},null,"% Final",{"$f":"AVERAGE(D36:H36)","v":0}]
["Piste  ",null,{"$f":"'Info+Engagés'!B6","v":"Piste ?"}]
["N° Départ BO",null,{"$f":"'Info+Engagés'!A43","v":0},null,null,null,null,"Classement"]
[]
["Imprimé le :",null,"Coéff .","Juge E","Juge H","Juge C","Juge M","Juge B","écart Max"]
[{"$f":"TODAY()","v":"2019-06-06"},null,null,{"$f":"IF(ISBLANK('Info+Engagés'!H2),\"\",('Info+Engagés'!H2))","v":""},{"$f":"IF(ISBLANK('Info+Engagés'!H3),\"\",('Info+Engagés'!H3))","v":""},{"$f":"IF(ISBLANK('Info+Engagés'!H4),\"\",('Info+Engagés'!H4))","v":"Nom du juge en C"},{"$f":"IF(ISBLANK('Info+Engagés'!H5),\"\",('Info+Engagés'!H5))","v":""},{"$f":"IF(ISBLANK('Info+Engagés'!H6),\"\",('Info+Engagés'!H6))","v":""}]
[{"$f":"NOW()","v":43622.846019328703}]
["Notation figures","Figure 1",1,null,null,null,null,null,{"$f":"MAX(D12:H12)-MIN(D12:H12)","v":0}]
[null,"Figure 2",1,null,null,null,null,null,0]
[null,"Figure 3",1,null,null,null,null,null,0]
[null,"Figure 4",1,null,null,null,null,null,0]
[null,"Figure 5",1,null,null,null,null,null,0]
[null,"Figure 6",1,null,null,null,null,null,0]
[null,"Figure 7",1,null,null,null,null,null,0]
[null,"Figure 8",1,null,null,null,null,null,0]
[null,"Figure 9",1,null,null,null,null,null,0]
[null,"Figure 10",1,null,null,null,null,null,0]
[null,"Figure 11",1,null,null,null,null,null,0]
[null,"Figure 12",1,null,null,null,null,null,0]
[null,"Figure 13",1,null,null,null,null,null,0]
[null,"Figure 14",1,null,null,null,null,null,0]
[null,"Figure 15",1,null,null,null,null,null,0]
[null,"Figure 16",1,null,null,null,null,null,0]
[null,"Figure 17",1,null,null,null,null,null,0]
[null,"Figure 18",1,null,null,null,null,null,0]
[" Ensemble","Ensemble 1",2,null,null,null,null,null,0]
[null,"Ensemble 2",2,null,null,null,null,null,0]
[null,"Ensemble 3",2,null,null,null,null,null,0]
[null,"Ensemble 4",2,null,null,null,null,null,0]
["Pénalité en points"]
["Erreure(s) de tracé "]
["% Total du juge",null,null,{"$f":"IF(ISBLANK('Info+Engagés'!H2),\"\",D37/2.6-D35)","v":""},{"$f":"IF(ISBLANK('Info+Engagés'!H3),\"\",E37/2.6-E35)","v":""},{"$f":"IF(ISBLANK('Info+Engagés'!H4),\"\",F37/2.6-F35)","v":0},{"$f":"IF(ISBLANK('Info+Engagés'!H5),\"\",G37/2.6-G35)","v":""},{"$f":"IF(ISBLANK('Info+Engagés'!H6),\"\",H37/2.6-H35)","v":""},{"$f":"MAX(D36:H36)-MIN(D36:H36)","v":0}]
["Soit en points",null,null,{"$f":"IF(ISBLANK('Info+Engagés'!H2),\"\",(SUM(D12:D29,D30*2,D31*2,D32*2,D33*2)-D34))","v":""},{"$f":"IF(ISBLANK('Info+Engagés'!H3),\"\",(SUM(E12:E29,E30*2,E31*2,E32*2,E33*2)-E34))","v":""},{"$f":"IF(ISBLANK('Info+Engagés'!H4),\"\",(SUM(F12:F29,F30*2,F31*2,F32*2,F33*2)-F34))","v":0},{"$f":"IF(ISBLANK('Info+Engagés'!H5),\"\",(SUM(G12:G29,G30*2,G31*2,G32*2,G33*2)-G34))","v":""},{"$f":"IF(ISBLANK('Info+Engagés'!H6),\"\",(SUM(H12:H29,H30*2,H31*2,H32*2,H33*2)-H34))","v":""}]
["                          Total maxi par juge = 260          1 point correspond à 0,385%              1% correspond en points à : 2,6                                                                  Les notes sont sur 10 et correspondent à la saisie informatique par l'opérateur des protocoles joints, Le total résulte de l'addition des points attribués après application du coefficient et soustraction des points de pénalité encourus après conversion en pourcentage sont déduit les pourcentages de pénalités encourus par suite d'erreurs de tracé pour obtenir le pourcentage par juge."]

{"sheet":"Cav33","index":33,"n_rows":38,"n_cols":9,"rows_kept":38,"cut":false,"hidden":false,"merged":[[0,0,1,2],[0,3,1,6],[0,7,1,8],[2,0,2,2],[2,3,3,4],[2,5,3,6],[3,0,3,2],[8,2,10,2],[4,0,4,1],[4,7,5,7],[4,8,5,8],[5,0,5,1],[6,0,7,1],[6,2,7,2],[6,7,7,7],[6,8,7,8],[4,3,7,4],[4,5,7,6],[34,0,34,2],[35,0,35,2],[36,0,36,2],[37,0,41,8],[9,6,10,6],[9,7,10,7],[10,0,10,1],[33,0,33,2],[9,5,10,5],[11,0,28,0],[29,0,32,0],[8,8,10,8],[8,0,8,1],[9,0,9,1],[9,3,10,3],[9,4,10,4]]}
[{"$f":"'Info+Engagés'!B3","v":"Quel Lieu (Dép)"},null,null,{"$f":"'Info+Engagés'!B8","v":"Para Club 3 Niveau 3"},null,null,null,{"$f":"'Info+Engagés'!B2","v":"Quelle Date ?"}]
[]
["N° de concours",null,null,"Cheval",null,"Cavalier",null,"Note d’ensemble",{"$f":"SUM(D30:H33)*2","v":0}]
[{"$f":"'Info+Engagés'!B4","v":"Quel N°"},null,null,null,null,null,null,"Points",{"$f":"SUM(D37:H37)","v":0}]
["Épreuve N°",null,{"$f":"'Info+Engagés'!B5","v":"Quel N°"},{"$f":"'Info+Engagés'!B44","v":0},null,{"$f":"'Info+Engagés'!G44","v":0},null,"% Final",{"$f":"AVERAGE(D36:H36)","v":0}]
["Piste  ",null,{"$f":"'Info+Engagés'!B6","v":"Piste ?"}]
["N° Départ BO",null,{"$f":"'Info+Engagés'!A44","v":0},null,null,null,null,"Classement"]
[]
["Imprimé le :",null,"Coéff .","Juge E","Juge H","Juge C","Juge M","Juge B","écart Max"]
[{"$f":"TODAY()","v":"2019-06-06"},null,null,{"$f":"IF(ISBLANK('Info+Engagés'!H2),\"\",('Info+Engagés'!H2))","v":""},{"$f":"IF(ISBLANK('Info+Engagés'!H3),\"\",('Info+Engagés'!H3))","v":""},{"$f":"IF(ISBLANK('Info+Engagés'!H4),\"\",('Info+Engagés'!H4))","v":"Nom du juge en C"},{"$f":"IF(ISBLANK('Info+Engagés'!H5),\"\",('Info+Engagés'!H5))","v":""},{"$f":"IF(ISBLANK('Info+Engagés'!H6),\"\",('Info+Engagés'!H6))","v":""}]
[{"$f":"NOW()","v":43622.846019328703}]
["Notation figures","Figure 1",1,null,null,null,null,null,{"$f":"MAX(D12:H12)-MIN(D12:H12)","v":0}]
[null,"Figure 2",1,null,null,null,null,null,0]
[null,"Figure 3",1,null,null,null,null,null,0]
[null,"Figure 4",1,null,null,null,null,null,0]
[null,"Figure 5",1,null,null,null,null,null,0]
[null,"Figure 6",1,null,null,null,null,null,0]
[null,"Figure 7",1,null,null,null,null,null,0]
[null,"Figure 8",1,null,null,null,null,null,0]
[null,"Figure 9",1,null,null,null,null,null,0]
[null,"Figure 10",1,null,null,null,null,null,0]
[null,"Figure 11",1,null,null,null,null,null,0]
[null,"Figure 12",1,null,null,null,null,null,0]
[null,"Figure 13",1,null,null,null,null,null,0]
[null,"Figure 14",1,null,null,null,null,null,0]
[null,"Figure 15",1,null,null,null,null,null,0]
[null,"Figure 16",1,null,null,null,null,null,0]
[null,"Figure 17",1,null,null,null,null,null,0]
[null,"Figure 18",1,null,null,null,null,null,0]
[" Ensemble","Ensemble 1",2,null,null,null,null,null,0]
[null,"Ensemble 2",2,null,null,null,null,null,0]
[null,"Ensemble 3",2,null,null,null,null,null,0]
[null,"Ensemble 4",2,null,null,null,null,null,0]
["Pénalité en points"]
["Erreure(s) de tracé "]
["% Total du juge",null,null,{"$f":"IF(ISBLANK('Info+Engagés'!H2),\"\",D37/2.6-D35)","v":""},{"$f":"IF(ISBLANK('Info+Engagés'!H3),\"\",E37/2.6-E35)","v":""},{"$f":"IF(ISBLANK('Info+Engagés'!H4),\"\",F37/2.6-F35)","v":0},{"$f":"IF(ISBLANK('Info+Engagés'!H5),\"\",G37/2.6-G35)","v":""},{"$f":"IF(ISBLANK('Info+Engagés'!H6),\"\",H37/2.6-H35)","v":""},{"$f":"MAX(D36:H36)-MIN(D36:H36)","v":0}]
["Soit en points",null,null,{"$f":"IF(ISBLANK('Info+Engagés'!H2),\"\",(SUM(D12:D29,D30*2,D31*2,D32*2,D33*2)-D34))","v":""},{"$f":"IF(ISBLANK('Info+Engagés'!H3),\"\",(SUM(E12:E29,E30*2,E31*2,E32*2,E33*2)-E34))","v":""},{"$f":"IF(ISBLANK('Info+Engagés'!H4),\"\",(SUM(F12:F29,F30*2,F31*2,F32*2,F33*2)-F34))","v":0},{"$f":"IF(ISBLANK('Info+Engagés'!H5),\"\",(SUM(G12:G29,G30*2,G31*2,G32*2,G33*2)-G34))","v":""},{"$f":"IF(ISBLANK('Info+Engagés'!H6),\"\",(SUM(H12:H29,H30*2,H31*2,H32*2,H33*2)-H34))","v":""}]
["                          Total maxi par juge = 260          1 point correspond à 0,385%              1% correspond en points à : 2,6                                                                  Les notes sont sur 10 et correspondent à la saisie informatique par l'opérateur des protocoles joints, Le total résulte de l'addition des points attribués après application du coefficient et soustraction des points de pénalité encourus après conversion en pourcentage sont déduit les pourcentages de pénalités encourus par suite d'erreurs de tracé pour obtenir le pourcentage par juge."]

{"sheet":"Cav34","index":34,"n_rows":38,"n_cols":9,"rows_kept":38,"cut":false,"hidden":false,"merged":[[0,0,1,2],[0,3,1,6],[0,7,1,8],[2,0,2,2],[2,3,3,4],[2,5,3,6],[3,0,3,2],[8,2,10,2],[4,0,4,1],[4,7,5,7],[4,8,5,8],[5,0,5,1],[6,0,7,1],[6,2,7,2],[6,7,7,7],[6,8,7,8],[4,3,7,4],[4,5,7,6],[34,0,34,2],[35,0,35,2],[36,0,36,2],[37,0,41,8],[9,6,10,6],[9,7,10,7],[10,0,10,1],[33,0,33,2],[9,5,10,5],[11,0,28,0],[29,0,32,0],[8,8,10,8],[8,0,8,1],[9,0,9,1],[9,3,10,3],[9,4,10,4]]}
[{"$f":"'Info+Engagés'!B3","v":"Quel Lieu (Dép)"},null,null,{"$f":"'Info+Engagés'!B8","v":"Para Club 3 Niveau 3"},null,null,null,{"$f":"'Info+Engagés'!B2","v":"Quelle Date ?"}]
[]
["N° de concours",null,null,"Cheval",null,"Cavalier",null,"Note d’ensemble",{"$f":"SUM(D30:H33)*2","v":0}]
[{"$f":"'Info+Engagés'!B4","v":"Quel N°"},null,null,null,null,null,null,"Points",{"$f":"SUM(D37:H37)","v":0}]
["Épreuve N°",null,{"$f":"'Info+Engagés'!B5","v":"Quel N°"},{"$f":"'Info+Engagés'!B45","v":0},null,{"$f":"'Info+Engagés'!G45","v":0},null,"% Final",{"$f":"AVERAGE(D36:H36)","v":0}]
["Piste  ",null,{"$f":"'Info+Engagés'!B6","v":"Piste ?"}]
["N° Départ BO",null,{"$f":"'Info+Engagés'!A45","v":0},null,null,null,null,"Classement"]
[]
["Imprimé le :",null,"Coéff .","Juge E","Juge H","Juge C","Juge M","Juge B","écart Max"]
[{"$f":"TODAY()","v":"2019-06-06"},null,null,{"$f":"IF(ISBLANK('Info+Engagés'!H2),\"\",('Info+Engagés'!H2))","v":""},{"$f":"IF(ISBLANK('Info+Engagés'!H3),\"\",('Info+Engagés'!H3))","v":""},{"$f":"IF(ISBLANK('Info+Engagés'!H4),\"\",('Info+Engagés'!H4))","v":"Nom du juge en C"},{"$f":"IF(ISBLANK('Info+Engagés'!H5),\"\",('Info+Engagés'!H5))","v":""},{"$f":"IF(ISBLANK('Info+Engagés'!H6),\"\",('Info+Engagés'!H6))","v":""}]
[{"$f":"NOW()","v":43622.846019328703}]
["Notation figures","Figure 1",1,null,null,null,null,null,{"$f":"MAX(D12:H12)-MIN(D12:H12)","v":0}]
[null,"Figure 2",1,null,null,null,null,null,0]
[null,"Figure 3",1,null,null,null,null,null,0]
[null,"Figure 4",1,null,null,null,null,null,0]
[null,"Figure 5",1,null,null,null,null,null,0]
[null,"Figure 6",1,null,null,null,null,null,0]
[null,"Figure 7",1,null,null,null,null,null,0]
[null,"Figure 8",1,null,null,null,null,null,0]
[null,"Figure 9",1,null,null,null,null,null,0]
[null,"Figure 10",1,null,null,null,null,null,0]
[null,"Figure 11",1,null,null,null,null,null,0]
[null,"Figure 12",1,null,null,null,null,null,0]
[null,"Figure 13",1,null,null,null,null,null,0]
[null,"Figure 14",1,null,null,null,null,null,0]
[null,"Figure 15",1,null,null,null,null,null,0]
[null,"Figure 16",1,null,null,null,null,null,0]
[null,"Figure 17",1,null,null,null,null,null,0]
[null,"Figure 18",1,null,null,null,null,null,0]
[" Ensemble","Ensemble 1",2,null,null,null,null,null,0]
[null,"Ensemble 2",2,null,null,null,null,null,0]
[null,"Ensemble 3",2,null,null,null,null,null,0]
[null,"Ensemble 4",2,null,null,null,null,null,0]
["Pénalité en points"]
["Erreure(s) de tracé "]
["% Total du juge",null,null,{"$f":"IF(ISBLANK('Info+Engagés'!H2),\"\",D37/2.6-D35)","v":""},{"$f":"IF(ISBLANK('Info+Engagés'!H3),\"\",E37/2.6-E35)","v":""},{"$f":"IF(ISBLANK('Info+Engagés'!H4),\"\",F37/2.6-F35)","v":0},{"$f":"IF(ISBLANK('Info+Engagés'!H5),\"\",G37/2.6-G35)","v":""},{"$f":"IF(ISBLANK('Info+Engagés'!H6),\"\",H37/2.6-H35)","v":""},{"$f":"MAX(D36:H36)-MIN(D36:H36)","v":0}]
["Soit en points",null,null,{"$f":"IF(ISBLANK('Info+Engagés'!H2),\"\",(SUM(D12:D29,D30*2,D31*2,D32*2,D33*2)-D34))","v":""},{"$f":"IF(ISBLANK('Info+Engagés'!H3),\"\",(SUM(E12:E29,E30*2,E31*2,E32*2,E33*2)-E34))","v":""},{"$f":"IF(ISBLANK('Info+Engagés'!H4),\"\",(SUM(F12:F29,F30*2,F31*2,F32*2,F33*2)-F34))","v":0},{"$f":"IF(ISBLANK('Info+Engagés'!H5),\"\",(SUM(G12:G29,G30*2,G31*2,G32*2,G33*2)-G34))","v":""},{"$f":"IF(ISBLANK('Info+Engagés'!H6),\"\",(SUM(H12:H29,H30*2,H31*2,H32*2,H33*2)-H34))","v":""}]
["                          Total maxi par juge = 260          1 point correspond à 0,385%              1% correspond en points à : 2,6                                                                  Les notes sont sur 10 et correspondent à la saisie informatique par l'opérateur des protocoles joints, Le total résulte de l'addition des points attribués après application du coefficient et soustraction des points de pénalité encourus après conversion en pourcentage sont déduit les pourcentages de pénalités encourus par suite d'erreurs de tracé pour obtenir le pourcentage par juge."]

{"sheet":"Cav35","index":35,"n_rows":38,"n_cols":9,"rows_kept":38,"cut":false,"hidden":false,"merged":[[0,0,1,2],[0,3,1,6],[0,7,1,8],[2,0,2,2],[2,3,3,4],[2,5,3,6],[3,0,3,2],[8,2,10,2],[4,0,4,1],[4,7,5,7],[4,8,5,8],[5,0,5,1],[6,0,7,1],[6,2,7,2],[6,7,7,7],[6,8,7,8],[4,3,7,4],[4,5,7,6],[34,0,34,2],[35,0,35,2],[36,0,36,2],[37,0,41,8],[9,6,10,6],[9,7,10,7],[10,0,10,1],[33,0,33,2],[9,5,10,5],[11,0,28,0],[29,0,32,0],[8,8,10,8],[8,0,8,1],[9,0,9,1],[9,3,10,3],[9,4,10,4]]}
[{"$f":"'Info+Engagés'!B3","v":"Quel Lieu (Dép)"},null,null,{"$f":"'Info+Engagés'!B8","v":"Para Club 3 Niveau 3"},null,null,null,{"$f":"'Info+Engagés'!B2","v":"Quelle Date ?"}]
[]
["N° de concours",null,null,"Cheval",null,"Cavalier",null,"Note d’ensemble",{"$f":"SUM(D30:H33)*2","v":0}]
[{"$f":"'Info+Engagés'!B4","v":"Quel N°"},null,null,null,null,null,null,"Points",{"$f":"SUM(D37:H37)","v":0}]
["Épreuve N°",null,{"$f":"'Info+Engagés'!B5","v":"Quel N°"},{"$f":"'Info+Engagés'!B46","v":0},null,{"$f":"'Info+Engagés'!G46","v":0},null,"% Final",{"$f":"AVERAGE(D36:H36)","v":0}]
["Piste  ",null,{"$f":"'Info+Engagés'!B6","v":"Piste ?"}]
["N° Départ BO",null,{"$f":"'Info+Engagés'!A46","v":0},null,null,null,null,"Classement"]
[]
["Imprimé le :",null,"Coéff .","Juge E","Juge H","Juge C","Juge M","Juge B","écart Max"]
[{"$f":"TODAY()","v":"2019-06-06"},null,null,{"$f":"IF(ISBLANK('Info+Engagés'!H2),\"\",('Info+Engagés'!H2))","v":""},{"$f":"IF(ISBLANK('Info+Engagés'!H3),\"\",('Info+Engagés'!H3))","v":""},{"$f":"IF(ISBLANK('Info+Engagés'!H4),\"\",('Info+Engagés'!H4))","v":"Nom du juge en C"},{"$f":"IF(ISBLANK('Info+Engagés'!H5),\"\",('Info+Engagés'!H5))","v":""},{"$f":"IF(ISBLANK('Info+Engagés'!H6),\"\",('Info+Engagés'!H6))","v":""}]
[{"$f":"NOW()","v":43622.846019328703}]
["Notation figures","Figure 1",1,null,null,null,null,null,{"$f":"MAX(D12:H12)-MIN(D12:H12)","v":0}]
[null,"Figure 2",1,null,null,null,null,null,0]
[null,"Figure 3",1,null,null,null,null,null,0]
[null,"Figure 4",1,null,null,null,null,null,0]
[null,"Figure 5",1,null,null,null,null,null,0]
[null,"Figure 6",1,null,null,null,null,null,0]
[null,"Figure 7",1,null,null,null,null,null,0]
[null,"Figure 8",1,null,null,null,null,null,0]
[null,"Figure 9",1,null,null,null,null,null,0]
[null,"Figure 10",1,null,null,null,null,null,0]
[null,"Figure 11",1,null,null,null,null,null,0]
[null,"Figure 12",1,null,null,null,null,null,0]
[null,"Figure 13",1,null,null,null,null,null,0]
[null,"Figure 14",1,null,null,null,null,null,0]
[null,"Figure 15",1,null,null,null,null,null,0]
[null,"Figure 16",1,null,null,null,null,null,0]
[null,"Figure 17",1,null,null,null,null,null,0]
[null,"Figure 18",1,null,null,null,null,null,0]
[" Ensemble","Ensemble 1",2,null,null,null,null,null,0]
[null,"Ensemble 2",2,null,null,null,null,null,0]
[null,"Ensemble 3",2,null,null,null,null,null,0]
[null,"Ensemble 4",2,null,null,null,null,null,0]
["Pénalité en points"]
["Erreure(s) de tracé "]
["% Total du juge",null,null,{"$f":"IF(ISBLANK('Info+Engagés'!H2),\"\",D37/2.6-D35)","v":""},{"$f":"IF(ISBLANK('Info+Engagés'!H3),\"\",E37/2.6-E35)","v":""},{"$f":"IF(ISBLANK('Info+Engagés'!H4),\"\",F37/2.6-F35)","v":0},{"$f":"IF(ISBLANK('Info+Engagés'!H5),\"\",G37/2.6-G35)","v":""},{"$f":"IF(ISBLANK('Info+Engagés'!H6),\"\",H37/2.6-H35)","v":""},{"$f":"MAX(D36:H36)-MIN(D36:H36)","v":0}]
["Soit en points",null,null,{"$f":"IF(ISBLANK('Info+Engagés'!H2),\"\",(SUM(D12:D29,D30*2,D31*2,D32*2,D33*2)-D34))","v":""},{"$f":"IF(ISBLANK('Info+Engagés'!H3),\"\",(SUM(E12:E29,E30*2,E31*2,E32*2,E33*2)-E34))","v":""},{"$f":"IF(ISBLANK('Info+Engagés'!H4),\"\",(SUM(F12:F29,F30*2,F31*2,F32*2,F33*2)-F34))","v":0},{"$f":"IF(ISBLANK('Info+Engagés'!H5),\"\",(SUM(G12:G29,G30*2,G31*2,G32*2,G33*2)-G34))","v":""},{"$f":"IF(ISBLANK('Info+Engagés'!H6),\"\",(SUM(H12:H29,H30*2,H31*2,H32*2,H33*2)-H34))","v":""}]
["                          Total maxi par juge = 260          1 point correspond à 0,385%              1% correspond en points à : 2,6                                                                  Les notes sont sur 10 et correspondent à la saisie informatique par l'opérateur des protocoles joints, Le total résulte de l'addition des points attribués après application du coefficient et soustraction des points de pénalité encourus après conversion en pourcentage sont déduit les pourcentages de pénalités encourus par suite d'erreurs de tracé pour obtenir le pourcentage par juge."]

{"sheet":"Cav36","index":36,"n_rows":38,"n_cols":9,"rows_kept":38,"cut":false,"hidden":false,"merged":[[0,0,1,2],[0,3,1,6],[0,7,1,8],[2,0,2,2],[2,3,3,4],[2,5,3,6],[3,0,3,2],[8,2,10,2],[4,0,4,1],[4,7,5,7],[4,8,5,8],[5,0,5,1],[6,0,7,1],[6,2,7,2],[6,7,7,7],[6,8,7,8],[4,3,7,4],[4,5,7,6],[34,0,34,2],[35,0,35,2],[36,0,36,2],[37,0,41,8],[9,6,10,6],[9,7,10,7],[10,0,10,1],[33,0,33,2],[9,5,10,5],[11,0,28,0],[29,0,32,0],[8,8,10,8],[8,0,8,1],[9,0,9,1],[9,3,10,3],[9,4,10,4]]}
[{"$f":"'Info+Engagés'!B3","v":"Quel Lieu (Dép)"},null,null,{"$f":"'Info+Engagés'!B8","v":"Para Club 3 Niveau 3"},null,null,null,{"$f":"'Info+Engagés'!B2","v":"Quelle Date ?"}]
[]
["N° de concours",null,null,"Cheval",null,"Cavalier",null,"Note d’ensemble",{"$f":"SUM(D30:H33)*2","v":0}]
[{"$f":"'Info+Engagés'!B4","v":"Quel N°"},null,null,null,null,null,null,"Points",{"$f":"SUM(D37:H37)","v":0}]
["Épreuve N°",null,{"$f":"'Info+Engagés'!B5","v":"Quel N°"},{"$f":"'Info+Engagés'!B47","v":0},null,{"$f":"'Info+Engagés'!G47","v":0},null,"% Final",{"$f":"AVERAGE(D36:H36)","v":0}]
["Piste  ",null,{"$f":"'Info+Engagés'!B6","v":"Piste ?"}]
["N° Départ BO",null,{"$f":"'Info+Engagés'!A47","v":0},null,null,null,null,"Classement"]
[]
["Imprimé le :",null,"Coéff .","Juge E","Juge H","Juge C","Juge M","Juge B","écart Max"]
[{"$f":"TODAY()","v":"2019-06-06"},null,null,{"$f":"IF(ISBLANK('Info+Engagés'!H2),\"\",('Info+Engagés'!H2))","v":""},{"$f":"IF(ISBLANK('Info+Engagés'!H3),\"\",('Info+Engagés'!H3))","v":""},{"$f":"IF(ISBLANK('Info+Engagés'!H4),\"\",('Info+Engagés'!H4))","v":"Nom du juge en C"},{"$f":"IF(ISBLANK('Info+Engagés'!H5),\"\",('Info+Engagés'!H5))","v":""},{"$f":"IF(ISBLANK('Info+Engagés'!H6),\"\",('Info+Engagés'!H6))","v":""}]
[{"$f":"NOW()","v":43622.846019328703}]
["Notation figures","Figure 1",1,null,null,null,null,null,{"$f":"MAX(D12:H12)-MIN(D12:H12)","v":0}]
[null,"Figure 2",1,null,null,null,null,null,0]
[null,"Figure 3",1,null,null,null,null,null,0]
[null,"Figure 4",1,null,null,null,null,null,0]
[null,"Figure 5",1,null,null,null,null,null,0]
[null,"Figure 6",1,null,null,null,null,null,0]
[null,"Figure 7",1,null,null,null,null,null,0]
[null,"Figure 8",1,null,null,null,null,null,0]
[null,"Figure 9",1,null,null,null,null,null,0]
[null,"Figure 10",1,null,null,null,null,null,0]
[null,"Figure 11",1,null,null,null,null,null,0]
[null,"Figure 12",1,null,null,null,null,null,0]
[null,"Figure 13",1,null,null,null,null,null,0]
[null,"Figure 14",1,null,null,null,null,null,0]
[null,"Figure 15",1,null,null,null,null,null,0]
[null,"Figure 16",1,null,null,null,null,null,0]
[null,"Figure 17",1,null,null,null,null,null,0]
[null,"Figure 18",1,null,null,null,null,null,0]
[" Ensemble","Ensemble 1",2,null,null,null,null,null,0]
[null,"Ensemble 2",2,null,null,null,null,null,0]
[null,"Ensemble 3",2,null,null,null,null,null,0]
[null,"Ensemble 4",2,null,null,null,null,null,0]
["Pénalité en points"]
["Erreure(s) de tracé "]
["% Total du juge",null,null,{"$f":"IF(ISBLANK('Info+Engagés'!H2),\"\",D37/2.6-D35)","v":""},{"$f":"IF(ISBLANK('Info+Engagés'!H3),\"\",E37/2.6-E35)","v":""},{"$f":"IF(ISBLANK('Info+Engagés'!H4),\"\",F37/2.6-F35)","v":0},{"$f":"IF(ISBLANK('Info+Engagés'!H5),\"\",G37/2.6-G35)","v":""},{"$f":"IF(ISBLANK('Info+Engagés'!H6),\"\",H37/2.6-H35)","v":""},{"$f":"MAX(D36:H36)-MIN(D36:H36)","v":0}]
["Soit en points",null,null,{"$f":"IF(ISBLANK('Info+Engagés'!H2),\"\",(SUM(D12:D29,D30*2,D31*2,D32*2,D33*2)-D34))","v":""},{"$f":"IF(ISBLANK('Info+Engagés'!H3),\"\",(SUM(E12:E29,E30*2,E31*2,E32*2,E33*2)-E34))","v":""},{"$f":"IF(ISBLANK('Info+Engagés'!H4),\"\",(SUM(F12:F29,F30*2,F31*2,F32*2,F33*2)-F34))","v":0},{"$f":"IF(ISBLANK('Info+Engagés'!H5),\"\",(SUM(G12:G29,G30*2,G31*2,G32*2,G33*2)-G34))","v":""},{"$f":"IF(ISBLANK('Info+Engagés'!H6),\"\",(SUM(H12:H29,H30*2,H31*2,H32*2,H33*2)-H34))","v":""}]
["                          Total maxi par juge = 260          1 point correspond à 0,385%              1% correspond en points à : 2,6                                                                  Les notes sont sur 10 et correspondent à la saisie informatique par l'opérateur des protocoles joints, Le total résulte de l'addition des points attribués après application du coefficient et soustraction des points de pénalité encourus après conversion en pourcentage sont déduit les pourcentages de pénalités encourus par suite d'erreurs de tracé pour obtenir le pourcentage par juge."]

{"sheet":"Cav37","index":37,"n_rows":38,"n_cols":9,"rows_kept":38,"cut":false,"hidden":false,"merged":[[0,0,1,2],[0,3,1,6],[0,7,1,8],[2,0,2,2],[2,3,3,4],[2,5,3,6],[3,0,3,2],[8,2,10,2],[4,0,4,1],[4,7,5,7],[4,8,5,8],[5,0,5,1],[6,0,7,1],[6,2,7,2],[6,7,7,7],[6,8,7,8],[4,3,7,4],[4,5,7,6],[34,0,34,2],[35,0,35,2],[36,0,36,2],[37,0,41,8],[9,6,10,6],[9,7,10,7],[10,0,10,1],[33,0,33,2],[9,5,10,5],[11,0,28,0],[29,0,32,0],[8,8,10,8],[8,0,8,1],[9,0,9,1],[9,3,10,3],[9,4,10,4]]}
[{"$f":"'Info+Engagés'!B3","v":"Quel Lieu (Dép)"},null,null,{"$f":"'Info+Engagés'!B8","v":"Para Club 3 Niveau 3"},null,null,null,{"$f":"'Info+Engagés'!B2","v":"Quelle Date ?"}]
[]
["N° de concours",null,null,"Cheval",null,"Cavalier",null,"Note d’ensemble",{"$f":"SUM(D30:H33)*2","v":0}]
[{"$f":"'Info+Engagés'!B4","v":"Quel N°"},null,null,null,null,null,null,"Points",{"$f":"SUM(D37:H37)","v":0}]
["Épreuve N°",null,{"$f":"'Info+Engagés'!B5","v":"Quel N°"},{"$f":"'Info+Engagés'!B48","v":0},null,{"$f":"'Info+Engagés'!G48","v":0},null,"% Final",{"$f":"AVERAGE(D36:H36)","v":0}]
["Piste  ",null,{"$f":"'Info+Engagés'!B6","v":"Piste ?"}]
["N° Départ BO",null,{"$f":"'Info+Engagés'!A48","v":0},null,null,null,null,"Classement"]
[]
["Imprimé le :",null,"Coéff .","Juge E","Juge H","Juge C","Juge M","Juge B","écart Max"]
[{"$f":"TODAY()","v":"2019-06-06"},null,null,{"$f":"IF(ISBLANK('Info+Engagés'!H2),\"\",('Info+Engagés'!H2))","v":""},{"$f":"IF(ISBLANK('Info+Engagés'!H3),\"\",('Info+Engagés'!H3))","v":""},{"$f":"IF(ISBLANK('Info+Engagés'!H4),\"\",('Info+Engagés'!H4))","v":"Nom du juge en C"},{"$f":"IF(ISBLANK('Info+Engagés'!H5),\"\",('Info+Engagés'!H5))","v":""},{"$f":"IF(ISBLANK('Info+Engagés'!H6),\"\",('Info+Engagés'!H6))","v":""}]
[{"$f":"NOW()","v":43622.846019328703}]
["Notation figures","Figure 1",1,null,null,null,null,null,{"$f":"MAX(D12:H12)-MIN(D12:H12)","v":0}]
[null,"Figure 2",1,null,null,null,null,null,0]
[null,"Figure 3",1,null,null,null,null,null,0]
[null,"Figure 4",1,null,null,null,null,null,0]
[null,"Figure 5",1,null,null,null,null,null,0]
[null,"Figure 6",1,null,null,null,null,null,0]
[null,"Figure 7",1,null,null,null,null,null,0]
[null,"Figure 8",1,null,null,null,null,null,0]
[null,"Figure 9",1,null,null,null,null,null,0]
[null,"Figure 10",1,null,null,null,null,null,0]
[null,"Figure 11",1,null,null,null,null,null,0]
[null,"Figure 12",1,null,null,null,null,null,0]
[null,"Figure 13",1,null,null,null,null,null,0]
[null,"Figure 14",1,null,null,null,null,null,0]
[null,"Figure 15",1,null,null,null,null,null,0]
[null,"Figure 16",1,null,null,null,null,null,0]
[null,"Figure 17",1,null,null,null,null,null,0]
[null,"Figure 18",1,null,null,null,null,null,0]
[" Ensemble","Ensemble 1",2,null,null,null,null,null,0]
[null,"Ensemble 2",2,null,null,null,null,null,0]
[null,"Ensemble 3",2,null,null,null,null,null,0]
[null,"Ensemble 4",2,null,null,null,null,null,0]
["Pénalité en points"]
["Erreure(s) de tracé "]
["% Total du juge",null,null,{"$f":"IF(ISBLANK('Info+Engagés'!H2),\"\",D37/2.6-D35)","v":""},{"$f":"IF(ISBLANK('Info+Engagés'!H3),\"\",E37/2.6-E35)","v":""},{"$f":"IF(ISBLANK('Info+Engagés'!H4),\"\",F37/2.6-F35)","v":0},{"$f":"IF(ISBLANK('Info+Engagés'!H5),\"\",G37/2.6-G35)","v":""},{"$f":"IF(ISBLANK('Info+Engagés'!H6),\"\",H37/2.6-H35)","v":""},{"$f":"MAX(D36:H36)-MIN(D36:H36)","v":0}]
["Soit en points",null,null,{"$f":"IF(ISBLANK('Info+Engagés'!H2),\"\",(SUM(D12:D29,D30*2,D31*2,D32*2,D33*2)-D34))","v":""},{"$f":"IF(ISBLANK('Info+Engagés'!H3),\"\",(SUM(E12:E29,E30*2,E31*2,E32*2,E33*2)-E34))","v":""},{"$f":"IF(ISBLANK('Info+Engagés'!H4),\"\",(SUM(F12:F29,F30*2,F31*2,F32*2,F33*2)-F34))","v":0},{"$f":"IF(ISBLANK('Info+Engagés'!H5),\"\",(SUM(G12:G29,G30*2,G31*2,G32*2,G33*2)-G34))","v":""},{"$f":"IF(ISBLANK('Info+Engagés'!H6),\"\",(SUM(H12:H29,H30*2,H31*2,H32*2,H33*2)-H34))","v":""}]
["                          Total maxi par juge = 260          1 point correspond à 0,385%              1% correspond en points à : 2,6                                                                  Les notes sont sur 10 et correspondent à la saisie informatique par l'opérateur des protocoles joints, Le total résulte de l'addition des points attribués après application du coefficient et soustraction des points de pénalité encourus après conversion en pourcentage sont déduit les pourcentages de pénalités encourus par suite d'erreurs de tracé pour obtenir le pourcentage par juge."]

{"sheet":"Cav38","index":38,"n_rows":38,"n_cols":9,"rows_kept":38,"cut":false,"hidden":false,"merged":[[0,0,1,2],[0,3,1,6],[0,7,1,8],[2,0,2,2],[2,3,3,4],[2,5,3,6],[3,0,3,2],[8,2,10,2],[4,0,4,1],[4,7,5,7],[4,8,5,8],[5,0,5,1],[6,0,7,1],[6,2,7,2],[6,7,7,7],[6,8,7,8],[4,3,7,4],[4,5,7,6],[34,0,34,2],[35,0,35,2],[36,0,36,2],[37,0,41,8],[9,6,10,6],[9,7,10,7],[10,0,10,1],[33,0,33,2],[9,5,10,5],[11,0,28,0],[29,0,32,0],[8,8,10,8],[8,0,8,1],[9,0,9,1],[9,3,10,3],[9,4,10,4]]}
[{"$f":"'Info+Engagés'!B3","v":"Quel Lieu (Dép)"},null,null,{"$f":"'Info+Engagés'!B8","v":"Para Club 3 Niveau 3"},null,null,null,{"$f":"'Info+Engagés'!B2","v":"Quelle Date ?"}]
[]
["N° de concours",null,null,"Cheval",null,"Cavalier",null,"Note d’ensemble",{"$f":"SUM(D30:H33)*2","v":0}]
[{"$f":"'Info+Engagés'!B4","v":"Quel N°"},null,null,null,null,null,null,"Points",{"$f":"SUM(D37:H37)","v":0}]
["Épreuve N°",null,{"$f":"'Info+Engagés'!B5","v":"Quel N°"},{"$f":"'Info+Engagés'!B49","v":0},null,{"$f":"'Info+Engagés'!G49","v":0},null,"% Final",{"$f":"AVERAGE(D36:H36)","v":0}]
["Piste  ",null,{"$f":"'Info+Engagés'!B6","v":"Piste ?"}]
["N° Départ BO",null,{"$f":"'Info+Engagés'!A49","v":0},null,null,null,null,"Classement"]
[]
["Imprimé le :",null,"Coéff .","Juge E","Juge H","Juge C","Juge M","Juge B","écart Max"]
[{"$f":"TODAY()","v":"2019-06-06"},null,null,{"$f":"IF(ISBLANK('Info+Engagés'!H2),\"\",('Info+Engagés'!H2))","v":""},{"$f":"IF(ISBLANK('Info+Engagés'!H3),\"\",('Info+Engagés'!H3))","v":""},{"$f":"IF(ISBLANK('Info+Engagés'!H4),\"\",('Info+Engagés'!H4))","v":"Nom du juge en C"},{"$f":"IF(ISBLANK('Info+Engagés'!H5),\"\",('Info+Engagés'!H5))","v":""},{"$f":"IF(ISBLANK('Info+Engagés'!H6),\"\",('Info+Engagés'!H6))","v":""}]
[{"$f":"NOW()","v":43622.846019328703}]
["Notation figures","Figure 1",1,null,null,null,null,null,{"$f":"MAX(D12:H12)-MIN(D12:H12)","v":0}]
[null,"Figure 2",1,null,null,null,null,null,0]
[null,"Figure 3",1,null,null,null,null,null,0]
[null,"Figure 4",1,null,null,null,null,null,0]
[null,"Figure 5",1,null,null,null,null,null,0]
[null,"Figure 6",1,null,null,null,null,null,0]
[null,"Figure 7",1,null,null,null,null,null,0]
[null,"Figure 8",1,null,null,null,null,null,0]
[null,"Figure 9",1,null,null,null,null,null,0]
[null,"Figure 10",1,null,null,null,null,null,0]
[null,"Figure 11",1,null,null,null,null,null,0]
[null,"Figure 12",1,null,null,null,null,null,0]
[null,"Figure 13",1,null,null,null,null,null,0]
[null,"Figure 14",1,null,null,null,null,null,0]
[null,"Figure 15",1,null,null,null,null,null,0]
[null,"Figure 16",1,null,null,null,null,null,0]
[null,"Figure 17",1,null,null,null,null,null,0]
[null,"Figure 18",1,null,null,null,null,null,0]
[" Ensemble","Ensemble 1",2,null,null,null,null,null,0]
[null,"Ensemble 2",2,null,null,null,null,null,0]
[null,"Ensemble 3",2,null,null,null,null,null,0]
[null,"Ensemble 4",2,null,null,null,null,null,0]
["Pénalité en points"]
["Erreure(s) de tracé "]
["% Total du juge",null,null,{"$f":"IF(ISBLANK('Info+Engagés'!H2),\"\",D37/2.6-D35)","v":""},{"$f":"IF(ISBLANK('Info+Engagés'!H3),\"\",E37/2.6-E35)","v":""},{"$f":"IF(ISBLANK('Info+Engagés'!H4),\"\",F37/2.6-F35)","v":0},{"$f":"IF(ISBLANK('Info+Engagés'!H5),\"\",G37/2.6-G35)","v":""},{"$f":"IF(ISBLANK('Info+Engagés'!H6),\"\",H37/2.6-H35)","v":""},{"$f":"MAX(D36:H36)-MIN(D36:H36)","v":0}]
["Soit en points",null,null,{"$f":"IF(ISBLANK('Info+Engagés'!H2),\"\",(SUM(D12:D29,D30*2,D31*2,D32*2,D33*2)-D34))","v":""},{"$f":"IF(ISBLANK('Info+Engagés'!H3),\"\",(SUM(E12:E29,E30*2,E31*2,E32*2,E33*2)-E34))","v":""},{"$f":"IF(ISBLANK('Info+Engagés'!H4),\"\",(SUM(F12:F29,F30*2,F31*2,F32*2,F33*2)-F34))","v":0},{"$f":"IF(ISBLANK('Info+Engagés'!H5),\"\",(SUM(G12:G29,G30*2,G31*2,G32*2,G33*2)-G34))","v":""},{"$f":"IF(ISBLANK('Info+Engagés'!H6),\"\",(SUM(H12:H29,H30*2,H31*2,H32*2,H33*2)-H34))","v":""}]
["                          Total maxi par juge = 260          1 point correspond à 0,385%              1% correspond en points à : 2,6                                                                  Les notes sont sur 10 et correspondent à la saisie informatique par l'opérateur des protocoles joints, Le total résulte de l'addition des points attribués après application du coefficient et soustraction des points de pénalité encourus après conversion en pourcentage sont déduit les pourcentages de pénalités encourus par suite d'erreurs de tracé pour obtenir le pourcentage par juge."]

{"sheet":"Cav39","index":39,"n_rows":38,"n_cols":9,"rows_kept":38,"cut":false,"hidden":false,"merged":[[0,0,1,2],[0,3,1,6],[0,7,1,8],[2,0,2,2],[2,3,3,4],[2,5,3,6],[3,0,3,2],[8,2,10,2],[4,0,4,1],[4,7,5,7],[4,8,5,8],[5,0,5,1],[6,0,7,1],[6,2,7,2],[6,7,7,7],[6,8,7,8],[4,3,7,4],[4,5,7,6],[34,0,34,2],[35,0,35,2],[36,0,36,2],[37,0,41,8],[9,6,10,6],[9,7,10,7],[10,0,10,1],[33,0,33,2],[9,5,10,5],[11,0,28,0],[29,0,32,0],[8,8,10,8],[8,0,8,1],[9,0,9,1],[9,3,10,3],[9,4,10,4]]}
[{"$f":"'Info+Engagés'!B3","v":"Quel Lieu (Dép)"},null,null,{"$f":"'Info+Engagés'!B8","v":"Para Club 3 Niveau 3"},null,null,null,{"$f":"'Info+Engagés'!B2","v":"Quelle Date ?"}]
[]
["N° de concours",null,null,"Cheval",null,"Cavalier",null,"Note d’ensemble",{"$f":"SUM(D30:H33)*2","v":0}]
[{"$f":"'Info+Engagés'!B4","v":"Quel N°"},null,null,null,null,null,null,"Points",{"$f":"SUM(D37:H37)","v":0}]
["Épreuve N°",null,{"$f":"'Info+Engagés'!B5","v":"Quel N°"},{"$f":"'Info+Engagés'!B50","v":0},null,{"$f":"'Info+Engagés'!G50","v":0},null,"% Final",{"$f":"AVERAGE(D36:H36)","v":0}]
["Piste  ",null,{"$f":"'Info+Engagés'!B6","v":"Piste ?"}]
["N° Départ BO",null,{"$f":"'Info+Engagés'!A50","v":0},null,null,null,null,"Classement"]
[]
["Imprimé le :",null,"Coéff .","Juge E","Juge H","Juge C","Juge M","Juge B","écart Max"]
[{"$f":"TODAY()","v":"2019-06-06"},null,null,{"$f":"IF(ISBLANK('Info+Engagés'!H2),\"\",('Info+Engagés'!H2))","v":""},{"$f":"IF(ISBLANK('Info+Engagés'!H3),\"\",('Info+Engagés'!H3))","v":""},{"$f":"IF(ISBLANK('Info+Engagés'!H4),\"\",('Info+Engagés'!H4))","v":"Nom du juge en C"},{"$f":"IF(ISBLANK('Info+Engagés'!H5),\"\",('Info+Engagés'!H5))","v":""},{"$f":"IF(ISBLANK('Info+Engagés'!H6),\"\",('Info+Engagés'!H6))","v":""}]
[{"$f":"NOW()","v":43622.846019328703}]
["Notation figures","Figure 1",1,null,null,null,null,null,{"$f":"MAX(D12:H12)-MIN(D12:H12)","v":0}]
[null,"Figure 2",1,null,null,null,null,null,0]
[null,"Figure 3",1,null,null,null,null,null,0]
[null,"Figure 4",1,null,null,null,null,null,0]
[null,"Figure 5",1,null,null,null,null,null,0]
[null,"Figure 6",1,null,null,null,null,null,0]
[null,"Figure 7",1,null,null,null,null,null,0]
[null,"Figure 8",1,null,null,null,null,null,0]
[null,"Figure 9",1,null,null,null,null,null,0]
[null,"Figure 10",1,null,null,null,null,null,0]
[null,"Figure 11",1,null,null,null,null,null,0]
[null,"Figure 12",1,null,null,null,null,null,0]
[null,"Figure 13",1,null,null,null,null,null,0]
[null,"Figure 14",1,null,null,null,null,null,0]
[null,"Figure 15",1,null,null,null,null,null,0]
[null,"Figure 16",1,null,null,null,null,null,0]
[null,"Figure 17",1,null,null,null,null,null,0]
[null,"Figure 18",1,null,null,null,null,null,0]
[" Ensemble","Ensemble 1",2,null,null,null,null,null,0]
[null,"Ensemble 2",2,null,null,null,null,null,0]
[null,"Ensemble 3",2,null,null,null,null,null,0]
[null,"Ensemble 4",2,null,null,null,null,null,0]
["Pénalité en points"]
["Erreure(s) de tracé "]
["% Total du juge",null,null,{"$f":"IF(ISBLANK('Info+Engagés'!H2),\"\",D37/2.6-D35)","v":""},{"$f":"IF(ISBLANK('Info+Engagés'!H3),\"\",E37/2.6-E35)","v":""},{"$f":"IF(ISBLANK('Info+Engagés'!H4),\"\",F37/2.6-F35)","v":0},{"$f":"IF(ISBLANK('Info+Engagés'!H5),\"\",G37/2.6-G35)","v":""},{"$f":"IF(ISBLANK('Info+Engagés'!H6),\"\",H37/2.6-H35)","v":""},{"$f":"MAX(D36:H36)-MIN(D36:H36)","v":0}]
["Soit en points",null,null,{"$f":"IF(ISBLANK('Info+Engagés'!H2),\"\",(SUM(D12:D29,D30*2,D31*2,D32*2,D33*2)-D34))","v":""},{"$f":"IF(ISBLANK('Info+Engagés'!H3),\"\",(SUM(E12:E29,E30*2,E31*2,E32*2,E33*2)-E34))","v":""},{"$f":"IF(ISBLANK('Info+Engagés'!H4),\"\",(SUM(F12:F29,F30*2,F31*2,F32*2,F33*2)-F34))","v":0},{"$f":"IF(ISBLANK('Info+Engagés'!H5),\"\",(SUM(G12:G29,G30*2,G31*2,G32*2,G33*2)-G34))","v":""},{"$f":"IF(ISBLANK('Info+Engagés'!H6),\"\",(SUM(H12:H29,H30*2,H31*2,H32*2,H33*2)-H34))","v":""}]
["                          Total maxi par juge = 260          1 point correspond à 0,385%              1% correspond en points à : 2,6                                                                  Les notes sont sur 10 et correspondent à la saisie informatique par l'opérateur des protocoles joints, Le total résulte de l'addition des points attribués après application du coefficient et soustraction des points de pénalité encourus après conversion en pourcentage sont déduit les pourcentages de pénalités encourus par suite d'erreurs de tracé pour obtenir le pourcentage par juge."]

{"sheet":"Cav40","index":40,"n_rows":38,"n_cols":9,"rows_kept":38,"cut":false,"hidden":false,"merged":[[0,0,1,2],[0,3,1,6],[0,7,1,8],[2,0,2,2],[2,3,3,4],[2,5,3,6],[3,0,3,2],[8,2,10,2],[4,0,4,1],[4,7,5,7],[4,8,5,8],[5,0,5,1],[6,0,7,1],[6,2,7,2],[6,7,7,7],[6,8,7,8],[4,3,7,4],[4,5,7,6],[34,0,34,2],[35,0,35,2],[36,0,36,2],[37,0,41,8],[9,6,10,6],[9,7,10,7],[10,0,10,1],[33,0,33,2],[9,5,10,5],[11,0,28,0],[29,0,32,0],[8,8,10,8],[8,0,8,1],[9,0,9,1],[9,3,10,3],[9,4,10,4]]}
[{"$f":"'Info+Engagés'!B3","v":"Quel Lieu (Dép)"},null,null,{"$f":"'Info+Engagés'!B8","v":"Para Club 3 Niveau 3"},null,null,null,{"$f":"'Info+Engagés'!B2","v":"Quelle Date ?"}]
[]
["N° de concours",null,null,"Cheval",null,"Cavalier",null,"Note d’ensemble",{"$f":"SUM(D30:H33)*2","v":0}]
[{"$f":"'Info+Engagés'!B4","v":"Quel N°"},null,null,null,null,null,null,"Points",{"$f":"SUM(D37:H37)","v":0}]
["Épreuve N°",null,{"$f":"'Info+Engagés'!B5","v":"Quel N°"},{"$f":"'Info+Engagés'!B51","v":0},null,{"$f":"'Info+Engagés'!G51","v":0},null,"% Final",{"$f":"AVERAGE(D36:H36)","v":0}]
["Piste  ",null,{"$f":"'Info+Engagés'!B6","v":"Piste ?"}]
["N° Départ BO",null,{"$f":"'Info+Engagés'!A51","v":0},null,null,null,null,"Classement"]
[]
["Imprimé le :",null,"Coéff .","Juge E","Juge H","Juge C","Juge M","Juge B","écart Max"]
[{"$f":"TODAY()","v":"2019-06-06"},null,null,{"$f":"IF(ISBLANK('Info+Engagés'!H2),\"\",('Info+Engagés'!H2))","v":""},{"$f":"IF(ISBLANK('Info+Engagés'!H3),\"\",('Info+Engagés'!H3))","v":""},{"$f":"IF(ISBLANK('Info+Engagés'!H4),\"\",('Info+Engagés'!H4))","v":"Nom du juge en C"},{"$f":"IF(ISBLANK('Info+Engagés'!H5),\"\",('Info+Engagés'!H5))","v":""},{"$f":"IF(ISBLANK('Info+Engagés'!H6),\"\",('Info+Engagés'!H6))","v":""}]
[{"$f":"NOW()","v":43622.846019328703}]
["Notation figures","Figure 1",1,null,null,null,null,null,{"$f":"MAX(D12:H12)-MIN(D12:H12)","v":0}]
[null,"Figure 2",1,null,null,null,null,null,0]
[null,"Figure 3",1,null,null,null,null,null,0]
[null,"Figure 4",1,null,null,null,null,null,0]
[null,"Figure 5",1,null,null,null,null,null,0]
[null,"Figure 6",1,null,null,null,null,null,0]
[null,"Figure 7",1,null,null,null,null,null,0]
[null,"Figure 8",1,null,null,null,null,null,0]
[null,"Figure 9",1,null,null,null,null,null,0]
[null,"Figure 10",1,null,null,null,null,null,0]
[null,"Figure 11",1,null,null,null,null,null,0]
[null,"Figure 12",1,null,null,null,null,null,0]
[null,"Figure 13",1,null,null,null,null,null,0]
[null,"Figure 14",1,null,null,null,null,null,0]
[null,"Figure 15",1,null,null,null,null,null,0]
[null,"Figure 16",1,null,null,null,null,null,0]
[null,"Figure 17",1,null,null,null,null,null,0]
[null,"Figure 18",1,null,null,null,null,null,0]
[" Ensemble","Ensemble 1",2,null,null,null,null,null,0]
[null,"Ensemble 2",2,null,null,null,null,null,0]
[null,"Ensemble 3",2,null,null,null,null,null,0]
[null,"Ensemble 4",2,null,null,null,null,null,0]
["Pénalité en points"]
["Erreure(s) de tracé "]
["% Total du juge",null,null,{"$f":"IF(ISBLANK('Info+Engagés'!H2),\"\",D37/2.6-D35)","v":""},{"$f":"IF(ISBLANK('Info+Engagés'!H3),\"\",E37/2.6-E35)","v":""},{"$f":"IF(ISBLANK('Info+Engagés'!H4),\"\",F37/2.6-F35)","v":0},{"$f":"IF(ISBLANK('Info+Engagés'!H5),\"\",G37/2.6-G35)","v":""},{"$f":"IF(ISBLANK('Info+Engagés'!H6),\"\",H37/2.6-H35)","v":""},{"$f":"MAX(D36:H36)-MIN(D36:H36)","v":0}]
["Soit en points",null,null,{"$f":"IF(ISBLANK('Info+Engagés'!H2),\"\",(SUM(D12:D29,D30*2,D31*2,D32*2,D33*2)-D34))","v":""},{"$f":"IF(ISBLANK('Info+Engagés'!H3),\"\",(SUM(E12:E29,E30*2,E31*2,E32*2,E33*2)-E34))","v":""},{"$f":"IF(ISBLANK('Info+Engagés'!H4),\"\",(SUM(F12:F29,F30*2,F31*2,F32*2,F33*2)-F34))","v":0},{"$f":"IF(ISBLANK('Info+Engagés'!H5),\"\",(SUM(G12:G29,G30*2,G31*2,G32*2,G33*2)-G34))","v":""},{"$f":"IF(ISBLANK('Info+Engagés'!H6),\"\",(SUM(H12:H29,H30*2,H31*2,H32*2,H33*2)-H34))","v":""}]
["                          Total maxi par juge = 260          1 point correspond à 0,385%              1% correspond en points à : 2,6                                                                  Les notes sont sur 10 et correspondent à la saisie informatique par l'opérateur des protocoles joints, Le total résulte de l'addition des points attribués après application du coefficient et soustraction des points de pénalité encourus après conversion en pourcentage sont déduit les pourcentages de pénalités encourus par suite d'erreurs de tracé pour obtenir le pourcentage par juge."]

{"sheet":"Résultats","index":41,"n_rows":49,"n_cols":37,"rows_kept":49,"cut":false,"hidden":false,"merged":[[5,0,5,1],[6,0,6,1],[3,0,3,1],[4,0,4,1],[0,0,1,2],[7,13,7,15],[7,16,8,16],[0,3,1,14],[0,15,0,16],[7,17,8,17],[7,3,7,4],[7,5,7,6],[7,7,7,8],[7,9,7,10],[7,11,7,12],[7,0,7,1],[0,26,1,37],[1,15,1,16],[2,0,2,1],[2,4,2,12],[2,13,6,14],[2,15,2,16],[3,4,3,12],[3,15,3,16],[4,4,4,12],[4,15,4,16],[5,4,5,12],[5,15,5,16],[6,4,6,12],[6,15,6,16],[0,18,8,18]]}
[{"$f":"'Info+Engagés'!B3","v":"Quel Lieu (Dép)"},null,null,{"$f":"'Info+Engagés'!B8","v":"Para Club 3 Niveau 3"},null,null,null,null,null,null,null,null,null,null,null,"Inscrtits",null,1,"Répartition Dotation",null,null,null,null,null,null,null,"Ne jamais effacer les valeurs ci-dessous elles sont indispensables au bon fonctionnement de la feuille de calcul"]
[null,null,null,null,null,null,null,null,null,null,null,null,null,null,null,"Forfaits"]
["Concours N°",null,{"$f":"'Info+Engagés'!B4","v":"Quel N°"},"Juge E",{"$f":"IF(ISBLANK('Info+Engagés'!H2),\"\",('Info+Engagés'!H2))","v":""},null,null,null,null,null,null,null,null,null,null,"Non Partants",null,null,null,null,null,null,null,null,null,null,null," Classement                                 Nombre de partants"]
["Epreuve N°",null,{"$f":"'Info+Engagés'!B5","v":"Quel N°"},"Juge H",{"$f":"IF(ISBLANK('Info+Engagés'!H3),\"\",('Info+Engagés'!H3))","v":""},null,null,null,null,null,null,null,null,null,null,"Partant",null,{"$f":"R1-R2-R3","v":1},null,null,null,null,null,null,null,null,null,null,"         "]
["Piste N°",null,{"$f":"'Info+Engagés'!B6","v":"Piste ?"},"Juge C",{"$f":"IF(ISBLANK('Info+Engagés'!H4),\"\",('Info+Engagés'!H4))","v":"Nom du juge en C"},null,null,null,null,null,null,null,null,null,null,"Abandons",null,null,null,null,null,null,null,null,null,null,null,"               22 à 24    19 à 21   16 à 18   13 à 15   10 à 12   7 à 9     4 à 6     1 à 3",50,24,21,18,15,12,9,6,3]
["Imprimé le :",null,{"$f":"TODAY()","v":"2019-06-06"},"Juge M",{"$f":"IF(ISBLANK('Info+Engagés'!H5),\"\",('Info+Engagés'!H5))","v":""},null,null,null,null,null,null,null,null,null,null,"Eliminés",null,null,null,null,null,null,null,null,null,null,null,1,0.25,0.25,0.25,0.25,0.25,0.19,0.15,0.12,0.1]
["A:",null,{"$f":"NOW()","v":43622.846019328703},"Juge B",{"$f":"IF(ISBLANK('Info+Engagés'!H6),\"\",('Info+Engagés'!H6))","v":""},null,null,null,null,null,null,null,null,null,null,"Classés",null,{"$f":"IF(ISBLANK(R1),\"\",ROUNDUP(R4/3,0))","v":1},null,null,null,null,null,null,null,null,null,2,0.19,0.19,0.19,0.19,0.19,0.15,0.12,0.1]
["Dotation",null,{"$f":"'Info+Engagés'!K8","v":0},"Juge E",null,"Juge H",null,"Juge C",null,"Juge M",null,"Juge B",null,"Total",null,null,"Np. Abd. Eli.","Note d'ensemble",null,null,"Gain",null,null,null,null,null,null,3,0.15,0.15,0.15,0.15,0.15,0.12,0.1]
["N°","CHEVAL","CAVALIER","%","cl","%","cl","%","cl","%","cl","%","cl","Pts","%","Cl Final",null,null,null,null,"calculé",null,null,null,null,null,null,4,0.12,0.12,0.12,0.12,0.12,0.1]
[{"$f":"IF(ISBLANK('Info+Engagés'!A12),\"\",('Info+Engagés'!A12))","v":1},{"$f":"IF(ISBLANK('Info+Engagés'!B12),\"\",('Info+Engagés'!B12))","v":"Nom du Cheval 1"},{"$f":"IF(ISBLANK('Info+Engagés'!G12),\"\",('Info+Engagés'!G12))","v":"Nom du Cavalier 1"},{"$f":"IF(OR(ISBLANK('Info+Engagés'!A12),ISBLANK('Info+Engagés'!H2)),\"\",('Cav1'!D36))","v":""},{"$f":"IF(OR(ISBLANK('Info+Engagés'!A12),ISBLANK('Info+Engagés'!H2)),\"\",RANK(D10,$D$10:$D$49))","v":""},{"$f":"IF(OR(ISBLANK('Info+Engagés'!A12),ISBLANK('Info+Engagés'!H3)),\"\",('Cav1'!E36))","v":""},{"$f":"IF(OR(ISBLANK('Info+Engagés'!A12),ISBLANK('Info+Engagés'!H3)),\"\",RANK(F10,$F$10:$F$49))","v":""},{"$f":"IF(OR(ISBLANK('Info+Engagés'!A12),ISBLANK('Info+Engagés'!H4)),\"\",('Cav1'!F36))","v":0},{"$f":"IF(OR(ISBLANK('Info+Engagés'!A12),ISBLANK('Info+Engagés'!H4)),\"\",RANK(H10,$H$10:$H$49))","v":1},{"$f":"IF(OR(ISBLANK('Info+Engagés'!A12),ISBLANK('Info+Engagés'!H5)),\"\",('Cav1'!G36))","v":""},{"$f":"IF(OR(ISBLANK('Info+Engagés'!A12),ISBLANK('Info+Engagés'!H5)),\"\",RANK(J10,$J$10:$J$49))","v":""},{"$f":"IF(OR(ISBLANK('Info+Engagés'!A12),ISBLANK('Info+Engagés'!H6)),\"\",('Cav1'!H36))","v":""},{"$f":"IF(OR(ISBLANK('Info+Engagés'!A12),ISBLANK('Info+Engagés'!H6)),\"\",RANK(L10,$L$10:$L$49))","v":""},{"$f":"IF(ISBLANK('Info+Engagés'!A12),\"\",('Cav1'!I4))","v":0},{"$f":"IF(ISBLANK('Info+Engagés'!A12),\"\",('Cav1'!I5))","v":0},{"$f":"IF(ISBLANK('Info+Engagés'!$A$12),\"\",IF(RANK(T10,$T$10:$T$49)<4,RANK(T10,$T$10:$T$49),RANK(O10,$O$10:$O$49)))","v":1},null,{"$f":"IF(ISBLANK('Info+Engagés'!A12),\"\",'Cav1'!I3)","v":0},{"$f":"IF(OR(P10=\"\",Q10<>\"\"),\"\",IFERROR(IF(COUNTIF($P$10:$P$49,P10)=1,INDEX($U$10:$U$49,P10),SUMPRODUCT(($P$10:$P$49=P10)*$U$10:$U$49/COUNTIF($P$10:$P$49,P10))),\"\"))","v":0},{"$f":"IF(O10=\"\",\"\",O10+IF(R10<>0,R10/1000,0))","v":0},{"$f":"$C$8*INDEX($AC$6:$AL$50,MATCH(ROW()-9,$AB$6:$AB$50,0),MATCH($R$4,$AC$5:$AL$5,-1))","v":0},null,null,null,null,null,null,5,0.1,0.1,0.1,0.1,0.1]
[{"$f":"IF(ISBLANK('Info+Engagés'!A13),\"\",('Info+Engagés'!A13))","v":""},{"$f":"IF(ISBLANK('Info+Engagés'!B13),\"\",('Info+Engagés'!B13))","v":""},{"$f":"IF(ISBLANK('Info+Engagés'!G13),\"\",('Info+Engagés'!G13))","v":""},{"$f":"IF(OR(ISBLANK('Info+Engagés'!A13),ISBLANK('Info+Engagés'!H2)),\"\",('Cav2'!D36))","v":""},{"$f":"IF(OR(ISBLANK('Info+Engagés'!A13),ISBLANK('Info+Engagés'!H2)),\"\",RANK(D11,$D$10:$D$49))","v":""},{"$f":"IF(OR(ISBLANK('Info+Engagés'!A13),ISBLANK('Info+Engagés'!H3)),\"\",('Cav2'!E36))","v":""},{"$f":"IF(OR(ISBLANK('Info+Engagés'!A13),ISBLANK('Info+Engagés'!H3)),\"\",RANK(F11,$F$10:$F$49))","v":""},{"$f":"IF(OR(ISBLANK('Info+Engagés'!A13),ISBLANK('Info+Engagés'!H4)),\"\",('Cav2'!F36))","v":""},{"$f":"IF(OR(ISBLANK('Info+Engagés'!A13),ISBLANK('Info+Engagés'!H4)),\"\",RANK(H11,$H$10:$H$49))","v":""},{"$f":"IF(OR(ISBLANK('Info+Engagés'!A13),ISBLANK('Info+Engagés'!H5)),\"\",('Cav2'!G36))","v":""},{"$f":"IF(OR(ISBLANK('Info+Engagés'!A13),ISBLANK('Info+Engagés'!H5)),\"\",RANK(J11,$J$10:$J$49))","v":""},{"$f":"IF(OR(ISBLANK('Info+Engagés'!A13),ISBLANK('Info+Engagés'!H6)),\"\",('Cav2'!H36))","v":""},{"$f":"IF(OR(ISBLANK('Info+Engagés'!A13),ISBLANK('Info+Engagés'!H6)),\"\",RANK(L11,$L$10:$L$49))","v":""},{"$f":"IF(ISBLANK('Info+Engagés'!A13),\"\",('Cav2'!I4))","v":""},{"$f":"IF(ISBLANK('Info+Engagés'!A13),\"\",('Cav2'!I5))","v":""},{"$f":"IF(ISBLANK('Info+Engagés'!$A$13),\"\",IF(RANK(T11,$T$10:$T$49)<4,RANK(T11,$T$10:$T$49),RANK(O11,$O$10:$O$49)))","v":""},null,{"$f":"IF(ISBLANK('Info+Engagés'!A13),\"\",'Cav2'!I3)","v":""},"","",0,null,null,null,null,null,null,6,0.08,0.08,0.08,0.08]
[{"$f":"IF(ISBLANK('Info+Engagés'!A14),\"\",('Info+Engagés'!A14))","v":""},{"$f":"IF(ISBLANK('Info+Engagés'!B14),\"\",('Info+Engagés'!B14))","v":""},{"$f":"IF(ISBLANK('Info+Engagés'!G14),\"\",('Info+Engagés'!G14))","v":""},{"$f":"IF(OR(ISBLANK('Info+Engagés'!A14),ISBLANK('Info+Engagés'!H2)),\"\",('Cav3'!D36))","v":""},{"$f":"IF(OR(ISBLANK('Info+Engagés'!A14),ISBLANK('Info+Engagés'!H2)),\"\",RANK(D12,$D$10:$D$49))","v":""},{"$f":"IF(OR(ISBLANK('Info+Engagés'!A14),ISBLANK('Info+Engagés'!H3)),\"\",('Cav3'!E36))","v":""},{"$f":"IF(OR(ISBLANK('Info+Engagés'!A14),ISBLANK('Info+Engagés'!H3)),\"\",RANK(F12,$F$10:$F$49))","v":""},{"$f":"IF(OR(ISBLANK('Info+Engagés'!A14),ISBLANK('Info+Engagés'!H4)),\"\",('Cav3'!F36))","v":""},{"$f":"IF(OR(ISBLANK('Info+Engagés'!A14),ISBLANK('Info+Engagés'!H4)),\"\",RANK(H12,$H$10:$H$49))","v":""},{"$f":"IF(OR(ISBLANK('Info+Engagés'!A14),ISBLANK('Info+Engagés'!H5)),\"\",('Cav3'!G36))","v":""},{"$f":"IF(OR(ISBLANK('Info+Engagés'!A14),ISBLANK('Info+Engagés'!H5)),\"\",RANK(J12,$J$10:$J$49))","v":""},{"$f":"IF(OR(ISBLANK('Info+Engagés'!A14),ISBLANK('Info+Engagés'!H6)),\"\",('Cav3'!H36))","v":""},{"$f":"IF(OR(ISBLANK('Info+Engagés'!A14),ISBLANK('Info+Engagés'!H6)),\"\",RANK(L12,$L$10:$L$49))","v":""},{"$f":"IF(ISBLANK('Info+Engagés'!A14),\"\",('Cav3'!I4))","v":""},{"$f":"IF(ISBLANK('Info+Engagés'!A14),\"\",('Cav3'!I5))","v":""},{"$f":"IF(ISBLANK('Info+Engagés'!$A$14),\"\",IF(RANK(T12,$T$10:$T$49)<4,RANK(T12,$T$10:$T$49),RANK(O12,$O$10:$O$49)))","v":""},null,{"$f":"IF(ISBLANK('Info+Engagés'!A14),\"\",'Cav3'!I3)","v":""},"","",0,null,null,null,null,null,null,7,0.06,0.06,0.06]
[{"$f":"IF(ISBLANK('Info+Engagés'!A15),\"\",('Info+Engagés'!A15))","v":""},{"$f":"IF(ISBLANK('Info+Engagés'!B15),\"\",('Info+Engagés'!B15))","v":""},{"$f":"IF(ISBLANK('Info+Engagés'!G15),\"\",('Info+Engagés'!G15))","v":""},{"$f":"IF(OR(ISBLANK('Info+Engagés'!A15),ISBLANK('Info+Engagés'!H2)),\"\",('Cav4'!D36))","v":""},{"$f":"IF(OR(ISBLANK('Info+Engagés'!A15),ISBLANK('Info+Engagés'!H2)),\"\",RANK(D13,$D$10:$D$49))","v":""},{"$f":"IF(OR(ISBLANK('Info+Engagés'!A15),ISBLANK('Info+Engagés'!H3)),\"\",('Cav4'!E36))","v":""},{"$f":"IF(OR(ISBLANK('Info+Engagés'!A15),ISBLANK('Info+Engagés'!H3)),\"\",RANK(F13,$F$10:$F$49))","v":""},{"$f":"IF(OR(ISBLANK('Info+Engagés'!A15),ISBLANK('Info+Engagés'!H4)),\"\",('Cav4'!F36))","v":""},{"$f":"IF(OR(ISBLANK('Info+Engagés'!A15),ISBLANK('Info+Engagés'!H4)),\"\",RANK(H13,$H$10:$H$49))","v":""},{"$f":"IF(OR(ISBLANK('Info+Engagés'!A15),ISBLANK('Info+Engagés'!H5)),\"\",('Cav4'!G36))","v":""},{"$f":"IF(OR(ISBLANK('Info+Engagés'!A15),ISBLANK('Info+Engagés'!H5)),\"\",RANK(J13,$J$10:$J$49))","v":""},{"$f":"IF(OR(ISBLANK('Info+Engagés'!A15),ISBLANK('Info+Engagés'!H6)),\"\",('Cav4'!H36))","v":""},{"$f":"IF(OR(ISBLANK('Info+Engagés'!A15),ISBLANK('Info+Engagés'!H6)),\"\",RANK(L13,$L$10:$L$49))","v":""},{"$f":"IF(ISBLANK('Info+Engagés'!A15),\"\",('Cav4'!I4))","v":""},{"$f":"IF(ISBLANK('Info+Engagés'!A15),\"\",('Cav4'!I5))","v":""},{"$f":"IF(ISBLANK('Info+Engagés'!$A$15),\"\",IF(RANK(T13,$T$10:$T$49)<4,RANK(T13,$T$10:$T$49),RANK(O13,$O$10:$O$49)))","v":""},null,{"$f":"IF(ISBLANK('Info+Engagés'!A15),\"\",'Cav4'!I3)","v":""},"","",0,null,null,null,null,null,null,8,0.05,0.05]
[{"$f":"IF(ISBLANK('Info+Engagés'!A16),\"\",('Info+Engagés'!A16))","v":""},{"$f":"IF(ISBLANK('Info+Engagés'!B16),\"\",('Info+Engagés'!B16))","v":""},{"$f":"IF(ISBLANK('Info+Engagés'!G16),\"\",('Info+Engagés'!G16))","v":""},{"$f":"IF(OR(ISBLANK('Info+Engagés'!A16),ISBLANK('Info+Engagés'!H2)),\"\",('Cav5'!D36))","v":""},{"$f":"IF(OR(ISBLANK('Info+Engagés'!A16),ISBLANK('Info+Engagés'!H2)),\"\",RANK(D14,$D$10:$D$49))","v":""},{"$f":"IF(OR(ISBLANK('Info+Engagés'!A16),ISBLANK('Info+Engagés'!H3)),\"\",('Cav5'!E36))","v":""},{"$f":"IF(OR(ISBLANK('Info+Engagés'!A16),ISBLANK('Info+Engagés'!H3)),\"\",RANK(F14,$F$10:$F$49))","v":""},{"$f":"IF(OR(ISBLANK('Info+Engagés'!A16),ISBLANK('Info+Engagés'!H4)),\"\",('Cav5'!F36))","v":""},{"$f":"IF(OR(ISBLANK('Info+Engagés'!A16),ISBLANK('Info+Engagés'!H4)),\"\",RANK(H14,$H$10:$H$49))","v":""},{"$f":"IF(OR(ISBLANK('Info+Engagés'!A16),ISBLANK('Info+Engagés'!H5)),\"\",('Cav5'!G36))","v":""},{"$f":"IF(OR(ISBLANK('Info+Engagés'!A16),ISBLANK('Info+Engagés'!H5)),\"\",RANK(J14,$J$10:$J$49))","v":""},{"$f":"IF(OR(ISBLANK('Info+Engagés'!A16),ISBLANK('Info+Engagés'!H6)),\"\",('Cav5'!H36))","v":""},{"$f":"IF(OR(ISBLANK('Info+Engagés'!A16),ISBLANK('Info+Engagés'!H6)),\"\",RANK(L14,$L$10:$L$49))","v":""},{"$f":"IF(ISBLANK('Info+Engagés'!A16),\"\",('Cav5'!I4))","v":""},{"$f":"IF(ISBLANK('Info+Engagés'!A16),\"\",('Cav5'!I5))","v":""},{"$f":"IF(ISBLANK('Info+Engagés'!$A$16),\"\",IF(RANK(T14,$T$10:$T$49)<4,RANK(T14,$T$10:$T$49),RANK(O14,$O$10:$O$49)))","v":""},null,{"$f":"IF(ISBLANK('Info+Engagés'!A16),\"\",'Cav5'!I3)","v":""},"","",0,null,null,null,null,null,null,9,{"$f":"IF($R$4>24,4%,0)","v":0}]
[{"$f":"IF(ISBLANK('Info+Engagés'!A17),\"\",('Info+Engagés'!A17))","v":""},{"$f":"IF(ISBLANK('Info+Engagés'!B17),\"\",('Info+Engagés'!B17))","v":""},{"$f":"IF(ISBLANK('Info+Engagés'!G17),\"\",('Info+Engagés'!G17))","v":""},{"$f":"IF(OR(ISBLANK('Info+Engagés'!A17),ISBLANK('Info+Engagés'!H2)),\"\",('Cav6'!D36))","v":""},{"$f":"IF(OR(ISBLANK('Info+Engagés'!A17),ISBLANK('Info+Engagés'!H2)),\"\",RANK(D15,$D$10:$D$49))","v":""},{"$f":"IF(OR(ISBLANK('Info+Engagés'!A17),ISBLANK('Info+Engagés'!H3)),\"\",('Cav6'!E36))","v":""},{"$f":"IF(OR(ISBLANK('Info+Engagés'!A17),ISBLANK('Info+Engagés'!H3)),\"\",RANK(F15,$F$10:$F$49))","v":""},{"$f":"IF(OR(ISBLANK('Info+Engagés'!A17),ISBLANK('Info+Engagés'!H4)),\"\",('Cav6'!F36))","v":""},{"$f":"IF(OR(ISBLANK('Info+Engagés'!A17),ISBLANK('Info+Engagés'!H4)),\"\",RANK(H15,$H$10:$H$49))","v":""},{"$f":"IF(OR(ISBLANK('Info+Engagés'!A17),ISBLANK('Info+Engagés'!H5)),\"\",('Cav6'!G36))","v":""},{"$f":"IF(OR(ISBLANK('Info+Engagés'!A17),ISBLANK('Info+Engagés'!H5)),\"\",RANK(J15,$J$10:$J$49))","v":""},{"$f":"IF(OR(ISBLANK('Info+Engagés'!A17),ISBLANK('Info+Engagés'!H6)),\"\",('Cav6'!H36))","v":""},{"$f":"IF(OR(ISBLANK('Info+Engagés'!A17),ISBLANK('Info+Engagés'!H6)),\"\",RANK(L15,$L$10:$L$49))","v":""},{"$f":"IF(ISBLANK('Info+Engagés'!A17),\"\",('Cav6'!I4))","v":""},{"$f":"IF(ISBLANK('Info+Engagés'!A17),\"\",('Cav6'!I5))","v":""},{"$f":"IF(ISBLANK('Info+Engagés'!$A$17),\"\",IF(RANK(T15,$T$10:$T$49)<4,RANK(T15,$T$10:$T$49),RANK(O15,$O$10:$O$49)))","v":""},null,{"$f":"IF(ISBLANK('Info+Engagés'!A17),\"\",'Cav6'!I3)","v":""},"","",0,null,null,null,null,null,null,10,{"$f":"IF($R$4>27,4%,0)","v":0}]
[{"$f":"IF(ISBLANK('Info+Engagés'!A18),\"\",('Info+Engagés'!A18))","v":""},{"$f":"IF(ISBLANK('Info+Engagés'!B18),\"\",('Info+Engagés'!B18))","v":""},{"$f":"IF(ISBLANK('Info+Engagés'!G18),\"\",('Info+Engagés'!G18))","v":""},{"$f":"IF(OR(ISBLANK('Info+Engagés'!A18),ISBLANK('Info+Engagés'!H2)),\"\",('Cav7'!D36))","v":""},{"$f":"IF(OR(ISBLANK('Info+Engagés'!A18),ISBLANK('Info+Engagés'!H2)),\"\",RANK(D16,$D$10:$D$49))","v":""},{"$f":"IF(OR(ISBLANK('Info+Engagés'!A18),ISBLANK('Info+Engagés'!H3)),\"\",('Cav7'!E36))","v":""},{"$f":"IF(OR(ISBLANK('Info+Engagés'!A18),ISBLANK('Info+Engagés'!H3)),\"\",RANK(F16,$F$10:$F$49))","v":""},{"$f":"IF(OR(ISBLANK('Info+Engagés'!A18),ISBLANK('Info+Engagés'!H4)),\"\",('Cav7'!F36))","v":""},{"$f":"IF(OR(ISBLANK('Info+Engagés'!A18),ISBLANK('Info+Engagés'!H4)),\"\",RANK(H16,$H$10:$H$49))","v":""},{"$f":"IF(OR(ISBLANK('Info+Engagés'!A18),ISBLANK('Info+Engagés'!H5)),\"\",('Cav7'!G36))","v":""},{"$f":"IF(OR(ISBLANK('Info+Engagés'!A18),ISBLANK('Info+Engagés'!H5)),\"\",RANK(J16,$J$10:$J$49))","v":""},{"$f":"IF(OR(ISBLANK('Info+Engagés'!A18),ISBLANK('Info+Engagés'!H6)),\"\",('Cav7'!H36))","v":""},{"$f":"IF(OR(ISBLANK('Info+Engagés'!A18),ISBLANK('Info+Engagés'!H6)),\"\",RANK(L16,$L$10:$L$49))","v":""},{"$f":"IF(ISBLANK('Info+Engagés'!A18),\"\",('Cav7'!I4))","v":""},{"$f":"IF(ISBLANK('Info+Engagés'!A18),\"\",('Cav7'!I5))","v":""},{"$f":"IF(ISBLANK('Info+Engagés'!$A$18),\"\",IF(RANK(T16,$T$10:$T$49)<4,RANK(T16,$T$10:$T$49),RANK(O16,$O$10:$O$49)))","v":""},null,{"$f":"IF(ISBLANK('Info+Engagés'!A18),\"\",'Cav7'!I3)","v":""},"","",0,null,null,null,null,null,null,11,{"$f":"IF($R$4>30,4%,0)","v":0}]
[{"$f":"IF(ISBLANK('Info+Engagés'!A19),\"\",('Info+Engagés'!A19))","v":""},{"$f":"IF(ISBLANK('Info+Engagés'!B19),\"\",('Info+Engagés'!B19))","v":""},{"$f":"IF(ISBLANK('Info+Engagés'!G19),\"\",('Info+Engagés'!G19))","v":""},{"$f":"IF(OR(ISBLANK('Info+Engagés'!A19),ISBLANK('Info+Engagés'!H2)),\"\",('Cav8'!D36))","v":""},{"$f":"IF(OR(ISBLANK('Info+Engagés'!A19),ISBLANK('Info+Engagés'!H2)),\"\",RANK(D17,$D$10:$D$49))","v":""},{"$f":"IF(OR(ISBLANK('Info+Engagés'!A19),ISBLANK('Info+Engagés'!H3)),\"\",('Cav8'!E36))","v":""},{"$f":"IF(OR(ISBLANK('Info+Engagés'!A19),ISBLANK('Info+Engagés'!H3)),\"\",RANK(F17,$F$10:$F$49))","v":""},{"$f":"IF(OR(ISBLANK('Info+Engagés'!A19),ISBLANK('Info+Engagés'!H4)),\"\",('Cav8'!F36))","v":""},{"$f":"IF(OR(ISBLANK('Info+Engagés'!A19),ISBLANK('Info+Engagés'!H4)),\"\",RANK(H17,$H$10:$H$49))","v":""},{"$f":"IF(OR(ISBLANK('Info+Engagés'!A19),ISBLANK('Info+Engagés'!H5)),\"\",('Cav8'!G36))","v":""},{"$f":"IF(OR(ISBLANK('Info+Engagés'!A19),ISBLANK('Info+Engagés'!H5)),\"\",RANK(J17,$J$10:$J$49))","v":""},{"$f":"IF(OR(ISBLANK('Info+Engagés'!A19),ISBLANK('Info+Engagés'!H6)),\"\",('Cav8'!H36))","v":""},{"$f":"IF(OR(ISBLANK('Info+Engagés'!A19),ISBLANK('Info+Engagés'!H6)),\"\",RANK(L17,$L$10:$L$49))","v":""},{"$f":"IF(ISBLANK('Info+Engagés'!A19),\"\",('Cav8'!I4))","v":""},{"$f":"IF(ISBLANK('Info+Engagés'!A19),\"\",('Cav8'!I5))","v":""},{"$f":"IF(ISBLANK('Info+Engagés'!$A$19),\"\",IF(RANK(T17,$T$10:$T$49)<4,RANK(T17,$T$10:$T$49),RANK(O17,$O$10:$O$49)))","v":""},null,{"$f":"IF(ISBLANK('Info+Engagés'!A19),\"\",'Cav8'!I3)","v":""},"","",0,null,null,null,null,null,null,12,{"$f":"IF($R$4>33,4%,0)","v":0}]
[{"$f":"IF(ISBLANK('Info+Engagés'!A20),\"\",('Info+Engagés'!A20))","v":""},{"$f":"IF(ISBLANK('Info+Engagés'!B20),\"\",('Info+Engagés'!B20))","v":""},{"$f":"IF(ISBLANK('Info+Engagés'!G20),\"\",('Info+Engagés'!G20))","v":""},{"$f":"IF(OR(ISBLANK('Info+Engagés'!A20),ISBLANK('Info+Engagés'!H2)),\"\",('Cav9'!D36))","v":""},{"$f":"IF(OR(ISBLANK('Info+Engagés'!A20),ISBLANK('Info+Engagés'!H2)),\"\",RANK(D18,$D$10:$D$49))","v":""},{"$f":"IF(OR(ISBLANK('Info+Engagés'!A20),ISBLANK('Info+Engagés'!H3)),\"\",('Cav9'!E36))","v":""},{"$f":"IF(OR(ISBLANK('Info+Engagés'!A20),ISBLANK('Info+Engagés'!H3)),\"\",RANK(F18,$F$10:$F$49))","v":""},{"$f":"IF(OR(ISBLANK('Info+Engagés'!A20),ISBLANK('Info+Engagés'!H4)),\"\",('Cav9'!F36))","v":""},{"$f":"IF(OR(ISBLANK('Info+Engagés'!A20),ISBLANK('Info+Engagés'!H4)),\"\",RANK(H18,$H$10:$H$49))","v":""},{"$f":"IF(OR(ISBLANK('Info+Engagés'!A20),ISBLANK('Info+Engagés'!H5)),\"\",('Cav9'!G36))","v":""},{"$f":"IF(OR(ISBLANK('Info+Engagés'!A20),ISBLANK('Info+Engagés'!H5)),\"\",RANK(J18,$J$10:$J$49))","v":""},{"$f":"IF(OR(ISBLANK('Info+Engagés'!A20),ISBLANK('Info+Engagés'!H6)),\"\",('Cav9'!H36))","v":""},{"$f":"IF(OR(ISBLANK('Info+Engagés'!A20),ISBLANK('Info+Engagés'!H6)),\"\",RANK(L18,$L$10:$L$49))","v":""},{"$f":"IF(ISBLANK('Info+Engagés'!A20),\"\",('Cav9'!I4))","v":""},{"$f":"IF(ISBLANK('Info+Engagés'!A20),\"\",('Cav9'!I5))","v":""},{"$f":"IF(ISBLANK('Info+Engagés'!$A$20),\"\",IF(RANK(T18,$T$10:$T$49)<4,RANK(T18,$T$10:$T$49),RANK(O18,$O$10:$O$49)))","v":""},null,{"$f":"IF(ISBLANK('Info+Engagés'!A20),\"\",'Cav9'!I3)","v":""},"","",0,null,null,null,null,null,null,13,{"$f":"IF($R$4>36,4%,0)","v":0}]
[{"$f":"IF(ISBLANK('Info+Engagés'!A21),\"\",('Info+Engagés'!A21))","v":""},{"$f":"IF(ISBLANK('Info+Engagés'!B21),\"\",('Info+Engagés'!B21))","v":""},{"$f":"IF(ISBLANK('Info+Engagés'!G21),\"\",('Info+Engagés'!G21))","v":""},{"$f":"IF(OR(ISBLANK('Info+Engagés'!A21),ISBLANK('Info+Engagés'!H2)),\"\",('Cav10'!D36))","v":""},{"$f":"IF(OR(ISBLANK('Info+Engagés'!A21),ISBLANK('Info+Engagés'!H2)),\"\",RANK(D19,$D$10:$D$49))","v":""},{"$f":"IF(OR(ISBLANK('Info+Engagés'!A21),ISBLANK('Info+Engagés'!H3)),\"\",('Cav10'!E36))","v":""},{"$f":"IF(OR(ISBLANK('Info+Engagés'!A21),ISBLANK('Info+Engagés'!H3)),\"\",RANK(F19,$F$10:$F$49))","v":""},{"$f":"IF(OR(ISBLANK('Info+Engagés'!A21),ISBLANK('Info+Engagés'!H4)),\"\",('Cav10'!F36))","v":""},{"$f":"IF(OR(ISBLANK('Info+Engagés'!A21),ISBLANK('Info+Engagés'!H4)),\"\",RANK(H19,$H$10:$H$49))","v":""},{"$f":"IF(OR(ISBLANK('Info+Engagés'!A21),ISBLANK('Info+Engagés'!H5)),\"\",('Cav10'!G36))","v":""},{"$f":"IF(OR(ISBLANK('Info+Engagés'!A21),ISBLANK('Info+Engagés'!H5)),\"\",RANK(J19,$J$10:$J$49))","v":""},{"$f":"IF(OR(ISBLANK('Info+Engagés'!A21),ISBLANK('Info+Engagés'!H6)),\"\",('Cav10'!H36))","v":""},{"$f":"IF(OR(ISBLANK('Info+Engagés'!A21),ISBLANK('Info+Engagés'!H6)),\"\",RANK(L19,$L$10:$L$49))","v":""},{"$f":"IF(ISBLANK('Info+Engagés'!A21),\"\",('Cav10'!I4))","v":""},{"$f":"IF(ISBLANK('Info+Engagés'!A21),\"\",('Cav10'!I5))","v":""},{"$f":"IF(ISBLANK('Info+Engagés'!$A$21),\"\",IF(RANK(T19,$T$10:$T$49)<4,RANK(T19,$T$10:$T$49),RANK(O19,$O$10:$O$49)))","v":""},null,{"$f":"IF(ISBLANK('Info+Engagés'!A21),\"\",'Cav10'!I3)","v":""},"","",0,null,null,null,null,null,null,14,{"$f":"IF($R$4>39,4%,0)","v":0}]
[{"$f":"IF(ISBLANK('Info+Engagés'!A22),\"\",('Info+Engagés'!A22))","v":""},{"$f":"IF(ISBLANK('Info+Engagés'!B22),\"\",('Info+Engagés'!B22))","v":""},{"$f":"IF(ISBLANK('Info+Engagés'!G22),\"\",('Info+Engagés'!G22))","v":""},{"$f":"IF(OR(ISBLANK('Info+Engagés'!A22),ISBLANK('Info+Engagés'!H2)),\"\",('Cav11'!D36))","v":""},{"$f":"IF(OR(ISBLANK('Info+Engagés'!A22),ISBLANK('Info+Engagés'!H2)),\"\",RANK(D20,$D$10:$D$49))","v":""},{"$f":"IF(OR(ISBLANK('Info+Engagés'!A22),ISBLANK('Info+Engagés'!H3)),\"\",('Cav11'!E36))","v":""},{"$f":"IF(OR(ISBLANK('Info+Engagés'!A22),ISBLANK('Info+Engagés'!H3)),\"\",RANK(F20,$F$10:$F$49))","v":""},{"$f":"IF(OR(ISBLANK('Info+Engagés'!A22),ISBLANK('Info+Engagés'!H4)),\"\",('Cav11'!F36))","v":""},{"$f":"IF(OR(ISBLANK('Info+Engagés'!A22),ISBLANK('Info+Engagés'!H4)),\"\",RANK(H20,$H$10:$H$49))","v":""},{"$f":"IF(OR(ISBLANK('Info+Engagés'!A22),ISBLANK('Info+Engagés'!H5)),\"\",('Cav11'!G36))","v":""},{"$f":"IF(OR(ISBLANK('Info+Engagés'!A22),ISBLANK('Info+Engagés'!H5)),\"\",RANK(J20,$J$10:$J$49))","v":""},{"$f":"IF(OR(ISBLANK('Info+Engagés'!A22),ISBLANK('Info+Engagés'!H6)),\"\",('Cav11'!H36))","v":""},{"$f":"IF(OR(ISBLANK('Info+Engagés'!A22),ISBLANK('Info+Engagés'!H6)),\"\",RANK(L20,$L$10:$L$49))","v":""},{"$f":"IF(ISBLANK('Info+Engagés'!A22),\"\",('Cav11'!I4))","v":""},{"$f":"IF(ISBLANK('Info+Engagés'!A22),\"\",('Cav11'!I5))","v":""},{"$f":"IF(ISBLANK('Info+Engagés'!$A$22),\"\",IF(RANK(T20,$T$10:$T$49)<4,RANK(T20,$T$10:$T$49),RANK(O20,$O$10:$O$49)))","v":""},null,{"$f":"IF(ISBLANK('Info+Engagés'!A22),\"\",'Cav11'!I3)","v":""},"","",0,null,null,null,null,null,null,15,0]
[{"$f":"IF(ISBLANK('Info+Engagés'!A23),\"\",('Info+Engagés'!A23))","v":""},{"$f":"IF(ISBLANK('Info+Engagés'!B23),\"\",('Info+Engagés'!B23))","v":""},{"$f":"IF(ISBLANK('Info+Engagés'!G23),\"\",('Info+Engagés'!G23))","v":""},{"$f":"IF(OR(ISBLANK('Info+Engagés'!A23),ISBLANK('Info+Engagés'!H2)),\"\",('Cav12'!D36))","v":""},{"$f":"IF(OR(ISBLANK('Info+Engagés'!A23),ISBLANK('Info+Engagés'!H2)),\"\",RANK(D21,$D$10:$D$49))","v":""},{"$f":"IF(OR(ISBLANK('Info+Engagés'!A23),ISBLANK('Info+Engagés'!H3)),\"\",('Cav12'!E36))","v":""},{"$f":"IF(OR(ISBLANK('Info+Engagés'!A23),ISBLANK('Info+Engagés'!H3)),\"\",RANK(F21,$F$10:$F$49))","v":""},{"$f":"IF(OR(ISBLANK('Info+Engagés'!A23),ISBLANK('Info+Engagés'!H4)),\"\",('Cav12'!F36))","v":""},{"$f":"IF(OR(ISBLANK('Info+Engagés'!A23),ISBLANK('Info+Engagés'!H4)),\"\",RANK(H21,$H$10:$H$49))","v":""},{"$f":"IF(OR(ISBLANK('Info+Engagés'!A23),ISBLANK('Info+Engagés'!H5)),\"\",('Cav12'!G36))","v":""},{"$f":"IF(OR(ISBLANK('Info+Engagés'!A23),ISBLANK('Info+Engagés'!H5)),\"\",RANK(J21,$J$10:$J$49))","v":""},{"$f":"IF(OR(ISBLANK('Info+Engagés'!A23),ISBLANK('Info+Engagés'!H6)),\"\",('Cav12'!H36))","v":""},{"$f":"IF(OR(ISBLANK('Info+Engagés'!A23),ISBLANK('Info+Engagés'!H6)),\"\",RANK(L21,$L$10:$L$49))","v":""},{"$f":"IF(ISBLANK('Info+Engagés'!A23),\"\",('Cav12'!I4))","v":""},{"$f":"IF(ISBLANK('Info+Engagés'!A23),\"\",('Cav12'!I5))","v":""},{"$f":"IF(ISBLANK('Info+Engagés'!$A$23),\"\",IF(RANK(T21,$T$10:$T$49)<4,RANK(T21,$T$10:$T$49),RANK(O21,$O$10:$O$49)))","v":""},null,{"$f":"IF(ISBLANK('Info+Engagés'!A23),\"\",'Cav12'!I3)","v":""},"","",0,null,null,null,null,null,null,16,0]
[{"$f":"IF(ISBLANK('Info+Engagés'!A24),\"\",('Info+Engagés'!A24))","v":""},{"$f":"IF(ISBLANK('Info+Engagés'!B24),\"\",('Info+Engagés'!B24))","v":""},{"$f":"IF(ISBLANK('Info+Engagés'!G24),\"\",('Info+Engagés'!G24))","v":""},{"$f":"IF(OR(ISBLANK('Info+Engagés'!A24),ISBLANK('Info+Engagés'!H2)),\"\",('Cav13'!D36))","v":""},{"$f":"IF(OR(ISBLANK('Info+Engagés'!A24),ISBLANK('Info+Engagés'!H2)),\"\",RANK(D22,$D$10:$D$49))","v":""},{"$f":"IF(OR(ISBLANK('Info+Engagés'!A24),ISBLANK('Info+Engagés'!H3)),\"\",('Cav13'!E36))","v":""},{"$f":"IF(OR(ISBLANK('Info+Engagés'!A24),ISBLANK('Info+Engagés'!H3)),\"\",RANK(F22,$F$10:$F$49))","v":""},{"$f":"IF(OR(ISBLANK('Info+Engagés'!A24),ISBLANK('Info+Engagés'!H4)),\"\",('Cav13'!F36))","v":""},{"$f":"IF(OR(ISBLANK('Info+Engagés'!A24),ISBLANK('Info+Engagés'!H4)),\"\",RANK(H22,$H$10:$H$49))","v":""},{"$f":"IF(OR(ISBLANK('Info+Engagés'!A24),ISBLANK('Info+Engagés'!H5)),\"\",('Cav13'!G36))","v":""},{"$f":"IF(OR(ISBLANK('Info+Engagés'!A24),ISBLANK('Info+Engagés'!H5)),\"\",RANK(J22,$J$10:$J$49))","v":""},{"$f":"IF(OR(ISBLANK('Info+Engagés'!A24),ISBLANK('Info+Engagés'!H6)),\"\",('Cav13'!H36))","v":""},{"$f":"IF(OR(ISBLANK('Info+Engagés'!A24),ISBLANK('Info+Engagés'!H6)),\"\",RANK(L22,$L$10:$L$49))","v":""},{"$f":"IF(ISBLANK('Info+Engagés'!A24),\"\",('Cav13'!I4))","v":""},{"$f":"IF(ISBLANK('Info+Engagés'!A24),\"\",('Cav13'!I5))","v":""},{"$f":"IF(ISBLANK('Info+Engagés'!$A$24),\"\",IF(RANK(T22,$T$10:$T$49)<4,RANK(T22,$T$10:$T$49),RANK(O22,$O$10:$O$49)))","v":""},null,{"$f":"IF(ISBLANK('Info+Engagés'!A24),\"\",'Cav13'!I3)","v":""},"","",0,null,null,null,null,null,null,17,0]
[{"$f":"IF(ISBLANK('Info+Engagés'!A25),\"\",('Info+Engagés'!A25))","v":""},{"$f":"IF(ISBLANK('Info+Engagés'!B25),\"\",('Info+Engagés'!B25))","v":""},{"$f":"IF(ISBLANK('Info+Engagés'!G25),\"\",('Info+Engagés'!G25))","v":""},{"$f":"IF(OR(ISBLANK('Info+Engagés'!A25),ISBLANK('Info+Engagés'!H2)),\"\",('Cav14'!D36))","v":""},{"$f":"IF(OR(ISBLANK('Info+Engagés'!A25),ISBLANK('Info+Engagés'!H2)),\"\",RANK(D23,$D$10:$D$49))","v":""},{"$f":"IF(OR(ISBLANK('Info+Engagés'!A25),ISBLANK('Info+Engagés'!H3)),\"\",('Cav14'!E36))","v":""},{"$f":"IF(OR(ISBLANK('Info+Engagés'!A25),ISBLANK('Info+Engagés'!H3)),\"\",RANK(F23,$F$10:$F$49))","v":""},{"$f":"IF(OR(ISBLANK('Info+Engagés'!A25),ISBLANK('Info+Engagés'!H4)),\"\",('Cav14'!F36))","v":""},{"$f":"IF(OR(ISBLANK('Info+Engagés'!A25),ISBLANK('Info+Engagés'!H4)),\"\",RANK(H23,$H$10:$H$49))","v":""},{"$f":"IF(OR(ISBLANK('Info+Engagés'!A25),ISBLANK('Info+Engagés'!H5)),\"\",('Cav14'!G36))","v":""},{"$f":"IF(OR(ISBLANK('Info+Engagés'!A25),ISBLANK('Info+Engagés'!H5)),\"\",RANK(J23,$J$10:$J$49))","v":""},{"$f":"IF(OR(ISBLANK('Info+Engagés'!A25),ISBLANK('Info+Engagés'!H6)),\"\",('Cav14'!H36))","v":""},{"$f":"IF(OR(ISBLANK('Info+Engagés'!A25),ISBLANK('Info+Engagés'!H6)),\"\",RANK(L23,$L$10:$L$49))","v":""},{"$f":"IF(ISBLANK('Info+Engagés'!A25),\"\",('Cav14'!I4))","v":""},{"$f":"IF(ISBLANK('Info+Engagés'!A25),\"\",('Cav14'!I5))","v":""},{"$f":"IF(ISBLANK('Info+Engagés'!$A$25),\"\",IF(RANK(T23,$T$10:$T$49)<4,RANK(T23,$T$10:$T$49),RANK(O23,$O$10:$O$49)))","v":""},null,{"$f":"IF(ISBLANK('Info+Engagés'!A25),\"\",'Cav14'!I3)","v":""},"","",0,null,null,null,null,null,null,18,0]
[{"$f":"IF(ISBLANK('Info+Engagés'!A26),\"\",('Info+Engagés'!A26))","v":""},{"$f":"IF(ISBLANK('Info+Engagés'!B26),\"\",('Info+Engagés'!B26))","v":""},{"$f":"IF(ISBLANK('Info+Engagés'!G26),\"\",('Info+Engagés'!G26))","v":""},{"$f":"IF(OR(ISBLANK('Info+Engagés'!A26),ISBLANK('Info+Engagés'!H2)),\"\",('Cav15'!D36))","v":""},{"$f":"IF(OR(ISBLANK('Info+Engagés'!A26),ISBLANK('Info+Engagés'!H2)),\"\",RANK(D24,$D$10:$D$49))","v":""},{"$f":"IF(OR(ISBLANK('Info+Engagés'!A26),ISBLANK('Info+Engagés'!H3)),\"\",('Cav15'!E36))","v":""},{"$f":"IF(OR(ISBLANK('Info+Engagés'!A26),ISBLANK('Info+Engagés'!H3)),\"\",RANK(F24,$F$10:$F$49))","v":""},{"$f":"IF(OR(ISBLANK('Info+Engagés'!A26),ISBLANK('Info+Engagés'!H4)),\"\",('Cav15'!F36))","v":""},{"$f":"IF(OR(ISBLANK('Info+Engagés'!A26),ISBLANK('Info+Engagés'!H4)),\"\",RANK(H24,$H$10:$H$49))","v":""},{"$f":"IF(OR(ISBLANK('Info+Engagés'!A26),ISBLANK('Info+Engagés'!H5)),\"\",('Cav15'!G36))","v":""},{"$f":"IF(OR(ISBLANK('Info+Engagés'!A26),ISBLANK('Info+Engagés'!H5)),\"\",RANK(J24,$J$10:$J$49))","v":""},{"$f":"IF(OR(ISBLANK('Info+Engagés'!A26),ISBLANK('Info+Engagés'!H6)),\"\",('Cav15'!H36))","v":""},{"$f":"IF(OR(ISBLANK('Info+Engagés'!A26),ISBLANK('Info+Engagés'!H6)),\"\",RANK(L24,$L$10:$L$49))","v":""},{"$f":"IF(ISBLANK('Info+Engagés'!A26),\"\",('Cav15'!I4))","v":""},{"$f":"IF(ISBLANK('Info+Engagés'!A26),\"\",('Cav15'!I5))","v":""},{"$f":"IF(ISBLANK('Info+Engagés'!$A$26),\"\",IF(RANK(T24,$T$10:$T$49)<4,RANK(T24,$T$10:$T$49),RANK(O24,$O$10:$O$49)))","v":""},null,{"$f":"IF(ISBLANK('Info+Engagés'!A26),\"\",'Cav15'!I3)","v":""},"","",0,null,null,null,null,null,null,19,0]
[{"$f":"IF(ISBLANK('Info+Engagés'!A27),\"\",('Info+Engagés'!A27))","v":""},{"$f":"IF(ISBLANK('Info+Engagés'!B27),\"\",('Info+Engagés'!B27))","v":""},{"$f":"IF(ISBLANK('Info+Engagés'!G27),\"\",('Info+Engagés'!G27))","v":""},{"$f":"IF(OR(ISBLANK('Info+Engagés'!A27),ISBLANK('Info+Engagés'!H2)),\"\",('Cav16'!D36))","v":""},{"$f":"IF(OR(ISBLANK('Info+Engagés'!A27),ISBLANK('Info+Engagés'!H2)),\"\",RANK(D25,$D$10:$D$49))","v":""},{"$f":"IF(OR(ISBLANK('Info+Engagés'!A27),ISBLANK('Info+Engagés'!H3)),\"\",('Cav16'!E36))","v":""},{"$f":"IF(OR(ISBLANK('Info+Engagés'!A27),ISBLANK('Info+Engagés'!H3)),\"\",RANK(F25,$F$10:$F$49))","v":""},{"$f":"IF(OR(ISBLANK('Info+Engagés'!A27),ISBLANK('Info+Engagés'!H4)),\"\",('Cav16'!F36))","v":""},{"$f":"IF(OR(ISBLANK('Info+Engagés'!A27),ISBLANK('Info+Engagés'!H4)),\"\",RANK(H25,$H$10:$H$49))","v":""},{"$f":"IF(OR(ISBLANK('Info+Engagés'!A27),ISBLANK('Info+Engagés'!H5)),\"\",('Cav16'!G36))","v":""},{"$f":"IF(OR(ISBLANK('Info+Engagés'!A27),ISBLANK('Info+Engagés'!H5)),\"\",RANK(J25,$J$10:$J$49))","v":""},{"$f":"IF(OR(ISBLANK('Info+Engagés'!A27),ISBLANK('Info+Engagés'!H6)),\"\",('Cav16'!H36))","v":""},{"$f":"IF(OR(ISBLANK('Info+Engagés'!A27),ISBLANK('Info+Engagés'!H6)),\"\",RANK(L25,$L$10:$L$49))","v":""},{"$f":"IF(ISBLANK('Info+Engagés'!A27),\"\",('Cav16'!I4))","v":""},{"$f":"IF(ISBLANK('Info+Engagés'!A27),\"\",('Cav16'!I5))","v":""},{"$f":"IF(ISBLANK('Info+Engagés'!$A$27),\"\",IF(RANK(T25,$T$10:$T$49)<4,RANK(T25,$T$10:$T$49),RANK(O25,$O$10:$O$49)))","v":""},null,{"$f":"IF(ISBLANK('Info+Engagés'!A27),\"\",'Cav16'!I3)","v":""},"","",0,null,null,null,null,null,null,20,0]
[{"$f":"IF(ISBLANK('Info+Engagés'!A28),\"\",('Info+Engagés'!A28))","v":""},{"$f":"IF(ISBLANK('Info+Engagés'!B28),\"\",('Info+Engagés'!B28))","v":""},{"$f":"IF(ISBLANK('Info+Engagés'!G28),\"\",('Info+Engagés'!G28))","v":""},{"$f":"IF(OR(ISBLANK('Info+Engagés'!A28),ISBLANK('Info+Engagés'!H2)),\"\",('Cav17'!D36))","v":""},{"$f":"IF(OR(ISBLANK('Info+Engagés'!A28),ISBLANK('Info+Engagés'!H2)),\"\",RANK(D26,$D$10:$D$49))","v":""},{"$f":"IF(OR(ISBLANK('Info+Engagés'!A28),ISBLANK('Info+Engagés'!H3)),\"\",('Cav17'!E36))","v":""},{"$f":"IF(OR(ISBLANK('Info+Engagés'!A28),ISBLANK('Info+Engagés'!H3)),\"\",RANK(F26,$F$10:$F$49))","v":""},{"$f":"IF(OR(ISBLANK('Info+Engagés'!A28),ISBLANK('Info+Engagés'!H4)),\"\",('Cav17'!F36))","v":""},{"$f":"IF(OR(ISBLANK('Info+Engagés'!A28),ISBLANK('Info+Engagés'!H4)),\"\",RANK(H26,$H$10:$H$49))","v":""},{"$f":"IF(OR(ISBLANK('Info+Engagés'!A28),ISBLANK('Info+Engagés'!H5)),\"\",('Cav17'!G36))","v":""},{"$f":"IF(OR(ISBLANK('Info+Engagés'!A28),ISBLANK('Info+Engagés'!H5)),\"\",RANK(J26,$J$10:$J$49))","v":""},{"$f":"IF(OR(ISBLANK('Info+Engagés'!A28),ISBLANK('Info+Engagés'!H6)),\"\",('Cav17'!H36))","v":""},{"$f":"IF(OR(ISBLANK('Info+Engagés'!A28),ISBLANK('Info+Engagés'!H6)),\"\",RANK(L26,$L$10:$L$49))","v":""},{"$f":"IF(ISBLANK('Info+Engagés'!A28),\"\",('Cav17'!I4))","v":""},{"$f":"IF(ISBLANK('Info+Engagés'!A28),\"\",('Cav17'!I5))","v":""},{"$f":"IF(ISBLANK('Info+Engagés'!$A$28),\"\",IF(RANK(T26,$T$10:$T$49)<4,RANK(T26,$T$10:$T$49),RANK(O26,$O$10:$O$49)))","v":""},null,{"$f":"IF(ISBLANK('Info+Engagés'!A28),\"\",'Cav17'!I3)","v":""},"","",0,null,null,null,null,null,null,21,0]
[{"$f":"IF(ISBLANK('Info+Engagés'!A29),\"\",('Info+Engagés'!A29))","v":""},{"$f":"IF(ISBLANK('Info+Engagés'!B29),\"\",('Info+Engagés'!B29))","v":""},{"$f":"IF(ISBLANK('Info+Engagés'!G29),\"\",('Info+Engagés'!G29))","v":""},{"$f":"IF(OR(ISBLANK('Info+Engagés'!A29),ISBLANK('Info+Engagés'!H2)),\"\",('Cav18'!D36))","v":""},{"$f":"IF(OR(ISBLANK('Info+Engagés'!A29),ISBLANK('Info+Engagés'!H2)),\"\",RANK(D27,$D$10:$D$49))","v":""},{"$f":"IF(OR(ISBLANK('Info+Engagés'!A29),ISBLANK('Info+Engagés'!H3)),\"\",('Cav18'!E36))","v":""},{"$f":"IF(OR(ISBLANK('Info+Engagés'!A29),ISBLANK('Info+Engagés'!H3)),\"\",RANK(F27,$F$10:$F$49))","v":""},{"$f":"IF(OR(ISBLANK('Info+Engagés'!A29),ISBLANK('Info+Engagés'!H4)),\"\",('Cav18'!F36))","v":""},{"$f":"IF(OR(ISBLANK('Info+Engagés'!A29),ISBLANK('Info+Engagés'!H4)),\"\",RANK(H27,$H$10:$H$49))","v":""},{"$f":"IF(OR(ISBLANK('Info+Engagés'!A29),ISBLANK('Info+Engagés'!H5)),\"\",('Cav18'!G36))","v":""},{"$f":"IF(OR(ISBLANK('Info+Engagés'!A29),ISBLANK('Info+Engagés'!H5)),\"\",RANK(J27,$J$10:$J$49))","v":""},{"$f":"IF(OR(ISBLANK('Info+Engagés'!A29),ISBLANK('Info+Engagés'!H6)),\"\",('Cav18'!H36))","v":""},{"$f":"IF(OR(ISBLANK('Info+Engagés'!A29),ISBLANK('Info+Engagés'!H6)),\"\",RANK(L27,$L$10:$L$49))","v":""},{"$f":"IF(ISBLANK('Info+Engagés'!A29),\"\",('Cav18'!I4))","v":""},{"$f":"IF(ISBLANK('Info+Engagés'!A29),\"\",('Cav18'!I5))","v":""},{"$f":"IF(ISBLANK('Info+Engagés'!$A$29),\"\",IF(RANK(T27,$T$10:$T$49)<4,RANK(T27,$T$10:$T$49),RANK(O27,$O$10:$O$49)))","v":""},null,{"$f":"IF(ISBLANK('Info+Engagés'!A29),\"\",'Cav18'!I3)","v":""},"","",0,null,null,null,null,null,null,22,0]
[{"$f":"IF(ISBLANK('Info+Engagés'!A30),\"\",('Info+Engagés'!A30))","v":""},{"$f":"IF(ISBLANK('Info+Engagés'!B30),\"\",('Info+Engagés'!B30))","v":""},{"$f":"IF(ISBLANK('Info+Engagés'!G30),\"\",('Info+Engagés'!G30))","v":""},{"$f":"IF(OR(ISBLANK('Info+Engagés'!A30),ISBLANK('Info+Engagés'!H2)),\"\",('Cav19'!D36))","v":""},{"$f":"IF(OR(ISBLANK('Info+Engagés'!A30),ISBLANK('Info+Engagés'!H2)),\"\",RANK(D28,$D$10:$D$49))","v":""},{"$f":"IF(OR(ISBLANK('Info+Engagés'!A30),ISBLANK('Info+Engagés'!H3)),\"\",('Cav19'!E36))","v":""},{"$f":"IF(OR(ISBLANK('Info+Engagés'!A30),ISBLANK('Info+Engagés'!H3)),\"\",RANK(F28,$F$10:$F$49))","v":""},{"$f":"IF(OR(ISBLANK('Info+Engagés'!A30),ISBLANK('Info+Engagés'!H4)),\"\",('Cav19'!F36))","v":""},{"$f":"IF(OR(ISBLANK('Info+Engagés'!A30),ISBLANK('Info+Engagés'!H4)),\"\",RANK(H28,$H$10:$H$49))","v":""},{"$f":"IF(OR(ISBLANK('Info+Engagés'!A30),ISBLANK('Info+Engagés'!H5)),\"\",('Cav19'!G36))","v":""},{"$f":"IF(OR(ISBLANK('Info+Engagés'!A30),ISBLANK('Info+Engagés'!H5)),\"\",RANK(J28,$J$10:$J$49))","v":""},{"$f":"IF(OR(ISBLANK('Info+Engagés'!A30),ISBLANK('Info+Engagés'!H6)),\"\",('Cav19'!H36))","v":""},{"$f":"IF(OR(ISBLANK('Info+Engagés'!A30),ISBLANK('Info+Engagés'!H6)),\"\",RANK(L28,$L$10:$L$49))","v":""},{"$f":"IF(ISBLANK('Info+Engagés'!A30),\"\",('Cav19'!I4))","v":""},{"$f":"IF(ISBLANK('Info+Engagés'!A30),\"\",('Cav19'!I5))","v":""},{"$f":"IF(ISBLANK('Info+Engagés'!$A$30),\"\",IF(RANK(T28,$T$10:$T$49)<4,RANK(T28,$T$10:$T$49),RANK(O28,$O$10:$O$49)))","v":""},null,{"$f":"IF(ISBLANK('Info+Engagés'!A30),\"\",'Cav19'!I3)","v":""},"","",0,null,null,null,null,null,null,23,0]
[{"$f":"IF(ISBLANK('Info+Engagés'!A31),\"\",('Info+Engagés'!A31))","v":""},{"$f":"IF(ISBLANK('Info+Engagés'!B31),\"\",('Info+Engagés'!B31))","v":""},{"$f":"IF(ISBLANK('Info+Engagés'!G31),\"\",('Info+Engagés'!G31))","v":""},{"$f":"IF(OR(ISBLANK('Info+Engagés'!A31),ISBLANK('Info+Engagés'!H2)),\"\",('Cav20'!D36))","v":""},{"$f":"IF(OR(ISBLANK('Info+Engagés'!A31),ISBLANK('Info+Engagés'!H2)),\"\",RANK(D29,$D$10:$D$49))","v":""},{"$f":"IF(OR(ISBLANK('Info+Engagés'!A31),ISBLANK('Info+Engagés'!H3)),\"\",('Cav20'!E36))","v":""},{"$f":"IF(OR(ISBLANK('Info+Engagés'!A31),ISBLANK('Info+Engagés'!H3)),\"\",RANK(F29,$F$10:$F$49))","v":""},{"$f":"IF(OR(ISBLANK('Info+Engagés'!A31),ISBLANK('Info+Engagés'!H4)),\"\",('Cav20'!F36))","v":""},{"$f":"IF(OR(ISBLANK('Info+Engagés'!A31),ISBLANK('Info+Engagés'!H4)),\"\",RANK(H29,$H$10:$H$49))","v":""},{"$f":"IF(OR(ISBLANK('Info+Engagés'!A31),ISBLANK('Info+Engagés'!H5)),\"\",('Cav20'!G36))","v":""},{"$f":"IF(OR(ISBLANK('Info+Engagés'!A31),ISBLANK('Info+Engagés'!H5)),\"\",RANK(J29,$J$10:$J$49))","v":""},{"$f":"IF(OR(ISBLANK('Info+Engagés'!A31),ISBLANK('Info+Engagés'!H6)),\"\",('Cav20'!H36))","v":""},{"$f":"IF(OR(ISBLANK('Info+Engagés'!A31),ISBLANK('Info+Engagés'!H6)),\"\",RANK(L29,$L$10:$L$49))","v":""},{"$f":"IF(ISBLANK('Info+Engagés'!A31),\"\",('Cav20'!I4))","v":""},{"$f":"IF(ISBLANK('Info+Engagés'!A31),\"\",('Cav20'!I5))","v":""},{"$f":"IF(ISBLANK('Info+Engagés'!$A$31),\"\",IF(RANK(T29,$T$10:$T$49)<4,RANK(T29,$T$10:$T$49),RANK(O29,$O$10:$O$49)))","v":""},null,{"$f":"IF(ISBLANK('Info+Engagés'!A31),\"\",'Cav20'!I3)","v":""},"","",0,null,null,null,null,null,null,24,0]
[{"$f":"IF(ISBLANK('Info+Engagés'!A32),\"\",('Info+Engagés'!A32))","v":""},{"$f":"IF(ISBLANK('Info+Engagés'!B32),\"\",('Info+Engagés'!B32))","v":""},{"$f":"IF(ISBLANK('Info+Engagés'!G32),\"\",('Info+Engagés'!G32))","v":""},{"$f":"IF(OR(ISBLANK('Info+Engagés'!A32),ISBLANK('Info+Engagés'!H2)),\"\",('Cav21'!D36))","v":""},{"$f":"IF(OR(ISBLANK('Info+Engagés'!A32),ISBLANK('Info+Engagés'!H2)),\"\",RANK(D30,$D$10:$D$49))","v":""},{"$f":"IF(OR(ISBLANK('Info+Engagés'!A32),ISBLANK('Info+Engagés'!H3)),\"\",('Cav21'!E36))","v":""},{"$f":"IF(OR(ISBLANK('Info+Engagés'!A32),ISBLANK('Info+Engagés'!H3)),\"\",RANK(F30,$F$10:$F$49))","v":""},{"$f":"IF(OR(ISBLANK('Info+Engagés'!A32),ISBLANK('Info+Engagés'!H4)),\"\",('Cav21'!F36))","v":""},{"$f":"IF(OR(ISBLANK('Info+Engagés'!A32),ISBLANK('Info+Engagés'!H4)),\"\",RANK(H30,$H$10:$H$49))","v":""},{"$f":"IF(OR(ISBLANK('Info+Engagés'!A32),ISBLANK('Info+Engagés'!H5)),\"\",('Cav21'!G36))","v":""},{"$f":"IF(OR(ISBLANK('Info+Engagés'!A32),ISBLANK('Info+Engagés'!H5)),\"\",RANK(J30,$J$10:$J$49))","v":""},{"$f":"IF(OR(ISBLANK('Info+Engagés'!A32),ISBLANK('Info+Engagés'!H6)),\"\",('Cav21'!H36))","v":""},{"$f":"IF(OR(ISBLANK('Info+Engagés'!A32),ISBLANK('Info+Engagés'!H6)),\"\",RANK(L30,$L$10:$L$49))","v":""},{"$f":"IF(ISBLANK('Info+Engagés'!A32),\"\",('Cav21'!I4))","v":""},{"$f":"IF(ISBLANK('Info+Engagés'!A32),\"\",('Cav21'!I5))","v":""},{"$f":"IF(ISBLANK('Info+Engagés'!$A$32),\"\",IF(RANK(T30,$T$10:$T$49)<4,RANK(T30,$T$10:$T$49),RANK(O30,$O$10:$O$49)))","v":""},null,{"$f":"IF(ISBLANK('Info+Engagés'!A32),\"\",'Cav21'!I3)","v":""},"","",0,null,null,null,null,null,null,25,0]
[{"$f":"IF(ISBLANK('Info+Engagés'!A33),\"\",('Info+Engagés'!A33))","v":""},{"$f":"IF(ISBLANK('Info+Engagés'!B33),\"\",('Info+Engagés'!B33))","v":""},{"$f":"IF(ISBLANK('Info+Engagés'!G33),\"\",('Info+Engagés'!G33))","v":""},{"$f":"IF(OR(ISBLANK('Info+Engagés'!A33),ISBLANK('Info+Engagés'!H2)),\"\",('Cav22'!D36))","v":""},{"$f":"IF(OR(ISBLANK('Info+Engagés'!A33),ISBLANK('Info+Engagés'!H2)),\"\",RANK(D31,$D$10:$D$49))","v":""},{"$f":"IF(OR(ISBLANK('Info+Engagés'!A33),ISBLANK('Info+Engagés'!H3)),\"\",('Cav22'!E36))","v":""},{"$f":"IF(OR(ISBLANK('Info+Engagés'!A33),ISBLANK('Info+Engagés'!H3)),\"\",RANK(F31,$F$10:$F$49))","v":""},{"$f":"IF(OR(ISBLANK('Info+Engagés'!A33),ISBLANK('Info+Engagés'!H4)),\"\",('Cav22'!F36))","v":""},{"$f":"IF(OR(ISBLANK('Info+Engagés'!A33),ISBLANK('Info+Engagés'!H4)),\"\",RANK(H31,$H$10:$H$49))","v":""},{"$f":"IF(OR(ISBLANK('Info+Engagés'!A33),ISBLANK('Info+Engagés'!H5)),\"\",('Cav22'!G36))","v":""},{"$f":"IF(OR(ISBLANK('Info+Engagés'!A33),ISBLANK('Info+Engagés'!H5)),\"\",RANK(J31,$J$10:$J$49))","v":""},{"$f":"IF(OR(ISBLANK('Info+Engagés'!A33),ISBLANK('Info+Engagés'!H6)),\"\",('Cav22'!H36))","v":""},{"$f":"IF(OR(ISBLANK('Info+Engagés'!A33),ISBLANK('Info+Engagés'!H6)),\"\",RANK(L31,$L$10:$L$49))","v":""},{"$f":"IF(ISBLANK('Info+Engagés'!A33),\"\",('Cav22'!I4))","v":""},{"$f":"IF(ISBLANK('Info+Engagés'!A33),\"\",('Cav22'!I5))","v":""},{"$f":"IF(ISBLANK('Info+Engagés'!$A$33),\"\",IF(RANK(T31,$T$10:$T$49)<4,RANK(T31,$T$10:$T$49),RANK(O31,$O$10:$O$49)))","v":""},null,{"$f":"IF(ISBLANK('Info+Engagés'!A33),\"\",'Cav22'!I3)","v":""},"","",0,null,null,null,null,null,null,26,0]
[{"$f":"IF(ISBLANK('Info+Engagés'!A34),\"\",('Info+Engagés'!A34))","v":""},{"$f":"IF(ISBLANK('Info+Engagés'!B34),\"\",('Info+Engagés'!B34))","v":""},{"$f":"IF(ISBLANK('Info+Engagés'!G34),\"\",('Info+Engagés'!G34))","v":""},{"$f":"IF(OR(ISBLANK('Info+Engagés'!A34),ISBLANK('Info+Engagés'!H2)),\"\",('Cav23'!D36))","v":""},{"$f":"IF(OR(ISBLANK('Info+Engagés'!A34),ISBLANK('Info+Engagés'!H2)),\"\",RANK(D32,$D$10:$D$49))","v":""},{"$f":"IF(OR(ISBLANK('Info+Engagés'!A34),ISBLANK('Info+Engagés'!H3)),\"\",('Cav23'!E36))","v":""},{"$f":"IF(OR(ISBLANK('Info+Engagés'!A34),ISBLANK('Info+Engagés'!H3)),\"\",RANK(F32,$F$10:$F$49))","v":""},{"$f":"IF(OR(ISBLANK('Info+Engagés'!A34),ISBLANK('Info+Engagés'!H4)),\"\",('Cav23'!F36))","v":""},{"$f":"IF(OR(ISBLANK('Info+Engagés'!A34),ISBLANK('Info+Engagés'!H4)),\"\",RANK(H32,$H$10:$H$49))","v":""},{"$f":"IF(OR(ISBLANK('Info+Engagés'!A34),ISBLANK('Info+Engagés'!H5)),\"\",('Cav23'!G36))","v":""},{"$f":"IF(OR(ISBLANK('Info+Engagés'!A34),ISBLANK('Info+Engagés'!H5)),\"\",RANK(J32,$J$10:$J$49))","v":""},{"$f":"IF(OR(ISBLANK('Info+Engagés'!A34),ISBLANK('Info+Engagés'!H6)),\"\",('Cav23'!H36))","v":""},{"$f":"IF(OR(ISBLANK('Info+Engagés'!A34),ISBLANK('Info+Engagés'!H6)),\"\",RANK(L32,$L$10:$L$49))","v":""},{"$f":"IF(ISBLANK('Info+Engagés'!A34),\"\",('Cav23'!I4))","v":""},{"$f":"IF(ISBLANK('Info+Engagés'!A34),\"\",('Cav23'!I5))","v":""},{"$f":"IF(ISBLANK('Info+Engagés'!$A$34),\"\",IF(RANK(T32,$T$10:$T$49)<4,RANK(T32,$T$10:$T$49),RANK(O32,$O$10:$O$49)))","v":""},null,{"$f":"IF(ISBLANK('Info+Engagés'!A34),\"\",'Cav23'!I3)","v":""},"","",0,null,null,null,null,null,null,27,0]
[{"$f":"IF(ISBLANK('Info+Engagés'!A35),\"\",('Info+Engagés'!A35))","v":""},{"$f":"IF(ISBLANK('Info+Engagés'!B35),\"\",('Info+Engagés'!B35))","v":""},{"$f":"IF(ISBLANK('Info+Engagés'!G35),\"\",('Info+Engagés'!G35))","v":""},{"$f":"IF(OR(ISBLANK('Info+Engagés'!A35),ISBLANK('Info+Engagés'!H2)),\"\",('Cav24'!D36))","v":""},{"$f":"IF(OR(ISBLANK('Info+Engagés'!A35),ISBLANK('Info+Engagés'!H2)),\"\",RANK(D33,$D$10:$D$49))","v":""},{"$f":"IF(OR(ISBLANK('Info+Engagés'!A35),ISBLANK('Info+Engagés'!H3)),\"\",('Cav24'!E36))","v":""},{"$f":"IF(OR(ISBLANK('Info+Engagés'!A35),ISBLANK('Info+Engagés'!H3)),\"\",RANK(F33,$F$10:$F$49))","v":""},{"$f":"IF(OR(ISBLANK('Info+Engagés'!A35),ISBLANK('Info+Engagés'!H4)),\"\",('Cav24'!F36))","v":""},{"$f":"IF(OR(ISBLANK('Info+Engagés'!A35),ISBLANK('Info+Engagés'!H4)),\"\",RANK(H33,$H$10:$H$49))","v":""},{"$f":"IF(OR(ISBLANK('Info+Engagés'!A35),ISBLANK('Info+Engagés'!H5)),\"\",('Cav24'!G36))","v":""},{"$f":"IF(OR(ISBLANK('Info+Engagés'!A35),ISBLANK('Info+Engagés'!H5)),\"\",RANK(J33,$J$10:$J$49))","v":""},{"$f":"IF(OR(ISBLANK('Info+Engagés'!A35),ISBLANK('Info+Engagés'!H6)),\"\",('Cav24'!H36))","v":""},{"$f":"IF(OR(ISBLANK('Info+Engagés'!A35),ISBLANK('Info+Engagés'!H6)),\"\",RANK(L33,$L$10:$L$49))","v":""},{"$f":"IF(ISBLANK('Info+Engagés'!A35),\"\",('Cav24'!I4))","v":""},{"$f":"IF(ISBLANK('Info+Engagés'!A35),\"\",('Cav24'!I5))","v":""},{"$f":"IF(ISBLANK('Info+Engagés'!$A$35),\"\",IF(RANK(T33,$T$10:$T$49)<4,RANK(T33,$T$10:$T$49),RANK(O33,$O$10:$O$49)))","v":""},null,{"$f":"IF(ISBLANK('Info+Engagés'!A35),\"\",'Cav24'!I3)","v":""},"","",0,null,null,null,null,null,null,28,0]
[{"$f":"IF(ISBLANK('Info+Engagés'!A36),\"\",('Info+Engagés'!A36))","v":""},{"$f":"IF(ISBLANK('Info+Engagés'!B36),\"\",('Info+Engagés'!B36))","v":""},{"$f":"IF(ISBLANK('Info+Engagés'!G36),\"\",('Info+Engagés'!G36))","v":""},{"$f":"IF(OR(ISBLANK('Info+Engagés'!A36),ISBLANK('Info+Engagés'!H2)),\"\",('Cav25'!D36))","v":""},{"$f":"IF(OR(ISBLANK('Info+Engagés'!A36),ISBLANK('Info+Engagés'!H2)),\"\",RANK(D34,$D$10:$D$49))","v":""},{"$f":"IF(OR(ISBLANK('Info+Engagés'!A36),ISBLANK('Info+Engagés'!H3)),\"\",('Cav25'!E36))","v":""},{"$f":"IF(OR(ISBLANK('Info+Engagés'!A36),ISBLANK('Info+Engagés'!H3)),\"\",RANK(F34,$F$10:$F$49))","v":""},{"$f":"IF(OR(ISBLANK('Info+Engagés'!A36),ISBLANK('Info+Engagés'!H4)),\"\",('Cav25'!F36))","v":""},{"$f":"IF(OR(ISBLANK('Info+Engagés'!A36),ISBLANK('Info+Engagés'!H4)),\"\",RANK(H34,$H$10:$H$49))","v":""},{"$f":"IF(OR(ISBLANK('Info+Engagés'!A36),ISBLANK('Info+Engagés'!H5)),\"\",('Cav25'!G36))","v":""},{"$f":"IF(OR(ISBLANK('Info+Engagés'!A36),ISBLANK('Info+Engagés'!H5)),\"\",RANK(J34,$J$10:$J$49))","v":""},{"$f":"IF(OR(ISBLANK('Info+Engagés'!A36),ISBLANK('Info+Engagés'!H6)),\"\",('Cav25'!H36))","v":""},{"$f":"IF(OR(ISBLANK('Info+Engagés'!A36),ISBLANK('Info+Engagés'!H6)),\"\",RANK(L34,$L$10:$L$49))","v":""},{"$f":"IF(ISBLANK('Info+Engagés'!A36),\"\",('Cav25'!I4))","v":""},{"$f":"IF(ISBLANK('Info+Engagés'!A36),\"\",('Cav25'!I5))","v":""},{"$f":"IF(ISBLANK('Info+Engagés'!$A$36),\"\",IF(RANK(T34,$T$10:$T$49)<4,RANK(T34,$T$10:$T$49),RANK(O34,$O$10:$O$49)))","v":""},null,{"$f":"IF(ISBLANK('Info+Engagés'!A36),\"\",'Cav25'!I3)","v":""},"","",0,null,null,null,null,null,null,29,0]
[{"$f":"IF(ISBLANK('Info+Engagés'!A37),\"\",('Info+Engagés'!A37))","v":""},{"$f":"IF(ISBLANK('Info+Engagés'!B37),\"\",('Info+Engagés'!B37))","v":""},{"$f":"IF(ISBLANK('Info+Engagés'!G37),\"\",('Info+Engagés'!G37))","v":""},{"$f":"IF(OR(ISBLANK('Info+Engagés'!A37),ISBLANK('Info+Engagés'!H2)),\"\",('Cav26'!D36))","v":""},{"$f":"IF(OR(ISBLANK('Info+Engagés'!A37),ISBLANK('Info+Engagés'!H2)),\"\",RANK(D35,$D$10:$D$49))","v":""},{"$f":"IF(OR(ISBLANK('Info+Engagés'!A37),ISBLANK('Info+Engagés'!H3)),\"\",('Cav26'!E36))","v":""},{"$f":"IF(OR(ISBLANK('Info+Engagés'!A37),ISBLANK('Info+Engagés'!H3)),\"\",RANK(F35,$F$10:$F$49))","v":""},{"$f":"IF(OR(ISBLANK('Info+Engagés'!A37),ISBLANK('Info+Engagés'!H4)),\"\",('Cav26'!F36))","v":""},{"$f":"IF(OR(ISBLANK('Info+Engagés'!A37),ISBLANK('Info+Engagés'!H4)),\"\",RANK(H35,$H$10:$H$49))","v":""},{"$f":"IF(OR(ISBLANK('Info+Engagés'!A37),ISBLANK('Info+Engagés'!H5)),\"\",('Cav26'!G36))","v":""},{"$f":"IF(OR(ISBLANK('Info+Engagés'!A37),ISBLANK('Info+Engagés'!H5)),\"\",RANK(J35,$J$10:$J$49))","v":""},{"$f":"IF(OR(ISBLANK('Info+Engagés'!A37),ISBLANK('Info+Engagés'!H6)),\"\",('Cav26'!H36))","v":""},{"$f":"IF(OR(ISBLANK('Info+Engagés'!A37),ISBLANK('Info+Engagés'!H6)),\"\",RANK(L35,$L$10:$L$49))","v":""},{"$f":"IF(ISBLANK('Info+Engagés'!A37),\"\",('Cav26'!I4))","v":""},{"$f":"IF(ISBLANK('Info+Engagés'!A37),\"\",('Cav26'!I5))","v":""},{"$f":"IF(ISBLANK('Info+Engagés'!$A$37),\"\",IF(RANK(T35,$T$10:$T$49)<4,RANK(T35,$T$10:$T$49),RANK(O35,$O$10:$O$49)))","v":""},null,{"$f":"IF(ISBLANK('Info+Engagés'!A37),\"\",'Cav26'!I3)","v":""},"","",0,null,null,null,null,null,null,30,0]
[{"$f":"IF(ISBLANK('Info+Engagés'!A38),\"\",('Info+Engagés'!A38))","v":""},{"$f":"IF(ISBLANK('Info+Engagés'!B38),\"\",('Info+Engagés'!B38))","v":""},{"$f":"IF(ISBLANK('Info+Engagés'!G38),\"\",('Info+Engagés'!G38))","v":""},{"$f":"IF(OR(ISBLANK('Info+Engagés'!A38),ISBLANK('Info+Engagés'!H2)),\"\",('Cav27'!D36))","v":""},{"$f":"IF(OR(ISBLANK('Info+Engagés'!A38),ISBLANK('Info+Engagés'!H2)),\"\",RANK(D36,$D$10:$D$49))","v":""},{"$f":"IF(OR(ISBLANK('Info+Engagés'!A38),ISBLANK('Info+Engagés'!H3)),\"\",('Cav27'!E36))","v":""},{"$f":"IF(OR(ISBLANK('Info+Engagés'!A38),ISBLANK('Info+Engagés'!H3)),\"\",RANK(F36,$F$10:$F$49))","v":""},{"$f":"IF(OR(ISBLANK('Info+Engagés'!A38),ISBLANK('Info+Engagés'!H4)),\"\",('Cav27'!F36))","v":""},{"$f":"IF(OR(ISBLANK('Info+Engagés'!A38),ISBLANK('Info+Engagés'!H4)),\"\",RANK(H36,$H$10:$H$49))","v":""},{"$f":"IF(OR(ISBLANK('Info+Engagés'!A38),ISBLANK('Info+Engagés'!H5)),\"\",('Cav27'!G36))","v":""},{"$f":"IF(OR(ISBLANK('Info+Engagés'!A38),ISBLANK('Info+Engagés'!H5)),\"\",RANK(J36,$J$10:$J$49))","v":""},{"$f":"IF(OR(ISBLANK('Info+Engagés'!A38),ISBLANK('Info+Engagés'!H6)),\"\",('Cav27'!H36))","v":""},{"$f":"IF(OR(ISBLANK('Info+Engagés'!A38),ISBLANK('Info+Engagés'!H6)),\"\",RANK(L36,$L$10:$L$49))","v":""},{"$f":"IF(ISBLANK('Info+Engagés'!A38),\"\",('Cav27'!I4))","v":""},{"$f":"IF(ISBLANK('Info+Engagés'!A38),\"\",('Cav27'!I5))","v":""},{"$f":"IF(ISBLANK('Info+Engagés'!$A$38),\"\",IF(RANK(T36,$T$10:$T$49)<4,RANK(T36,$T$10:$T$49),RANK(O36,$O$10:$O$49)))","v":""},null,{"$f":"IF(ISBLANK('Info+Engagés'!A38),\"\",'Cav27'!I3)","v":""},"","",0,null,null,null,null,null,null,31,0]
[{"$f":"IF(ISBLANK('Info+Engagés'!A39),\"\",('Info+Engagés'!A39))","v":""},{"$f":"IF(ISBLANK('Info+Engagés'!B39),\"\",('Info+Engagés'!B39))","v":""},{"$f":"IF(ISBLANK('Info+Engagés'!G39),\"\",('Info+Engagés'!G39))","v":""},{"$f":"IF(OR(ISBLANK('Info+Engagés'!A39),ISBLANK('Info+Engagés'!H2)),\"\",('Cav28'!D36))","v":""},{"$f":"IF(OR(ISBLANK('Info+Engagés'!A39),ISBLANK('Info+Engagés'!H2)),\"\",RANK(D37,$D$10:$D$49))","v":""},{"$f":"IF(OR(ISBLANK('Info+Engagés'!A39),ISBLANK('Info+Engagés'!H3)),\"\",('Cav28'!E36))","v":""},{"$f":"IF(OR(ISBLANK('Info+Engagés'!A39),ISBLANK('Info+Engagés'!H3)),\"\",RANK(F37,$F$10:$F$49))","v":""},{"$f":"IF(OR(ISBLANK('Info+Engagés'!A39),ISBLANK('Info+Engagés'!H4)),\"\",('Cav28'!F36))","v":""},{"$f":"IF(OR(ISBLANK('Info+Engagés'!A39),ISBLANK('Info+Engagés'!H4)),\"\",RANK(H37,$H$10:$H$49))","v":""},{"$f":"IF(OR(ISBLANK('Info+Engagés'!A39),ISBLANK('Info+Engagés'!H5)),\"\",('Cav28'!G36))","v":""},{"$f":"IF(OR(ISBLANK('Info+Engagés'!A39),ISBLANK('Info+Engagés'!H5)),\"\",RANK(J37,$J$10:$J$49))","v":""},{"$f":"IF(OR(ISBLANK('Info+Engagés'!A39),ISBLANK('Info+Engagés'!H6)),\"\",('Cav28'!H36))","v":""},{"$f":"IF(OR(ISBLANK('Info+Engagés'!A39),ISBLANK('Info+Engagés'!H6)),\"\",RANK(L37,$L$10:$L$49))","v":""},{"$f":"IF(ISBLANK('Info+Engagés'!A39),\"\",('Cav28'!I4))","v":""},{"$f":"IF(ISBLANK('Info+Engagés'!A39),\"\",('Cav28'!I5))","v":""},{"$f":"IF(ISBLANK('Info+Engagés'!$A$39),\"\",IF(RANK(T37,$T$10:$T$49)<4,RANK(T37,$T$10:$T$49),RANK(O37,$O$10:$O$49)))","v":""},null,{"$f":"IF(ISBLANK('Info+Engagés'!A39),\"\",'Cav28'!I3)","v":""},"","",0,null,null,null,null,null,null,32,0]
[{"$f":"IF(ISBLANK('Info+Engagés'!A40),\"\",('Info+Engagés'!A40))","v":""},{"$f":"IF(ISBLANK('Info+Engagés'!B40),\"\",('Info+Engagés'!B40))","v":""},{"$f":"IF(ISBLANK('Info+Engagés'!G40),\"\",('Info+Engagés'!G40))","v":""},{"$f":"IF(OR(ISBLANK('Info+Engagés'!A40),ISBLANK('Info+Engagés'!H2)),\"\",('Cav29'!D36))","v":""},{"$f":"IF(OR(ISBLANK('Info+Engagés'!A40),ISBLANK('Info+Engagés'!H2)),\"\",RANK(D38,$D$10:$D$49))","v":""},{"$f":"IF(OR(ISBLANK('Info+Engagés'!A40),ISBLANK('Info+Engagés'!H3)),\"\",('Cav29'!E36))","v":""},{"$f":"IF(OR(ISBLANK('Info+Engagés'!A40),ISBLANK('Info+Engagés'!H3)),\"\",RANK(F38,$F$10:$F$49))","v":""},{"$f":"IF(OR(ISBLANK('Info+Engagés'!A40),ISBLANK('Info+Engagés'!H4)),\"\",('Cav29'!F36))","v":""},{"$f":"IF(OR(ISBLANK('Info+Engagés'!A40),ISBLANK('Info+Engagés'!H4)),\"\",RANK(H38,$H$10:$H$49))","v":""},{"$f":"IF(OR(ISBLANK('Info+Engagés'!A40),ISBLANK('Info+Engagés'!H5)),\"\",('Cav29'!G36))","v":""},{"$f":"IF(OR(ISBLANK('Info+Engagés'!A40),ISBLANK('Info+Engagés'!H5)),\"\",RANK(J38,$J$10:$J$49))","v":""},{"$f":"IF(OR(ISBLANK('Info+Engagés'!A40),ISBLANK('Info+Engagés'!H6)),\"\",('Cav29'!H36))","v":""},{"$f":"IF(OR(ISBLANK('Info+Engagés'!A40),ISBLANK('Info+Engagés'!H6)),\"\",RANK(L38,$L$10:$L$49))","v":""},{"$f":"IF(ISBLANK('Info+Engagés'!A40),\"\",('Cav29'!I4))","v":""},{"$f":"IF(ISBLANK('Info+Engagés'!A40),\"\",('Cav29'!I5))","v":""},{"$f":"IF(ISBLANK('Info+Engagés'!$A$40),\"\",IF(RANK(T38,$T$10:$T$49)<4,RANK(T38,$T$10:$T$49),RANK(O38,$O$10:$O$49)))","v":""},null,{"$f":"IF(ISBLANK('Info+Engagés'!A40),\"\",'Cav29'!I3)","v":""},"","",0,null,null,null,null,null,null,33,0]
[{"$f":"IF(ISBLANK('Info+Engagés'!A41),\"\",('Info+Engagés'!A41))","v":""},{"$f":"IF(ISBLANK('Info+Engagés'!B41),\"\",('Info+Engagés'!B41))","v":""},{"$f":"IF(ISBLANK('Info+Engagés'!G41),\"\",('Info+Engagés'!G41))","v":""},{"$f":"IF(OR(ISBLANK('Info+Engagés'!A41),ISBLANK('Info+Engagés'!H2)),\"\",('Cav30'!D36))","v":""},{"$f":"IF(OR(ISBLANK('Info+Engagés'!A41),ISBLANK('Info+Engagés'!H2)),\"\",RANK(D39,$D$10:$D$49))","v":""},{"$f":"IF(OR(ISBLANK('Info+Engagés'!A41),ISBLANK('Info+Engagés'!H3)),\"\",('Cav30'!E36))","v":""},{"$f":"IF(OR(ISBLANK('Info+Engagés'!A41),ISBLANK('Info+Engagés'!H3)),\"\",RANK(F39,$F$10:$F$49))","v":""},{"$f":"IF(OR(ISBLANK('Info+Engagés'!A41),ISBLANK('Info+Engagés'!H4)),\"\",('Cav30'!F36))","v":""},{"$f":"IF(OR(ISBLANK('Info+Engagés'!A41),ISBLANK('Info+Engagés'!H4)),\"\",RANK(H39,$H$10:$H$49))","v":""},{"$f":"IF(OR(ISBLANK('Info+Engagés'!A41),ISBLANK('Info+Engagés'!H5)),\"\",('Cav30'!G36))","v":""},{"$f":"IF(OR(ISBLANK('Info+Engagés'!A41),ISBLANK('Info+Engagés'!H5)),\"\",RANK(J39,$J$10:$J$49))","v":""},{"$f":"IF(OR(ISBLANK('Info+Engagés'!A41),ISBLANK('Info+Engagés'!H6)),\"\",('Cav30'!H36))","v":""},{"$f":"IF(OR(ISBLANK('Info+Engagés'!A41),ISBLANK('Info+Engagés'!H6)),\"\",RANK(L39,$L$10:$L$49))","v":""},{"$f":"IF(ISBLANK('Info+Engagés'!A41),\"\",('Cav30'!I4))","v":""},{"$f":"IF(ISBLANK('Info+Engagés'!A41),\"\",('Cav30'!I5))","v":""},{"$f":"IF(ISBLANK('Info+Engagés'!$A$41),\"\",IF(RANK(T39,$T$10:$T$49)<4,RANK(T39,$T$10:$T$49),RANK(O39,$O$10:$O$49)))","v":""},null,{"$f":"IF(ISBLANK('Info+Engagés'!A41),\"\",'Cav30'!I3)","v":""},"","",0,null,null,null,null,null,null,34,0]
[{"$f":"IF(ISBLANK('Info+Engagés'!A42),\"\",('Info+Engagés'!A42))","v":""},{"$f":"IF(ISBLANK('Info+Engagés'!B42),\"\",('Info+Engagés'!B42))","v":""},{"$f":"IF(ISBLANK('Info+Engagés'!G42),\"\",('Info+Engagés'!G42))","v":""},{"$f":"IF(OR(ISBLANK('Info+Engagés'!A42),ISBLANK('Info+Engagés'!H2)),\"\",('Cav31'!D36))","v":""},{"$f":"IF(OR(ISBLANK('Info+Engagés'!A42),ISBLANK('Info+Engagés'!H2)),\"\",RANK(D40,$D$10:$D$49))","v":""},{"$f":"IF(OR(ISBLANK('Info+Engagés'!A42),ISBLANK('Info+Engagés'!H3)),\"\",('Cav31'!E36))","v":""},{"$f":"IF(OR(ISBLANK('Info+Engagés'!A42),ISBLANK('Info+Engagés'!H3)),\"\",RANK(F40,$F$10:$F$49))","v":""},{"$f":"IF(OR(ISBLANK('Info+Engagés'!A42),ISBLANK('Info+Engagés'!H4)),\"\",('Cav31'!F36))","v":""},{"$f":"IF(OR(ISBLANK('Info+Engagés'!A42),ISBLANK('Info+Engagés'!H4)),\"\",RANK(H40,$H$10:$H$49))","v":""},{"$f":"IF(OR(ISBLANK('Info+Engagés'!A42),ISBLANK('Info+Engagés'!H5)),\"\",('Cav31'!G36))","v":""},{"$f":"IF(OR(ISBLANK('Info+Engagés'!A42),ISBLANK('Info+Engagés'!H5)),\"\",RANK(J40,$J$10:$J$49))","v":""},{"$f":"IF(OR(ISBLANK('Info+Engagés'!A42),ISBLANK('Info+Engagés'!H6)),\"\",('Cav31'!H36))","v":""},{"$f":"IF(OR(ISBLANK('Info+Engagés'!A42),ISBLANK('Info+Engagés'!H6)),\"\",RANK(L40,$L$10:$L$49))","v":""},{"$f":"IF(ISBLANK('Info+Engagés'!A42),\"\",('Cav31'!I4))","v":""},{"$f":"IF(ISBLANK('Info+Engagés'!A42),\"\",('Cav31'!I5))","v":""},{"$f":"IF(ISBLANK('Info+Engagés'!$A$42),\"\",IF(RANK(T40,$T$10:$T$49)<4,RANK(T40,$T$10:$T$49),RANK(O40,$O$10:$O$49)))","v":""},null,{"$f":"IF(ISBLANK('Info+Engagés'!A42),\"\",'Cav31'!I3)","v":""},"","",0,null,null,null,null,null,null,35,0]
[{"$f":"IF(ISBLANK('Info+Engagés'!A43),\"\",('Info+Engagés'!A43))","v":""},{"$f":"IF(ISBLANK('Info+Engagés'!B43),\"\",('Info+Engagés'!B43))","v":""},{"$f":"IF(ISBLANK('Info+Engagés'!G43),\"\",('Info+Engagés'!G43))","v":""},{"$f":"IF(OR(ISBLANK('Info+Engagés'!A43),ISBLANK('Info+Engagés'!H2)),\"\",('Cav32'!D36))","v":""},{"$f":"IF(OR(ISBLANK('Info+Engagés'!A43),ISBLANK('Info+Engagés'!H2)),\"\",RANK(D41,$D$10:$D$49))","v":""},{"$f":"IF(OR(ISBLANK('Info+Engagés'!A43),ISBLANK('Info+Engagés'!H3)),\"\",('Cav32'!E36))","v":""},{"$f":"IF(OR(ISBLANK('Info+Engagés'!A43),ISBLANK('Info+Engagés'!H3)),\"\",RANK(F41,$F$10:$F$49))","v":""},{"$f":"IF(OR(ISBLANK('Info+Engagés'!A43),ISBLANK('Info+Engagés'!H4)),\"\",('Cav32'!F36))","v":""},{"$f":"IF(OR(ISBLANK('Info+Engagés'!A43),ISBLANK('Info+Engagés'!H4)),\"\",RANK(H41,$H$10:$H$49))","v":""},{"$f":"IF(OR(ISBLANK('Info+Engagés'!A43),ISBLANK('Info+Engagés'!H5)),\"\",('Cav32'!G36))","v":""},{"$f":"IF(OR(ISBLANK('Info+Engagés'!A43),ISBLANK('Info+Engagés'!H5)),\"\",RANK(J41,$J$10:$J$49))","v":""},{"$f":"IF(OR(ISBLANK('Info+Engagés'!A43),ISBLANK('Info+Engagés'!H6)),\"\",('Cav32'!H36))","v":""},{"$f":"IF(OR(ISBLANK('Info+Engagés'!A43),ISBLANK('Info+Engagés'!H6)),\"\",RANK(L41,$L$10:$L$49))","v":""},{"$f":"IF(ISBLANK('Info+Engagés'!A43),\"\",('Cav32'!I4))","v":""},{"$f":"IF(ISBLANK('Info+Engagés'!A43),\"\",('Cav32'!I5))","v":""},{"$f":"IF(ISBLANK('Info+Engagés'!$A$43),\"\",IF(RANK(T41,$T$10:$T$49)<4,RANK(T41,$T$10:$T$49),RANK(O41,$O$10:$O$49)))","v":""},null,{"$f":"IF(ISBLANK('Info+Engagés'!A43),\"\",'Cav32'!I3)","v":""},"","",0,null,null,null,null,null,null,36,0]
[{"$f":"IF(ISBLANK('Info+Engagés'!A44),\"\",('Info+Engagés'!A44))","v":""},{"$f":"IF(ISBLANK('Info+Engagés'!B44),\"\",('Info+Engagés'!B44))","v":""},{"$f":"IF(ISBLANK('Info+Engagés'!G44),\"\",('Info+Engagés'!G44))","v":""},{"$f":"IF(OR(ISBLANK('Info+Engagés'!A44),ISBLANK('Info+Engagés'!H2)),\"\",('Cav33'!D36))","v":""},{"$f":"IF(OR(ISBLANK('Info+Engagés'!A44),ISBLANK('Info+Engagés'!H2)),\"\",RANK(D42,$D$10:$D$49))","v":""},{"$f":"IF(OR(ISBLANK('Info+Engagés'!A44),ISBLANK('Info+Engagés'!H3)),\"\",('Cav33'!E36))","v":""},{"$f":"IF(OR(ISBLANK('Info+Engagés'!A44),ISBLANK('Info+Engagés'!H3)),\"\",RANK(F42,$F$10:$F$49))","v":""},{"$f":"IF(OR(ISBLANK('Info+Engagés'!A44),ISBLANK('Info+Engagés'!H4)),\"\",('Cav33'!F36))","v":""},{"$f":"IF(OR(ISBLANK('Info+Engagés'!A44),ISBLANK('Info+Engagés'!H4)),\"\",RANK(H42,$H$10:$H$49))","v":""},{"$f":"IF(OR(ISBLANK('Info+Engagés'!A44),ISBLANK('Info+Engagés'!H5)),\"\",('Cav33'!G36))","v":""},{"$f":"IF(OR(ISBLANK('Info+Engagés'!A44),ISBLANK('Info+Engagés'!H5)),\"\",RANK(J42,$J$10:$J$49))","v":""},{"$f":"IF(OR(ISBLANK('Info+Engagés'!A44),ISBLANK('Info+Engagés'!H6)),\"\",('Cav33'!H36))","v":""},{"$f":"IF(OR(ISBLANK('Info+Engagés'!A44),ISBLANK('Info+Engagés'!H6)),\"\",RANK(L42,$L$10:$L$49))","v":""},{"$f":"IF(ISBLANK('Info+Engagés'!A44),\"\",('Cav33'!I4))","v":""},{"$f":"IF(ISBLANK('Info+Engagés'!A44),\"\",('Cav33'!I5))","v":""},{"$f":"IF(ISBLANK('Info+Engagés'!$A$44),\"\",IF(RANK(T42,$T$10:$T$49)<4,RANK(T42,$T$10:$T$49),RANK(O42,$O$10:$O$49)))","v":""},null,{"$f":"IF(ISBLANK('Info+Engagés'!A44),\"\",'Cav33'!I3)","v":""},"","",0,null,null,null,null,null,null,37,0]
[{"$f":"IF(ISBLANK('Info+Engagés'!A45),\"\",('Info+Engagés'!A45))","v":""},{"$f":"IF(ISBLANK('Info+Engagés'!B45),\"\",('Info+Engagés'!B45))","v":""},{"$f":"IF(ISBLANK('Info+Engagés'!G45),\"\",('Info+Engagés'!G45))","v":""},{"$f":"IF(OR(ISBLANK('Info+Engagés'!A45),ISBLANK('Info+Engagés'!H2)),\"\",('Cav34'!D36))","v":""},{"$f":"IF(OR(ISBLANK('Info+Engagés'!A45),ISBLANK('Info+Engagés'!H2)),\"\",RANK(D43,$D$10:$D$49))","v":""},{"$f":"IF(OR(ISBLANK('Info+Engagés'!A45),ISBLANK('Info+Engagés'!H3)),\"\",('Cav34'!E36))","v":""},{"$f":"IF(OR(ISBLANK('Info+Engagés'!A45),ISBLANK('Info+Engagés'!H3)),\"\",RANK(F43,$F$10:$F$49))","v":""},{"$f":"IF(OR(ISBLANK('Info+Engagés'!A45),ISBLANK('Info+Engagés'!H4)),\"\",('Cav34'!F36))","v":""},{"$f":"IF(OR(ISBLANK('Info+Engagés'!A45),ISBLANK('Info+Engagés'!H4)),\"\",RANK(H43,$H$10:$H$49))","v":""},{"$f":"IF(OR(ISBLANK('Info+Engagés'!A45),ISBLANK('Info+Engagés'!H5)),\"\",('Cav34'!G36))","v":""},{"$f":"IF(OR(ISBLANK('Info+Engagés'!A45),ISBLANK('Info+Engagés'!H5)),\"\",RANK(J43,$J$10:$J$49))","v":""},{"$f":"IF(OR(ISBLANK('Info+Engagés'!A45),ISBLANK('Info+Engagés'!H6)),\"\",('Cav34'!H36))","v":""},{"$f":"IF(OR(ISBLANK('Info+Engagés'!A45),ISBLANK('Info+Engagés'!H6)),\"\",RANK(L43,$L$10:$L$49))","v":""},{"$f":"IF(ISBLANK('Info+Engagés'!A45),\"\",('Cav34'!I4))","v":""},{"$f":"IF(ISBLANK('Info+Engagés'!A45),\"\",('Cav34'!I5))","v":""},{"$f":"IF(ISBLANK('Info+Engagés'!$A$45),\"\",IF(RANK(T43,$T$10:$T$49)<4,RANK(T43,$T$10:$T$49),RANK(O43,$O$10:$O$49)))","v":""},null,{"$f":"IF(ISBLANK('Info+Engagés'!A45),\"\",'Cav34'!I3)","v":""},"","",0,null,null,null,null,null,null,38,0]
[{"$f":"IF(ISBLANK('Info+Engagés'!A46),\"\",('Info+Engagés'!A46))","v":""},{"$f":"IF(ISBLANK('Info+Engagés'!B46),\"\",('Info+Engagés'!B46))","v":""},{"$f":"IF(ISBLANK('Info+Engagés'!G46),\"\",('Info+Engagés'!G46))","v":""},{"$f":"IF(OR(ISBLANK('Info+Engagés'!A46),ISBLANK('Info+Engagés'!H2)),\"\",('Cav35'!D36))","v":""},{"$f":"IF(OR(ISBLANK('Info+Engagés'!A46),ISBLANK('Info+Engagés'!H2)),\"\",RANK(D44,$D$10:$D$49))","v":""},{"$f":"IF(OR(ISBLANK('Info+Engagés'!A46),ISBLANK('Info+Engagés'!H3)),\"\",('Cav35'!E36))","v":""},{"$f":"IF(OR(ISBLANK('Info+Engagés'!A46),ISBLANK('Info+Engagés'!H3)),\"\",RANK(F44,$F$10:$F$49))","v":""},{"$f":"IF(OR(ISBLANK('Info+Engagés'!A46),ISBLANK('Info+Engagés'!H4)),\"\",('Cav35'!F36))","v":""},{"$f":"IF(OR(ISBLANK('Info+Engagés'!A46),ISBLANK('Info+Engagés'!H4)),\"\",RANK(H44,$H$10:$H$49))","v":""},{"$f":"IF(OR(ISBLANK('Info+Engagés'!A46),ISBLANK('Info+Engagés'!H5)),\"\",('Cav35'!G36))","v":""},{"$f":"IF(OR(ISBLANK('Info+Engagés'!A46),ISBLANK('Info+Engagés'!H5)),\"\",RANK(J44,$J$10:$J$49))","v":""},{"$f":"IF(OR(ISBLANK('Info+Engagés'!A46),ISBLANK('Info+Engagés'!H6)),\"\",('Cav35'!H36))","v":""},{"$f":"IF(OR(ISBLANK('Info+Engagés'!A46),ISBLANK('Info+Engagés'!H6)),\"\",RANK(L44,$L$10:$L$49))","v":""},{"$f":"IF(ISBLANK('Info+Engagés'!A46),\"\",('Cav35'!I4))","v":""},{"$f":"IF(ISBLANK('Info+Engagés'!A46),\"\",('Cav35'!I5))","v":""},{"$f":"IF(ISBLANK('Info+Engagés'!$A$46),\"\",IF(RANK(T44,$T$10:$T$49)<4,RANK(T44,$T$10:$T$49),RANK(O44,$O$10:$O$49)))","v":""},null,{"$f":"IF(ISBLANK('Info+Engagés'!A46),\"\",'Cav35'!I3)","v":""},"","",0,null,null,null,null,null,null,39,0]
[{"$f":"IF(ISBLANK('Info+Engagés'!A47),\"\",('Info+Engagés'!A47))","v":""},{"$f":"IF(ISBLANK('Info+Engagés'!B47),\"\",('Info+Engagés'!B47))","v":""},{"$f":"IF(ISBLANK('Info+Engagés'!G47),\"\",('Info+Engagés'!G47))","v":""},{"$f":"IF(OR(ISBLANK('Info+Engagés'!A46),ISBLANK('Info+Engagés'!H2)),\"\",('Cav36'!D36))","v":""},{"$f":"IF(OR(ISBLANK('Info+Engagés'!A47),ISBLANK('Info+Engagés'!H2)),\"\",RANK(D45,$D$10:$D$49))","v":""},{"$f":"IF(OR(ISBLANK('Info+Engagés'!A47),ISBLANK('Info+Engagés'!H3)),\"\",('Cav36'!E36))","v":""},{"$f":"IF(OR(ISBLANK('Info+Engagés'!A47),ISBLANK('Info+Engagés'!H3)),\"\",RANK(F45,$F$10:$F$49))","v":""},{"$f":"IF(OR(ISBLANK('Info+Engagés'!A47),ISBLANK('Info+Engagés'!H4)),\"\",('Cav36'!F36))","v":""},{"$f":"IF(OR(ISBLANK('Info+Engagés'!A47),ISBLANK('Info+Engagés'!H4)),\"\",RANK(H45,$H$10:$H$49))","v":""},{"$f":"IF(OR(ISBLANK('Info+Engagés'!A47),ISBLANK('Info+Engagés'!H5)),\"\",('Cav36'!G36))","v":""},{"$f":"IF(OR(ISBLANK('Info+Engagés'!A47),ISBLANK('Info+Engagés'!H5)),\"\",RANK(J45,$J$10:$J$49))","v":""},{"$f":"IF(OR(ISBLANK('Info+Engagés'!A47),ISBLANK('Info+Engagés'!H6)),\"\",('Cav36'!H36))","v":""},{"$f":"IF(OR(ISBLANK('Info+Engagés'!A47),ISBLANK('Info+Engagés'!H6)),\"\",RANK(L45,$L$10:$L$49))","v":""},{"$f":"IF(ISBLANK('Info+Engagés'!A47),\"\",('Cav36'!I4))","v":""},{"$f":"IF(ISBLANK('Info+Engagés'!A47),\"\",('Cav36'!I5))","v":""},{"$f":"IF(ISBLANK('Info+Engagés'!$A$47),\"\",IF(RANK(T45,$T$10:$T$49)<4,RANK(T45,$T$10:$T$49),RANK(O45,$O$10:$O$49)))","v":""},null,{"$f":"IF(ISBLANK('Info+Engagés'!A47),\"\",'Cav36'!I3)","v":""},"","",0,null,null,null,null,null,null,40,0]
[{"$f":"IF(ISBLANK('Info+Engagés'!A48),\"\",('Info+Engagés'!A48))","v":""},{"$f":"IF(ISBLANK('Info+Engagés'!B48),\"\",('Info+Engagés'!B48))","v":""},{"$f":"IF(ISBLANK('Info+Engagés'!G48),\"\",('Info+Engagés'!G48))","v":""},{"$f":"IF(OR(ISBLANK('Info+Engagés'!A48),ISBLANK('Info+Engagés'!H2)),\"\",('Cav37'!D36))","v":""},{"$f":"IF(OR(ISBLANK('Info+Engagés'!A48),ISBLANK('Info+Engagés'!H2)),\"\",RANK(D46,$D$10:$D$49))","v":""},{"$f":"IF(OR(ISBLANK('Info+Engagés'!A48),ISBLANK('Info+Engagés'!H3)),\"\",('Cav37'!E36))","v":""},{"$f":"IF(OR(ISBLANK('Info+Engagés'!A48),ISBLANK('Info+Engagés'!H3)),\"\",RANK(F46,$F$10:$F$49))","v":""},{"$f":"IF(OR(ISBLANK('Info+Engagés'!A48),ISBLANK('Info+Engagés'!H4)),\"\",('Cav37'!F36))","v":""},{"$f":"IF(OR(ISBLANK('Info+Engagés'!A48),ISBLANK('Info+Engagés'!H4)),\"\",RANK(H46,$H$10:$H$49))","v":""},{"$f":"IF(OR(ISBLANK('Info+Engagés'!A48),ISBLANK('Info+Engagés'!H5)),\"\",('Cav37'!G36))","v":""},{"$f":"IF(OR(ISBLANK('Info+Engagés'!A48),ISBLANK('Info+Engagés'!H5)),\"\",RANK(J46,$J$10:$J$49))","v":""},{"$f":"IF(OR(ISBLANK('Info+Engagés'!A48),ISBLANK('Info+Engagés'!H6)),\"\",('Cav37'!H36))","v":""},{"$f":"IF(OR(ISBLANK('Info+Engagés'!A48),ISBLANK('Info+Engagés'!H6)),\"\",RANK(L46,$L$10:$L$49))","v":""},{"$f":"IF(ISBLANK('Info+Engagés'!A48),\"\",('Cav37'!I4))","v":""},{"$f":"IF(ISBLANK('Info+Engagés'!A48),\"\",('Cav37'!I5))","v":""},{"$f":"IF(ISBLANK('Info+Engagés'!$A$48),\"\",IF(RANK(T46,$T$10:$T$49)<4,RANK(T46,$T$10:$T$49),RANK(O46,$O$10:$O$49)))","v":""},null,{"$f":"IF(ISBLANK('Info+Engagés'!A48),\"\",'Cav37'!I3)","v":""},"","",0,null,null,null,null,null,null,41,0]
[{"$f":"IF(ISBLANK('Info+Engagés'!A49),\"\",('Info+Engagés'!A49))","v":""},{"$f":"IF(ISBLANK('Info+Engagés'!B49),\"\",('Info+Engagés'!B49))","v":""},{"$f":"IF(ISBLANK('Info+Engagés'!G49),\"\",('Info+Engagés'!G49))","v":""},{"$f":"IF(OR(ISBLANK('Info+Engagés'!A49),ISBLANK('Info+Engagés'!H2)),\"\",('Cav38'!D36))","v":""},{"$f":"IF(OR(ISBLANK('Info+Engagés'!A49),ISBLANK('Info+Engagés'!H2)),\"\",RANK(D47,$D$10:$D$49))","v":""},{"$f":"IF(OR(ISBLANK('Info+Engagés'!A49),ISBLANK('Info+Engagés'!H3)),\"\",('Cav38'!E36))","v":""},{"$f":"IF(OR(ISBLANK('Info+Engagés'!A49),ISBLANK('Info+Engagés'!H3)),\"\",RANK(F47,$F$10:$F$49))","v":""},{"$f":"IF(OR(ISBLANK('Info+Engagés'!A49),ISBLANK('Info+Engagés'!H4)),\"\",('Cav38'!F36))","v":""},{"$f":"IF(OR(ISBLANK('Info+Engagés'!A49),ISBLANK('Info+Engagés'!H4)),\"\",RANK(H47,$H$10:$H$49))","v":""},{"$f":"IF(OR(ISBLANK('Info+Engagés'!A49),ISBLANK('Info+Engagés'!H5)),\"\",('Cav38'!G36))","v":""},{"$f":"IF(OR(ISBLANK('Info+Engagés'!A49),ISBLANK('Info+Engagés'!H5)),\"\",RANK(J47,$J$10:$J$49))","v":""},{"$f":"IF(OR(ISBLANK('Info+Engagés'!A49),ISBLANK('Info+Engagés'!H6)),\"\",('Cav38'!H36))","v":""},{"$f":"IF(OR(ISBLANK('Info+Engagés'!A49),ISBLANK('Info+Engagés'!H6)),\"\",RANK(L47,$L$10:$L$49))","v":""},{"$f":"IF(ISBLANK('Info+Engagés'!A49),\"\",('Cav38'!I4))","v":""},{"$f":"IF(ISBLANK('Info+Engagés'!A49),\"\",('Cav38'!I5))","v":""},{"$f":"IF(ISBLANK('Info+Engagés'!$A$49),\"\",IF(RANK(T47,$T$10:$T$49)<4,RANK(T47,$T$10:$T$49),RANK(O47,$O$10:$O$49)))","v":""},null,{"$f":"IF(ISBLANK('Info+Engagés'!A49),\"\",'Cav38'!I3)","v":""},"","",0,null,null,null,null,null,null,42,0]
[{"$f":"IF(ISBLANK('Info+Engagés'!A50),\"\",('Info+Engagés'!A50))","v":""},{"$f":"IF(ISBLANK('Info+Engagés'!B50),\"\",('Info+Engagés'!B50))","v":""},{"$f":"IF(ISBLANK('Info+Engagés'!G50),\"\",('Info+Engagés'!G50))","v":""},{"$f":"IF(OR(ISBLANK('Info+Engagés'!A50),ISBLANK('Info+Engagés'!H2)),\"\",('Cav39'!D36))","v":""},{"$f":"IF(OR(ISBLANK('Info+Engagés'!A50),ISBLANK('Info+Engagés'!H2)),\"\",RANK(D48,$D$10:$D$49))","v":""},{"$f":"IF(OR(ISBLANK('Info+Engagés'!A50),ISBLANK('Info+Engagés'!H3)),\"\",('Cav39'!E36))","v":""},{"$f":"IF(OR(ISBLANK('Info+Engagés'!A50),ISBLANK('Info+Engagés'!H3)),\"\",RANK(F48,$F$10:$F$49))","v":""},{"$f":"IF(OR(ISBLANK('Info+Engagés'!A50),ISBLANK('Info+Engagés'!H4)),\"\",('Cav39'!F36))","v":""},{"$f":"IF(OR(ISBLANK('Info+Engagés'!A50),ISBLANK('Info+Engagés'!H4)),\"\",RANK(H48,$H$10:$H$49))","v":""},{"$f":"IF(OR(ISBLANK('Info+Engagés'!A50),ISBLANK('Info+Engagés'!H5)),\"\",('Cav39'!G36))","v":""},{"$f":"IF(OR(ISBLANK('Info+Engagés'!A50),ISBLANK('Info+Engagés'!H5)),\"\",RANK(J48,$J$10:$J$49))","v":""},{"$f":"IF(OR(ISBLANK('Info+Engagés'!A50),ISBLANK('Info+Engagés'!H6)),\"\",('Cav39'!H36))","v":""},{"$f":"IF(OR(ISBLANK('Info+Engagés'!A50),ISBLANK('Info+Engagés'!H6)),\"\",RANK(L48,$L$10:$L$49))","v":""},{"$f":"IF(ISBLANK('Info+Engagés'!A50),\"\",('Cav39'!I4))","v":""},{"$f":"IF(ISBLANK('Info+Engagés'!A50),\"\",('Cav39'!I5))","v":""},{"$f":"IF(ISBLANK('Info+Engagés'!$A$50),\"\",IF(RANK(T48,$T$10:$T$49)<4,RANK(T48,$T$10:$T$49),RANK(O48,$O$10:$O$49)))","v":""},null,{"$f":"IF(ISBLANK('Info+Engagés'!A50),\"\",'Cav39'!I3)","v":""},"","",0,null,null,null,null,null,null,43,0]
[{"$f":"IF(ISBLANK('Info+Engagés'!A51),\"\",('Info+Engagés'!A51))","v":""},{"$f":"IF(ISBLANK('Info+Engagés'!B51),\"\",('Info+Engagés'!B51))","v":""},{"$f":"IF(ISBLANK('Info+Engagés'!G51),\"\",('Info+Engagés'!G51))","v":""},{"$f":"IF(OR(ISBLANK('Info+Engagés'!A51),ISBLANK('Info+Engagés'!H2)),\"\",('Cav40'!D36))","v":""},{"$f":"IF(OR(ISBLANK('Info+Engagés'!A51),ISBLANK('Info+Engagés'!H2)),\"\",RANK(D49,$D$10:$D$49))","v":""},{"$f":"IF(OR(ISBLANK('Info+Engagés'!A51),ISBLANK('Info+Engagés'!H3)),\"\",('Cav40'!E36))","v":""},{"$f":"IF(OR(ISBLANK('Info+Engagés'!A51),ISBLANK('Info+Engagés'!H3)),\"\",RANK(F49,$F$10:$F$49))","v":""},{"$f":"IF(OR(ISBLANK('Info+Engagés'!A51),ISBLANK('Info+Engagés'!H4)),\"\",('Cav40'!F36))","v":""},{"$f":"IF(OR(ISBLANK('Info+Engagés'!A51),ISBLANK('Info+Engagés'!H4)),\"\",RANK(H49,$H$10:$H$49))","v":""},{"$f":"IF(OR(ISBLANK('Info+Engagés'!A51),ISBLANK('Info+Engagés'!H5)),\"\",('Cav40'!G36))","v":""},{"$f":"IF(OR(ISBLANK('Info+Engagés'!A51),ISBLANK('Info+Engagés'!H5)),\"\",RANK(J49,$J$10:$J$49))","v":""},{"$f":"IF(OR(ISBLANK('Info+Engagés'!A51),ISBLANK('Info+Engagés'!H6)),\"\",('Cav40'!H36))","v":""},{"$f":"IF(OR(ISBLANK('Info+Engagés'!A51),ISBLANK('Info+Engagés'!H6)),\"\",RANK(L49,$L$10:$L$49))","v":""},{"$f":"IF(ISBLANK('Info+Engagés'!A51),\"\",('Cav40'!I4))","v":""},{"$f":"IF(ISBLANK('Info+Engagés'!A51),\"\",('Cav40'!I5))","v":""},{"$f":"IF(ISBLANK('Info+Engagés'!$A$51),\"\",IF(RANK(T49,$T$10:$T$49)<4,RANK(T49,$T$10:$T$49),RANK(O49,$O$10:$O$49)))","v":""},null,{"$f":"IF(ISBLANK('Info+Engagés'!A51),\"\",'Cav40'!I3)","v":""},"","",0,null,null,null,null,null,null,44,0]